Workbook

Sheet Getting Started
B2: ENERGY STAR Scope 3 Use of Sold Products Analysis Tool
B3: v1.2, February 8, 2023
C5: Getting Started
C8: Purpose
C9: This tool is intended for retailers that sell products. There are two primary uses of the tool: (1) Benchmarking. Allows a retailer to (a) quantify the Scope 3 Use of Sold Product emissions associated with the current sale of ENERGY STAR products and with increased sale of ENERGY STAR products, and (b) quantify the GHG emissions savings achieved through the current or increased sale of ENERGY STAR products (compared to not selling any ENERGY STAR products). (2) Scenario Analysis. Allows a retailer to (a) quantify how Scope 3 Use of Sold Product emissions change with increased sale of ENERGY STAR products, and (b) quantify how emissions savings improve with increased sale of ENERGY STAR products. The goal of the tool is to demonstrate to retailers that increased sales of ENERGY STAR products can potentially result in significant reductions in Scope 3 Use of Sold Products emissions (and therefore, total GHG inventory emissions). It is mainly intended to be used to analyze the impacts of increased ENERGY STAR sales, and not for Scope 3 reporting. If this tool is used to quantify Scope 3 Use of Sold Product emissions for GHG inventory reporting, results should be verified before reporting.
C11: Instructions for Using Tool
C12: The tool consists of 5 worksheets: - Getting Started: Explains the purpose of the tool, provides instructions for using the tool, provides background on emission scopes, explains methodology for calculating Scope 3 Use of Sold Product emissions, and provides contact info for questions. - Product Emissions Analysis: Shows the Scope 3 Use of Sold Products emissions and emissions savings by ENERGY STAR product category associated with the sale of ENERGY STAR products. For each product category, both lifetime and annual emissions and emissions savings are presented. Lifetime emissions are those that are required to be reported for the Scope 3 Use of Sold Products category. Annual emissions are shown in case retailers are interested in seeing emissions on an annual basis. Emissions savings estimates show retailers the GHG savings associated with current or increased ENERGY STAR sales. - Summary Results: Summarizes the results of the product emissions analysis across all ENERGY STAR product categories. The first "Results" section (Scope 3 Use of Sold Products) summarizes the impacts of selling more ENERGY STAR products on the Scope 3 Use of Sold Products category only. The second "Results" section (GHG Inventory) is optional. If you have estimates of your Scope 1 and 2 emissions as well as other Scope 3 categories, entering them in this section will let you see the impact of selling more ENERGY STAR Products on your GHG inventory. - Summary Results - Figures: Illustrates the change in Scope 3 Use of Sold Products emissions when selling more ENERGY STAR products. - Product Data and EFs: Presents the Scope 3 Use of Sold Products emission factors used in the analysis as well as the data used to produce these factors (i.e., Scope 1 and 2 emissions factors and product energy use data).
C13: Follow these steps to use the tool: (1) On the "Product Emissions Analysis" worksheet, enter 'Total Unit Sales,' 'Percent of Current Sales that are ENERGY STAR,' and a 'Higher % of Sales that are ENERGY STAR for Analysis' for each product category/product type that applies to your business. Note: yellow cells indicate that you should enter data. Green cells indicate that a value is calculated based on the data entered. For each product category/type that you enter data, you will see the lifetime and annual Scope 3 Use of Sold Product emissions asscociated with current ENERGY STAR sales and increased ENERGY STAR sales. You will also see lifetime and annual emissions savings achieved through the current and increased sale of ENERGY STAR products (compared to a baseline of only selling standard products). (2) Once you are done entering data, you can see a summary of results across all product categories on the "Summary Results" worksheet. The first "Results" section (Scope 3 Use of Sold Products) summarizes the impacts of selling more ENERGY STAR products on the Scope 3 Use of Sold Products category only. The second "Results" section (GHG Inventory) is optional. If you have estimates of your Scope 1 and 2 emissions as well as other Scope 3 categories, entering them in this section will let you see the impact of selling more ENERGY STAR Products on your GHG inventory. You can also see the results depicted visually with several charts on the "Summary Results - Figures" worksheet. (3) For reference, the "Product Data and EFs" worksheet presents the emissions factors and product data used in the calculations.
C14: Overview of Scope 1, 2, and 3 Emissions
C15: There are 2 types of GHG emissions, direct and indirect. - Direct GHG emissions are emissions from sources that are owned or controlled by the company, such as burning natural gas for heat, or gasoline used in vehicles. - Indirect GHG emissions are emissions that are a consequence of the activities of the company but occur at sources owned or controlled by another company (such as a utility). The emissions from the electricity purchased is the main source of indirect emissions. GHG emissions are broken down into three scopes, to avoid double counting between organizations: - Scope 1 emissions are direct emissions from operations that are owned or controlled by the reporting company. This is natural gas, gasoline from company owned vehicles, or diesel used in backup generators. Indirect GHG emissions are broken down into 2 scopes: - Scope 2 emissions from the generation of purchased or acquired electricity, steam, heating or cooling consumed by the reporting company. - Scope 3 emissions are all remaining indirect emissions from an organization’s value chain, such as emissions from purchased products and services, emissions from the use of the products the organization sells, employee commuting, business travel, and others.
D44: Source: Graphic originally developed by the GHG Protocol and adapted by EPA
C45: Methodology for Calculating Emissions - Scope 3, Category 11: Use of Sold Products
C46: The methodology for calculating the emissions from Scope 3, Category 11: Use of Sold Products was developed by the GHG Protocol:
C47: Technical Guidance for Calculating Scope 3 Emissions (version 1.0), https://ghgprotocol.org/sites/default/files/standards/Scope3_Calculation_Guidance_0.pdf
C48: The methodology calls for calculating the GHG emissions resulting from the use of a sold product over its lifetime. Sources of emissions include electricity use, fuel use, and refrigerant leakage.
C49: Assumptions Used in This Tool: - This tool analyzes emissions from products contained in the ENERGY STAR Certified Products 2021 Data Book. All product data comes from the Databook. - Using lifecycle emission factors (scope 3) to calculate category 11 emissions is preferred but not common. Using scope 1 and 2 emissions to develop category 11 emissions is acceptable and more common at this time (scope 1 and 2 factors are more readily available and easier to use). As such, this tool only uses the scope 1 emission factors for fuel use (natural gas and heating oil) and the scope 2 factor for electricity use (eGRID U.S. Average). The emissions factors for fuel use only account for the emissions associated with combusting the fuel and not those that occur from the extraction, processing, and transmission/distribution of the fuel; the emission factor for electricity only accounts for the emissions associated with generating electricity at the plant, and not those that occur from the extraction, processing, and transmission/distribution of fuels used, or those associated with the transmission/distribution losses between the plant and the end user. - The tool does not account for refrigerant leakage. It is assumed that all modern appliances that use refrigerant are designed not to leak over their useful life. - eGRID's U.S. Average emission factor is used for electricity (ideally, if known, retailers should use the emission factor for the eGRID region in which the product will be used). - Emission factors for natural gas and heating oil are from U.S. EPA GHG Emission Factors Hub (https://www.epa.gov/climateleadership/center-corporate-climate-leadership-ghg-emission-factors-hub). New for Version 1.1: - Global warming potentials used can be selected from IPCC's Fourth Assessment Report, 2007 (AR4) which align with other EPA products and the U.S. GHG Inventory; IPCC's Fifth Assessment Report, 2014 (AR5); or IPCC's Sixth Assessment Report, 2021 (AR6). - Light Fixtures are now included in the lighting section of the tool.
C50: New for Version 1.2: - Smart Thermostats are now included in the Heating and Cooling section of the tool.
C51: - Emissions savings presented on the "Product Emissions Analysis," Summary Results," and "Summary Results-Figures" worksheets were determined by calculating the emissions that would have occurred if you did not sell any ENERGY STAR products (and instead sold all standard products), and then subtracting from that the actual emissions associated with your product sales (i.e., those that include ENERGY STAR product sales). For all product categories except lightbulbs the lifetimes of ENERGY STAR products and their standard counterparts are the same. For lightbulbs, because halogens have a much shorter lifespan than LEDs or CFLs (0.9 years to 13.7 years and 9.1 years, respectively), lifetime emissions savings are determined by scaling up the number of halogens to match the lifetimes of LEDs and CFLs. For LEDs the scale up factor is 15.2 (13.7/0.9=15.2) and for CFLs the scale up factor is 10.1 (9.1/0.9=10.1). In other words, over the lifetime of a single LED bulb, 15.2 halogens would need to be purchased; and over the lifetime of a single CFL bulb, 10.1 halogens would need to be purchased.
C52: Questions?
C53: Contact Dan Cronin, EPA ENERGY STAR Program
C54: Cronin [.] Daniel [@] epa [.] gov

Sheet Product Emissions Analysis
C2: Scope 3 Use of Sold Products Emissions Analysis
C3: For each Product Category, enter current total sales and % of current sales that are ENERGY STAR for each product type, as applicable (in yellow cells). Also enter a new, higher percentage of ENERGY STAR sales to see the Scope 3 Use of Sold Products emissions reductions achieved with increased ENERGY STAR sales (see the Summary Results worksheet for results across all product categories). For each product category, both lifetime and annual emissions are presented. Lifetime emissions are those that are required to be reported for the Scope 3 Use of Sold Products category. Annual emissions are shown in case retailers are interested in seeing emissions on an annual basis.
D4: Analysis Time Period (Optional) | F4: Enter period over which sales take place. Annual value is recommended (e.g., 2021). This is just for reference and doesn't affect any calculations.
D5: Global Warming Potential (GWP) Selection | E5: AR5
D9: Residential Appliances
D11: Lifetime
H13: Current | N13: Increased ENERGY STAR Sales
D14: Product Type | E14: Total Unit Sales | F14: % of Current Sales that are ENERGY STAR | G14: Enter a Higher % of Sales that are ENERGY STAR for Analysis | H14: Total ENERGY STAR Product Sales | I14: Total Standard Product Sales | J14: Lifetime Product Use Emissions - ENERGY STAR (Metric Tons CO2e) | K14: Lifetime Product Use Emissions - Standard (Metric Tons CO2e) | L14: Lifetime Total Product Use Emissions (Metric Tons CO2e) | M14: Lifetime Emissions Savings from ENERGY STAR Product Sales (Metric Tons CO2e) | N14: Total ENERGY STAR Product Sales | O14: Total Standard Product Sales | P14: Lifetime Product Use Emissions - ENERGY STAR (Metric Tons CO2e) | Q14: Lifetime Product Use Emissions - Standard (Metric Tons CO2e) | R14: Lifetime Total Product Use Emissions (Metric Tons CO2e) | S14: Lifetime Emissions Savings from ENERGY STAR Product Sales (Metric Tons CO2e) | T14: Additional Lifetime Emissions Savings Achieved with Increased ENERGY STAR Sales (Metric Tons CO2e)
D15: Room Air Conditioners | H15: =IF(F15="",0,ROUND(E15*F15,0)) -> 0 | I15: =IF(F15="",0,E15-H15) -> 0 | J15: =IF(H15=0,0,H15*'Product Data and EFs'!L24/1000) -> 0 | K15: =IF(I15=0,0,I15*'Product Data and EFs'!K24/1000) -> 0 | L15: =IF(F15="",0,SUM(J15:K15)) -> 0 | M15: =IF(L15=0,0,(E15*'Product Data and EFs'!K24/1000-'Product Emissions Analysis'!L15)) -> 0 | N15: =IF(G15="",0,ROUND(E15*G15,0)) -> 0 | O15: =IF(G15="",0,E15-N15) -> 0 | P15: =IF(N15=0,0,N15*'Product Data and EFs'!L24/1000) -> 0 | Q15: =IF(O15=0,0,O15*'Product Data and EFs'!K24/1000) -> 0 | R15: =IF(G15="",0,SUM(P15:Q15)) -> 0 | S15: =IF(R15=0,0,(E15*'Product Data and EFs'!K24/1000-'Product Emissions Analysis'!R15)) -> 0 | T15: =IF(G15="",0,L15-R15) -> 0
D16: Dehumidifiers | H16: =IF(F16="",0,ROUND(E16*F16,0)) -> 0 | I16: =IF(F16="",0,E16-H16) -> 0 | J16: =IF(H16=0,0,H16*'Product Data and EFs'!L25/1000) -> 0 | K16: =IF(I16=0,0,I16*'Product Data and EFs'!K25/1000) -> 0 | L16: =IF(F16="",0,SUM(J16:K16)) -> 0 | M16: =IF(L16=0,0,(E16*'Product Data and EFs'!K25/1000-'Product Emissions Analysis'!L16)) -> 0 | N16: =IF(G16="",0,ROUND(E16*G16,0)) -> 0 | O16: =IF(G16="",0,E16-N16) -> 0 | P16: =IF(N16=0,0,N16*'Product Data and EFs'!L25/1000) -> 0 | Q16: =IF(O16=0,0,O16*'Product Data and EFs'!K25/1000) -> 0 | R16: =IF(G16="",0,SUM(P16:Q16)) -> 0 | S16: =IF(R16=0,0,(E16*'Product Data and EFs'!K25/1000-'Product Emissions Analysis'!R16)) -> 0 | T16: =IF(G16="",0,L16-R16) -> 0
D17: Air Cleaners | H17: 0 | I17: 0 | J17: =IF(H17=0,0,H17*'Product Data and EFs'!L26/1000) -> 0 | K17: =IF(I17=0,0,I17*'Product Data and EFs'!K26/1000) -> 0 | L17: 0 | M17: =IF(L17=0,0,(E17*'Product Data and EFs'!K26/1000-'Product Emissions Analysis'!L17)) -> 0 | N17: 0 | O17: 0 | P17: =IF(N17=0,0,N17*'Product Data and EFs'!L26/1000) -> 0 | Q17: =IF(O17=0,0,O17*'Product Data and EFs'!K26/1000) -> 0 | R17: 0 | S17: =IF(R17=0,0,(E17*'Product Data and EFs'!K26/1000-'Product Emissions Analysis'!R17)) -> 0 | T17: 0
D18: Ventilating Fans - Bathroom Fans | H18: 0 | I18: 0 | J18: =IF(H18=0,0,H18*'Product Data and EFs'!L27/1000) -> 0 | K18: =IF(I18=0,0,I18*'Product Data and EFs'!K27/1000) -> 0 | L18: 0 | M18: =IF(L18=0,0,(E18*'Product Data and EFs'!K27/1000-'Product Emissions Analysis'!L18)) -> 0 | N18: 0 | O18: 0 | P18: =IF(N18=0,0,N18*'Product Data and EFs'!L27/1000) -> 0 | Q18: =IF(O18=0,0,O18*'Product Data and EFs'!K27/1000) -> 0 | R18: 0 | S18: =IF(R18=0,0,(E18*'Product Data and EFs'!K27/1000-'Product Emissions Analysis'!R18)) -> 0 | T18: 0
D19: Ventilating Fans - Inline Fans | H19: 0 | I19: 0 | J19: =IF(H19=0,0,H19*'Product Data and EFs'!L28/1000) -> 0 | K19: =IF(I19=0,0,I19*'Product Data and EFs'!K28/1000) -> 0 | L19: 0 | M19: =IF(L19=0,0,(E19*'Product Data and EFs'!K28/1000-'Product Emissions Analysis'!L19)) -> 0 | N19: 0 | O19: 0 | P19: =IF(N19=0,0,N19*'Product Data and EFs'!L28/1000) -> 0 | Q19: =IF(O19=0,0,O19*'Product Data and EFs'!K28/1000) -> 0 | R19: 0 | S19: =IF(R19=0,0,(E19*'Product Data and EFs'!K28/1000-'Product Emissions Analysis'!R19)) -> 0 | T19: 0
D20: Ventilating Fans - Range Hoods | H20: 0 | I20: 0 | J20: =IF(H20=0,0,H20*'Product Data and EFs'!L29/1000) -> 0 | K20: =IF(I20=0,0,I20*'Product Data and EFs'!K29/1000) -> 0 | L20: 0 | M20: =IF(L20=0,0,(E20*'Product Data and EFs'!K29/1000-'Product Emissions Analysis'!L20)) -> 0 | N20: 0 | O20: 0 | P20: =IF(N20=0,0,N20*'Product Data and EFs'!L29/1000) -> 0 | Q20: =IF(O20=0,0,O20*'Product Data and EFs'!K29/1000) -> 0 | R20: 0 | S20: =IF(R20=0,0,(E20*'Product Data and EFs'!K29/1000-'Product Emissions Analysis'!R20)) -> 0 | T20: 0
D21: Standard Ceiling Fan | H21: 0 | I21: 0 | J21: =IF(H21=0,0,H21*'Product Data and EFs'!L30/1000) -> 0 | K21: =IF(I21=0,0,I21*'Product Data and EFs'!K30/1000) -> 0 | L21: 0 | M21: =IF(L21=0,0,(E21*'Product Data and EFs'!K30/1000-'Product Emissions Analysis'!L21)) -> 0 | N21: 0 | O21: 0 | P21: =IF(N21=0,0,N21*'Product Data and EFs'!L30/1000) -> 0 | Q21: =IF(O21=0,0,O21*'Product Data and EFs'!K30/1000) -> 0 | R21: 0 | S21: =IF(R21=0,0,(E21*'Product Data and EFs'!K30/1000-'Product Emissions Analysis'!R21)) -> 0 | T21: 0
D22: Hugger Ceiling Fan | H22: 0 | I22: 0 | J22: =IF(H22=0,0,H22*'Product Data and EFs'!L31/1000) -> 0 | K22: =IF(I22=0,0,I22*'Product Data and EFs'!K31/1000) -> 0 | L22: 0 | M22: =IF(L22=0,0,(E22*'Product Data and EFs'!K31/1000-'Product Emissions Analysis'!L22)) -> 0 | N22: 0 | O22: 0 | P22: =IF(N22=0,0,N22*'Product Data and EFs'!L31/1000) -> 0 | Q22: =IF(O22=0,0,O22*'Product Data and EFs'!K31/1000) -> 0 | R22: 0 | S22: =IF(R22=0,0,(E22*'Product Data and EFs'!K31/1000-'Product Emissions Analysis'!R22)) -> 0 | T22: 0
D23: Standard Ceiling Fan with Light Kit | H23: 0 | I23: 0 | J23: =IF(H23=0,0,H23*'Product Data and EFs'!L32/1000) -> 0 | K23: =IF(I23=0,0,I23*'Product Data and EFs'!K32/1000) -> 0 | L23: 0 | M23: =IF(L23=0,0,(E23*'Product Data and EFs'!K32/1000-'Product Emissions Analysis'!L23)) -> 0 | N23: 0 | O23: 0 | P23: =IF(N23=0,0,N23*'Product Data and EFs'!L32/1000) -> 0 | Q23: =IF(O23=0,0,O23*'Product Data and EFs'!K32/1000) -> 0 | R23: 0 | S23: =IF(R23=0,0,(E23*'Product Data and EFs'!K32/1000-'Product Emissions Analysis'!R23)) -> 0 | T23: 0
D24: Hugger Ceiling Fan with Light Kit | H24: 0 | I24: 0 | J24: =IF(H24=0,0,H24*'Product Data and EFs'!L33/1000) -> 0 | K24: =IF(I24=0,0,I24*'Product Data and EFs'!K33/1000) -> 0 | L24: 0 | M24: =IF(L24=0,0,(E24*'Product Data and EFs'!K33/1000-'Product Emissions Analysis'!L24)) -> 0 | N24: 0 | O24: 0 | P24: =IF(N24=0,0,N24*'Product Data and EFs'!L33/1000) -> 0 | Q24: =IF(O24=0,0,O24*'Product Data and EFs'!K33/1000) -> 0 | R24: 0 | S24: =IF(R24=0,0,(E24*'Product Data and EFs'!K33/1000-'Product Emissions Analysis'!R24)) -> 0 | T24: 0
D25: Dishwashers - Standard | H25: 0 | I25: 0 | J25: =IF(H25=0,0,H25*'Product Data and EFs'!L34/1000) -> 0 | K25: =IF(I25=0,0,I25*'Product Data and EFs'!K34/1000) -> 0 | L25: 0 | M25: =IF(L25=0,0,(E25*'Product Data and EFs'!K34/1000-'Product Emissions Analysis'!L25)) -> 0 | N25: 0 | O25: 0 | P25: =IF(N25=0,0,N25*'Product Data and EFs'!L34/1000) -> 0 | Q25: =IF(O25=0,0,O25*'Product Data and EFs'!K34/1000) -> 0 | R25: 0 | S25: =IF(R25=0,0,(E25*'Product Data and EFs'!K34/1000-'Product Emissions Analysis'!R25)) -> 0 | T25: 0
D26: Dishwashers - Compact | H26: 0 | I26: 0 | J26: =IF(H26=0,0,H26*'Product Data and EFs'!L35/1000) -> 0 | K26: =IF(I26=0,0,I26*'Product Data and EFs'!K35/1000) -> 0 | L26: 0 | M26: =IF(L26=0,0,(E26*'Product Data and EFs'!K35/1000-'Product Emissions Analysis'!L26)) -> 0 | N26: 0 | O26: 0 | P26: =IF(N26=0,0,N26*'Product Data and EFs'!L35/1000) -> 0 | Q26: =IF(O26=0,0,O26*'Product Data and EFs'!K35/1000) -> 0 | R26: 0 | S26: =IF(R26=0,0,(E26*'Product Data and EFs'!K35/1000-'Product Emissions Analysis'!R26)) -> 0 | T26: 0
D27: Refrigerators - Top Freezer | H27: 0 | I27: 0 | J27: =IF(H27=0,0,H27*'Product Data and EFs'!L36/1000) -> 0 | K27: =IF(I27=0,0,I27*'Product Data and EFs'!K36/1000) -> 0 | L27: 0 | M27: =IF(L27=0,0,(E27*'Product Data and EFs'!K36/1000-'Product Emissions Analysis'!L27)) -> 0 | N27: 0 | O27: 0 | P27: =IF(N27=0,0,N27*'Product Data and EFs'!L36/1000) -> 0 | Q27: =IF(O27=0,0,O27*'Product Data and EFs'!K36/1000) -> 0 | R27: 0 | S27: =IF(R27=0,0,(E27*'Product Data and EFs'!K36/1000-'Product Emissions Analysis'!R27)) -> 0 | T27: 0
D28: Refrigerators - Bottom Freezer | H28: 0 | I28: 0 | J28: =IF(H28=0,0,H28*'Product Data and EFs'!L37/1000) -> 0 | K28: =IF(I28=0,0,I28*'Product Data and EFs'!K37/1000) -> 0 | L28: 0 | M28: =IF(L28=0,0,(E28*'Product Data and EFs'!K37/1000-'Product Emissions Analysis'!L28)) -> 0 | N28: 0 | O28: 0 | P28: =IF(N28=0,0,N28*'Product Data and EFs'!L37/1000) -> 0 | Q28: =IF(O28=0,0,O28*'Product Data and EFs'!K37/1000) -> 0 | R28: 0 | S28: =IF(R28=0,0,(E28*'Product Data and EFs'!K37/1000-'Product Emissions Analysis'!R28)) -> 0 | T28: 0
D29: Refrigerators - Side by Side | H29: 0 | I29: 0 | J29: =IF(H29=0,0,H29*'Product Data and EFs'!L38/1000) -> 0 | K29: =IF(I29=0,0,I29*'Product Data and EFs'!K38/1000) -> 0 | L29: 0 | M29: =IF(L29=0,0,(E29*'Product Data and EFs'!K38/1000-'Product Emissions Analysis'!L29)) -> 0 | N29: 0 | O29: 0 | P29: =IF(N29=0,0,N29*'Product Data and EFs'!L38/1000) -> 0 | Q29: =IF(O29=0,0,O29*'Product Data and EFs'!K38/1000) -> 0 | R29: 0 | S29: =IF(R29=0,0,(E29*'Product Data and EFs'!K38/1000-'Product Emissions Analysis'!R29)) -> 0 | T29: 0
D30: Freezers - Chest Freezer | H30: 0 | I30: 0 | J30: =IF(H30=0,0,H30*'Product Data and EFs'!L39/1000) -> 0 | K30: =IF(I30=0,0,I30*'Product Data and EFs'!K39/1000) -> 0 | L30: 0 | M30: =IF(L30=0,0,(E30*'Product Data and EFs'!K39/1000-'Product Emissions Analysis'!L30)) -> 0 | N30: 0 | O30: 0 | P30: =IF(N30=0,0,N30*'Product Data and EFs'!L39/1000) -> 0 | Q30: =IF(O30=0,0,O30*'Product Data and EFs'!K39/1000) -> 0 | R30: 0 | S30: =IF(R30=0,0,(E30*'Product Data and EFs'!K39/1000-'Product Emissions Analysis'!R30)) -> 0 | T30: 0
D31: Freezers - Upright Freezer | H31: 0 | I31: 0 | J31: =IF(H31=0,0,H31*'Product Data and EFs'!L40/1000) -> 0 | K31: =IF(I31=0,0,I31*'Product Data and EFs'!K40/1000) -> 0 | L31: 0 | M31: =IF(L31=0,0,(E31*'Product Data and EFs'!K40/1000-'Product Emissions Analysis'!L31)) -> 0 | N31: 0 | O31: 0 | P31: =IF(N31=0,0,N31*'Product Data and EFs'!L40/1000) -> 0 | Q31: =IF(O31=0,0,O31*'Product Data and EFs'!K40/1000) -> 0 | R31: 0 | S31: =IF(R31=0,0,(E31*'Product Data and EFs'!K40/1000-'Product Emissions Analysis'!R31)) -> 0 | T31: 0
D32: Clothes Washers - Top Loading | H32: 0 | I32: 0 | J32: =IF(H32=0,0,H32*'Product Data and EFs'!L41/1000) -> 0 | K32: =IF(I32=0,0,I32*'Product Data and EFs'!K41/1000) -> 0 | L32: 0 | M32: =IF(L32=0,0,(E32*'Product Data and EFs'!K41/1000-'Product Emissions Analysis'!L32)) -> 0 | N32: 0 | O32: 0 | P32: =IF(N32=0,0,N32*'Product Data and EFs'!L41/1000) -> 0 | Q32: =IF(O32=0,0,O32*'Product Data and EFs'!K41/1000) -> 0 | R32: 0 | S32: =IF(R32=0,0,(E32*'Product Data and EFs'!K41/1000-'Product Emissions Analysis'!R32)) -> 0 | T32: 0
D33: Clothes Washers - Front Loading | H33: 0 | I33: 0 | J33: =IF(H33=0,0,H33*'Product Data and EFs'!L42/1000) -> 0 | K33: =IF(I33=0,0,I33*'Product Data and EFs'!K42/1000) -> 0 | L33: 0 | M33: =IF(L33=0,0,(E33*'Product Data and EFs'!K42/1000-'Product Emissions Analysis'!L33)) -> 0 | N33: 0 | O33: 0 | P33: =IF(N33=0,0,N33*'Product Data and EFs'!L42/1000) -> 0 | Q33: =IF(O33=0,0,O33*'Product Data and EFs'!K42/1000) -> 0 | R33: 0 | S33: =IF(R33=0,0,(E33*'Product Data and EFs'!K42/1000-'Product Emissions Analysis'!R33)) -> 0 | T33: 0
D34: Clothes Dryers - Standard Electric Dryer (Vented/Ventless) | H34: 0 | I34: 0 | J34: =IF(H34=0,0,H34*'Product Data and EFs'!L43/1000) -> 0 | K34: =IF(I34=0,0,I34*'Product Data and EFs'!K43/1000) -> 0 | L34: 0 | M34: =IF(L34=0,0,(E34*'Product Data and EFs'!K43/1000-'Product Emissions Analysis'!L34)) -> 0 | N34: 0 | O34: 0 | P34: =IF(N34=0,0,N34*'Product Data and EFs'!L43/1000) -> 0 | Q34: =IF(O34=0,0,O34*'Product Data and EFs'!K43/1000) -> 0 | R34: 0 | S34: =IF(R34=0,0,(E34*'Product Data and EFs'!K43/1000-'Product Emissions Analysis'!R34)) -> 0 | T34: 0
D35: Clothes Dryers - Gas Dryers | H35: 0 | I35: 0 | J35: =IF(H35=0,0,H35*'Product Data and EFs'!L44/1000) -> 0 | K35: =IF(I35=0,0,I35*'Product Data and EFs'!K44/1000) -> 0 | L35: 0 | M35: =IF(L35=0,0,(E35*'Product Data and EFs'!K44/1000-'Product Emissions Analysis'!L35)) -> 0 | N35: 0 | O35: 0 | P35: =IF(N35=0,0,N35*'Product Data and EFs'!L44/1000) -> 0 | Q35: =IF(O35=0,0,O35*'Product Data and EFs'!K44/1000) -> 0 | R35: 0 | S35: =IF(R35=0,0,(E35*'Product Data and EFs'!K44/1000-'Product Emissions Analysis'!R35)) -> 0 | T35: 0
D36: Water Heaters - Gas Storage Water Heater | H36: 0 | I36: 0 | J36: =IF(H36=0,0,H36*'Product Data and EFs'!L45/1000) -> 0 | K36: =IF(I36=0,0,I36*'Product Data and EFs'!K45/1000) -> 0 | L36: 0 | M36: =IF(L36=0,0,(E36*'Product Data and EFs'!K45/1000-'Product Emissions Analysis'!L36)) -> 0 | N36: 0 | O36: 0 | P36: =IF(N36=0,0,N36*'Product Data and EFs'!L45/1000) -> 0 | Q36: =IF(O36=0,0,O36*'Product Data and EFs'!K45/1000) -> 0 | R36: 0 | S36: =IF(R36=0,0,(E36*'Product Data and EFs'!K45/1000-'Product Emissions Analysis'!R36)) -> 0 | T36: 0
D37: Water Heaters - Electric (Heat Pump) Water Heater | H37: 0 | I37: 0 | J37: =IF(H37=0,0,H37*'Product Data and EFs'!L46/1000) -> 0 | K37: =IF(I37=0,0,I37*'Product Data and EFs'!K46/1000) -> 0 | L37: 0 | M37: =IF(L37=0,0,(E37*'Product Data and EFs'!K46/1000-'Product Emissions Analysis'!L37)) -> 0 | N37: 0 | O37: 0 | P37: =IF(N37=0,0,N37*'Product Data and EFs'!L46/1000) -> 0 | Q37: =IF(O37=0,0,O37*'Product Data and EFs'!K46/1000) -> 0 | R37: 0 | S37: =IF(R37=0,0,(E37*'Product Data and EFs'!K46/1000-'Product Emissions Analysis'!R37)) -> 0 | T37: 0
D38: Water Heaters - Tankless Gas Water Heater | H38: 0 | I38: 0 | J38: =IF(H38=0,0,H38*'Product Data and EFs'!L47/1000) -> 0 | K38: =IF(I38=0,0,I38*'Product Data and EFs'!K47/1000) -> 0 | L38: 0 | M38: =IF(L38=0,0,(E38*'Product Data and EFs'!K47/1000-'Product Emissions Analysis'!L38)) -> 0 | N38: 0 | O38: 0 | P38: =IF(N38=0,0,N38*'Product Data and EFs'!L47/1000) -> 0 | Q38: =IF(O38=0,0,O38*'Product Data and EFs'!K47/1000) -> 0 | R38: 0 | S38: =IF(R38=0,0,(E38*'Product Data and EFs'!K47/1000-'Product Emissions Analysis'!R38)) -> 0 | T38: 0
D39: TOTAL | E39: =SUM(E15:E38) -> 0 | F39: NA | G39: NA | H39: =SUM(H15:H38) -> 0 | I39: 0 | J39: 0 | K39: 0 | L39: 0 | M39: 0 | N39: 0 | O39: 0 | P39: 0 | Q39: 0 | R39: 0 | S39: 0 | T39: 0
D41: Annual
H43: Current | N43: Increased ENERGY STAR Sales
D44: Product Type | E44: Total Unit Sales | F44: % of Current Sales that are ENERGY STAR | G44: Higher % of Sales that are ENERGY STAR for Analysis | H44: Total ENERGY STAR Product Sales | I44: Total Standard Product Sales | J44: Annual Product Use Emissions - ENERGY STAR (Metric Tons CO2e) | K44: Annual Product Use Emissions - Standard (Metric Tons CO2e) | L44: Annual Total Product Use Emissions (Metric Tons CO2e) | M44: Annual Emissions Savings from ENERGY STAR Product Sales (Metric Tons CO2e) | N44: Total ENERGY STAR Product Sales | O44: Total Standard Product Sales | P44: Annual Product Use Emissions - ENERGY STAR (Metric Tons CO2e) | Q44: Annual Product Use Emissions - Standard (Metric Tons CO2e) | R44: Annual Total Product Use Emissions (Metric Tons CO2e) | S44: Annual Emissions Savings from ENERGY STAR Product Sales (Metric Tons CO2e) | T44: Additional Annual Emissions Savings Achieved with Increased ENERGY STAR Sales (Metric Tons CO2e)
D45: Room Air Conditioners | E45: =IF(E15="","",E15) ->  | F45: =IF(F15="","",F15) ->  | G45: =IF(G15="","",G15) ->  | H45: =IF(F45="",0,ROUND(E45*F45,0)) -> 0 | I45: =IF(F45="",0,E45-H45) -> 0 | J45: =IF(H45=0,0,H45*'Product Data and EFs'!L24/1000/'Product Data and EFs'!F24) -> 0 | K45: =IF(I45=0,0,I45*'Product Data and EFs'!K24/1000/'Product Data and EFs'!F24) -> 0 | L45: =IF(F45="",0,SUM(J45:K45)) -> 0 | M45: =IF(L45=0,0,(E45*'Product Data and EFs'!K24/1000/'Product Data and EFs'!F24-'Product Emissions Analysis'!L45)) -> 0 | N45: =IF(G45="",0,ROUND(E45*G45,0)) -> 0 | O45: =IF(G45="",0,E45-N45) -> 0 | P45: =IF(N45=0,0,N45*'Product Data and EFs'!L24/1000/'Product Data and EFs'!F24) -> 0 | Q45: =IF(O45=0,0,O45*'Product Data and EFs'!K24/1000/'Product Data and EFs'!F24) -> 0 | R45: =IF(G45="",0,SUM(P45:Q45)) -> 0 | S45: =IF(R45=0,0,(E45*'Product Data and EFs'!K24/1000/'Product Data and EFs'!F24-'Product Emissions Analysis'!R45)) -> 0 | T45: =IF(G45="",0,L45-R45) -> 0
D46: Dehumidifiers | E46: =IF(E16="","",E16) ->  | H46: =IF(F46="",0,ROUND(E46*F46,0)) -> 0 | I46: =IF(F46="",0,E46-H46) -> 0 | J46: =IF(H46=0,0,H46*'Product Data and EFs'!L25/1000/'Product Data and EFs'!F25) -> 0 | K46: =IF(I46=0,0,I46*'Product Data and EFs'!K25/1000/'Product Data and EFs'!F25) -> 0 | L46: =IF(F46="",0,SUM(J46:K46)) -> 0 | M46: =IF(L46=0,0,(E46*'Product Data and EFs'!K25/1000/'Product Data and EFs'!F25-'Product Emissions Analysis'!L46)) -> 0 | N46: =IF(G46="",0,ROUND(E46*G46,0)) -> 0 | O46: =IF(G46="",0,E46-N46) -> 0 | P46: =IF(N46=0,0,N46*'Product Data and EFs'!L25/1000/'Product Data and EFs'!F25) -> 0 | Q46: =IF(O46=0,0,O46*'Product Data and EFs'!K25/1000/'Product Data and EFs'!F25) -> 0 | R46: =IF(G46="",0,SUM(P46:Q46)) -> 0 | S46: =IF(R46=0,0,(E46*'Product Data and EFs'!K25/1000/'Product Data and EFs'!F25-'Product Emissions Analysis'!R46)) -> 0 | T46: =IF(G46="",0,L46-R46) -> 0
D47: Air Cleaners | E47: =IF(E17="","",E17) ->  | H47: 0 | I47: 0 | J47: =IF(H47=0,0,H47*'Product Data and EFs'!L26/1000/'Product Data and EFs'!F26) -> 0 | K47: =IF(I47=0,0,I47*'Product Data and EFs'!K26/1000/'Product Data and EFs'!F26) -> 0 | L47: 0 | M47: =IF(L47=0,0,(E47*'Product Data and EFs'!K26/1000/'Product Data and EFs'!F26-'Product Emissions Analysis'!L47)) -> 0 | N47: 0 | O47: 0 | P47: =IF(N47=0,0,N47*'Product Data and EFs'!L26/1000/'Product Data and EFs'!F26) -> 0 | Q47: =IF(O47=0,0,O47*'Product Data and EFs'!K26/1000/'Product Data and EFs'!F26) -> 0 | R47: 0 | S47: =IF(R47=0,0,(E47*'Product Data and EFs'!K26/1000/'Product Data and EFs'!F26-'Product Emissions Analysis'!R47)) -> 0 | T47: 0
D48: Ventilating Fans - Bathroom Fans | E48: =IF(E18="","",E18) ->  | H48: 0 | I48: 0 | J48: =IF(H48=0,0,H48*'Product Data and EFs'!L27/1000/'Product Data and EFs'!F27) -> 0 | K48: =IF(I48=0,0,I48*'Product Data and EFs'!K27/1000/'Product Data and EFs'!F27) -> 0 | L48: 0 | M48: =IF(L48=0,0,(E48*'Product Data and EFs'!K27/1000/'Product Data and EFs'!F27-'Product Emissions Analysis'!L48)) -> 0 | N48: 0 | O48: 0 | P48: =IF(N48=0,0,N48*'Product Data and EFs'!L27/1000/'Product Data and EFs'!F27) -> 0 | Q48: =IF(O48=0,0,O48*'Product Data and EFs'!K27/1000/'Product Data and EFs'!F27) -> 0 | R48: 0 | S48: =IF(R48=0,0,(E48*'Product Data and EFs'!K27/1000/'Product Data and EFs'!F27-'Product Emissions Analysis'!R48)) -> 0 | T48: 0
D49: Ventilating Fans - Inline Fans | E49: =IF(E19="","",E19) ->  | H49: 0 | I49: 0 | J49: =IF(H49=0,0,H49*'Product Data and EFs'!L28/1000/'Product Data and EFs'!F28) -> 0 | K49: =IF(I49=0,0,I49*'Product Data and EFs'!K28/1000/'Product Data and EFs'!F28) -> 0 | L49: 0 | M49: =IF(L49=0,0,(E49*'Product Data and EFs'!K28/1000/'Product Data and EFs'!F28-'Product Emissions Analysis'!L49)) -> 0 | N49: 0 | O49: 0 | P49: =IF(N49=0,0,N49*'Product Data and EFs'!L28/1000/'Product Data and EFs'!F28) -> 0 | Q49: =IF(O49=0,0,O49*'Product Data and EFs'!K28/1000/'Product Data and EFs'!F28) -> 0 | R49: 0 | S49: =IF(R49=0,0,(E49*'Product Data and EFs'!K28/1000/'Product Data and EFs'!F28-'Product Emissions Analysis'!R49)) -> 0 | T49: 0
D50: Ventilating Fans - Range Hoods | E50: =IF(E20="","",E20) ->  | H50: 0 | I50: 0 | J50: =IF(H50=0,0,H50*'Product Data and EFs'!L29/1000/'Product Data and EFs'!F29) -> 0 | K50: =IF(I50=0,0,I50*'Product Data and EFs'!K29/1000/'Product Data and EFs'!F29) -> 0 | L50: 0 | M50: =IF(L50=0,0,(E50*'Product Data and EFs'!K29/1000/'Product Data and EFs'!F29-'Product Emissions Analysis'!L50)) -> 0 | N50: 0 | O50: 0 | P50: =IF(N50=0,0,N50*'Product Data and EFs'!L29/1000/'Product Data and EFs'!F29) -> 0 | Q50: =IF(O50=0,0,O50*'Product Data and EFs'!K29/1000/'Product Data and EFs'!F29) -> 0 | R50: 0 | S50: =IF(R50=0,0,(E50*'Product Data and EFs'!K29/1000/'Product Data and EFs'!F29-'Product Emissions Analysis'!R50)) -> 0 | T50: 0
D51: Standard Ceiling Fan | E51: =IF(E21="","",E21) ->  | H51: 0 | I51: 0 | J51: =IF(H51=0,0,H51*'Product Data and EFs'!L30/1000/'Product Data and EFs'!F30) -> 0 | K51: =IF(I51=0,0,I51*'Product Data and EFs'!K30/1000/'Product Data and EFs'!F30) -> 0 | L51: 0 | M51: =IF(L51=0,0,(E51*'Product Data and EFs'!K30/1000/'Product Data and EFs'!F30-'Product Emissions Analysis'!L51)) -> 0 | N51: 0 | O51: 0 | P51: =IF(N51=0,0,N51*'Product Data and EFs'!L30/1000/'Product Data and EFs'!F30) -> 0 | Q51: =IF(O51=0,0,O51*'Product Data and EFs'!K30/1000/'Product Data and EFs'!F30) -> 0 | R51: 0 | S51: =IF(R51=0,0,(E51*'Product Data and EFs'!K30/1000/'Product Data and EFs'!F30-'Product Emissions Analysis'!R51)) -> 0 | T51: 0
D52: Hugger Ceiling Fan | E52: =IF(E22="","",E22) ->  | H52: 0 | I52: 0 | J52: =IF(H52=0,0,H52*'Product Data and EFs'!L31/1000/'Product Data and EFs'!F31) -> 0 | K52: =IF(I52=0,0,I52*'Product Data and EFs'!K31/1000/'Product Data and EFs'!F31) -> 0 | L52: 0 | M52: =IF(L52=0,0,(E52*'Product Data and EFs'!K31/1000/'Product Data and EFs'!F31-'Product Emissions Analysis'!L52)) -> 0 | N52: 0 | O52: 0 | P52: =IF(N52=0,0,N52*'Product Data and EFs'!L31/1000/'Product Data and EFs'!F31) -> 0 | Q52: =IF(O52=0,0,O52*'Product Data and EFs'!K31/1000/'Product Data and EFs'!F31) -> 0 | R52: 0 | S52: =IF(R52=0,0,(E52*'Product Data and EFs'!K31/1000/'Product Data and EFs'!F31-'Product Emissions Analysis'!R52)) -> 0 | T52: 0
D53: Standard Ceiling Fan with Light Kit | E53: =IF(E23="","",E23) ->  | H53: 0 | I53: 0 | J53: =IF(H53=0,0,H53*'Product Data and EFs'!L32/1000/'Product Data and EFs'!F32) -> 0 | K53: =IF(I53=0,0,I53*'Product Data and EFs'!K32/1000/'Product Data and EFs'!F32) -> 0 | L53: 0 | M53: =IF(L53=0,0,(E53*'Product Data and EFs'!K32/1000/'Product Data and EFs'!F32-'Product Emissions Analysis'!L53)) -> 0 | N53: 0 | O53: 0 | P53: =IF(N53=0,0,N53*'Product Data and EFs'!L32/1000/'Product Data and EFs'!F32) -> 0 | Q53: =IF(O53=0,0,O53*'Product Data and EFs'!K32/1000/'Product Data and EFs'!F32) -> 0 | R53: 0 | S53: =IF(R53=0,0,(E53*'Product Data and EFs'!K32/1000/'Product Data and EFs'!F32-'Product Emissions Analysis'!R53)) -> 0 | T53: 0
D54: Hugger Ceiling Fan with Light Kit | E54: =IF(E24="","",E24) ->  | H54: 0 | I54: 0 | J54: =IF(H54=0,0,H54*'Product Data and EFs'!L33/1000/'Product Data and EFs'!F33) -> 0 | K54: =IF(I54=0,0,I54*'Product Data and EFs'!K33/1000/'Product Data and EFs'!F33) -> 0 | L54: 0 | M54: =IF(L54=0,0,(E54*'Product Data and EFs'!K33/1000/'Product Data and EFs'!F33-'Product Emissions Analysis'!L54)) -> 0 | N54: 0 | O54: 0 | P54: =IF(N54=0,0,N54*'Product Data and EFs'!L33/1000/'Product Data and EFs'!F33) -> 0 | Q54: =IF(O54=0,0,O54*'Product Data and EFs'!K33/1000/'Product Data and EFs'!F33) -> 0 | R54: 0 | S54: =IF(R54=0,0,(E54*'Product Data and EFs'!K33/1000/'Product Data and EFs'!F33-'Product Emissions Analysis'!R54)) -> 0 | T54: 0
D55: Dishwashers - Standard | E55: =IF(E25="","",E25) ->  | H55: 0 | I55: 0 | J55: =IF(H55=0,0,H55*'Product Data and EFs'!L34/1000/'Product Data and EFs'!F34) -> 0 | K55: =IF(I55=0,0,I55*'Product Data and EFs'!K34/1000/'Product Data and EFs'!F34) -> 0 | L55: 0 | M55: =IF(L55=0,0,(E55*'Product Data and EFs'!K34/1000/'Product Data and EFs'!F34-'Product Emissions Analysis'!L55)) -> 0 | N55: 0 | O55: 0 | P55: =IF(N55=0,0,N55*'Product Data and EFs'!L34/1000/'Product Data and EFs'!F34) -> 0 | Q55: =IF(O55=0,0,O55*'Product Data and EFs'!K34/1000/'Product Data and EFs'!F34) -> 0 | R55: 0 | S55: =IF(R55=0,0,(E55*'Product Data and EFs'!K34/1000/'Product Data and EFs'!F34-'Product Emissions Analysis'!R55)) -> 0 | T55: 0
D56: Dishwashers - Compact | E56: =IF(E26="","",E26) ->  | H56: 0 | I56: 0 | J56: =IF(H56=0,0,H56*'Product Data and EFs'!L35/1000/'Product Data and EFs'!F35) -> 0 | K56: =IF(I56=0,0,I56*'Product Data and EFs'!K35/1000/'Product Data and EFs'!F35) -> 0 | L56: 0 | M56: =IF(L56=0,0,(E56*'Product Data and EFs'!K35/1000/'Product Data and EFs'!F35-'Product Emissions Analysis'!L56)) -> 0 | N56: 0 | O56: 0 | P56: =IF(N56=0,0,N56*'Product Data and EFs'!L35/1000/'Product Data and EFs'!F35) -> 0 | Q56: =IF(O56=0,0,O56*'Product Data and EFs'!K35/1000/'Product Data and EFs'!F35) -> 0 | R56: 0 | S56: =IF(R56=0,0,(E56*'Product Data and EFs'!K35/1000/'Product Data and EFs'!F35-'Product Emissions Analysis'!R56)) -> 0 | T56: 0
D57: Refrigerators - Top Freezer | E57: =IF(E27="","",E27) ->  | H57: 0 | I57: 0 | J57: =IF(H57=0,0,H57*'Product Data and EFs'!L36/1000/'Product Data and EFs'!F36) -> 0 | K57: =IF(I57=0,0,I57*'Product Data and EFs'!K36/1000/'Product Data and EFs'!F36) -> 0 | L57: 0 | M57: =IF(L57=0,0,(E57*'Product Data and EFs'!K36/1000/'Product Data and EFs'!F36-'Product Emissions Analysis'!L57)) -> 0 | N57: 0 | O57: 0 | P57: =IF(N57=0,0,N57*'Product Data and EFs'!L36/1000/'Product Data and EFs'!F36) -> 0 | Q57: =IF(O57=0,0,O57*'Product Data and EFs'!K36/1000/'Product Data and EFs'!F36) -> 0 | R57: 0 | S57: =IF(R57=0,0,(E57*'Product Data and EFs'!K36/1000/'Product Data and EFs'!F36-'Product Emissions Analysis'!R57)) -> 0 | T57: 0
D58: Refrigerators - Bottom Freezer | E58: =IF(E28="","",E28) ->  | H58: 0 | I58: 0 | J58: =IF(H58=0,0,H58*'Product Data and EFs'!L37/1000/'Product Data and EFs'!F37) -> 0 | K58: =IF(I58=0,0,I58*'Product Data and EFs'!K37/1000/'Product Data and EFs'!F37) -> 0 | L58: 0 | M58: =IF(L58=0,0,(E58*'Product Data and EFs'!K37/1000/'Product Data and EFs'!F37-'Product Emissions Analysis'!L58)) -> 0 | N58: 0 | O58: 0 | P58: =IF(N58=0,0,N58*'Product Data and EFs'!L37/1000/'Product Data and EFs'!F37) -> 0 | Q58: =IF(O58=0,0,O58*'Product Data and EFs'!K37/1000/'Product Data and EFs'!F37) -> 0 | R58: 0 | S58: =IF(R58=0,0,(E58*'Product Data and EFs'!K37/1000/'Product Data and EFs'!F37-'Product Emissions Analysis'!R58)) -> 0 | T58: 0
D59: Refrigerators - Side by Side | E59: =IF(E29="","",E29) ->  | H59: 0 | I59: 0 | J59: =IF(H59=0,0,H59*'Product Data and EFs'!L38/1000/'Product Data and EFs'!F38) -> 0 | K59: =IF(I59=0,0,I59*'Product Data and EFs'!K38/1000/'Product Data and EFs'!F38) -> 0 | L59: 0 | M59: =IF(L59=0,0,(E59*'Product Data and EFs'!K38/1000/'Product Data and EFs'!F38-'Product Emissions Analysis'!L59)) -> 0 | N59: 0 | O59: 0 | P59: =IF(N59=0,0,N59*'Product Data and EFs'!L38/1000/'Product Data and EFs'!F38) -> 0 | Q59: =IF(O59=0,0,O59*'Product Data and EFs'!K38/1000/'Product Data and EFs'!F38) -> 0 | R59: 0 | S59: =IF(R59=0,0,(E59*'Product Data and EFs'!K38/1000/'Product Data and EFs'!F38-'Product Emissions Analysis'!R59)) -> 0 | T59: 0
D60: Freezers - Chest Freezer | E60: =IF(E30="","",E30) ->  | H60: 0 | I60: 0 | J60: =IF(H60=0,0,H60*'Product Data and EFs'!L39/1000/'Product Data and EFs'!F39) -> 0 | K60: =IF(I60=0,0,I60*'Product Data and EFs'!K39/1000/'Product Data and EFs'!F39) -> 0 | L60: 0 | M60: =IF(L60=0,0,(E60*'Product Data and EFs'!K39/1000/'Product Data and EFs'!F39-'Product Emissions Analysis'!L60)) -> 0 | N60: 0 | O60: 0 | P60: =IF(N60=0,0,N60*'Product Data and EFs'!L39/1000/'Product Data and EFs'!F39) -> 0 | Q60: =IF(O60=0,0,O60*'Product Data and EFs'!K39/1000/'Product Data and EFs'!F39) -> 0 | R60: 0 | S60: =IF(R60=0,0,(E60*'Product Data and EFs'!K39/1000/'Product Data and EFs'!F39-'Product Emissions Analysis'!R60)) -> 0 | T60: 0
D61: Freezers - Upright Freezer | E61: =IF(E31="","",E31) ->  | H61: 0 | I61: 0 | J61: =IF(H61=0,0,H61*'Product Data and EFs'!L40/1000/'Product Data and EFs'!F40) -> 0 | K61: =IF(I61=0,0,I61*'Product Data and EFs'!K40/1000/'Product Data and EFs'!F40) -> 0 | L61: 0 | M61: =IF(L61=0,0,(E61*'Product Data and EFs'!K40/1000/'Product Data and EFs'!F40-'Product Emissions Analysis'!L61)) -> 0 | N61: 0 | O61: 0 | P61: =IF(N61=0,0,N61*'Product Data and EFs'!L40/1000/'Product Data and EFs'!F40) -> 0 | Q61: =IF(O61=0,0,O61*'Product Data and EFs'!K40/1000/'Product Data and EFs'!F40) -> 0 | R61: 0 | S61: =IF(R61=0,0,(E61*'Product Data and EFs'!K40/1000/'Product Data and EFs'!F40-'Product Emissions Analysis'!R61)) -> 0 | T61: 0
D62: Clothes Washers - Top Loading | E62: =IF(E32="","",E32) ->  | H62: 0 | I62: 0 | J62: =IF(H62=0,0,H62*'Product Data and EFs'!L41/1000/'Product Data and EFs'!F41) -> 0 | K62: =IF(I62=0,0,I62*'Product Data and EFs'!K41/1000/'Product Data and EFs'!F41) -> 0 | L62: 0 | M62: =IF(L62=0,0,(E62*'Product Data and EFs'!K41/1000/'Product Data and EFs'!F41-'Product Emissions Analysis'!L62)) -> 0 | N62: 0 | O62: 0 | P62: =IF(N62=0,0,N62*'Product Data and EFs'!L41/1000/'Product Data and EFs'!F41) -> 0 | Q62: =IF(O62=0,0,O62*'Product Data and EFs'!K41/1000/'Product Data and EFs'!F41) -> 0 | R62: 0 | S62: =IF(R62=0,0,(E62*'Product Data and EFs'!K41/1000/'Product Data and EFs'!F41-'Product Emissions Analysis'!R62)) -> 0 | T62: 0
D63: Clothes Washers - Front Loading | E63: =IF(E33="","",E33) ->  | H63: 0 | I63: 0 | J63: =IF(H63=0,0,H63*'Product Data and EFs'!L42/1000/'Product Data and EFs'!F42) -> 0 | K63: =IF(I63=0,0,I63*'Product Data and EFs'!K42/1000/'Product Data and EFs'!F42) -> 0 | L63: 0 | M63: =IF(L63=0,0,(E63*'Product Data and EFs'!K42/1000/'Product Data and EFs'!F42-'Product Emissions Analysis'!L63)) -> 0 | N63: 0 | O63: 0 | P63: =IF(N63=0,0,N63*'Product Data and EFs'!L42/1000/'Product Data and EFs'!F42) -> 0 | Q63: =IF(O63=0,0,O63*'Product Data and EFs'!K42/1000/'Product Data and EFs'!F42) -> 0 | R63: 0 | S63: =IF(R63=0,0,(E63*'Product Data and EFs'!K42/1000/'Product Data and EFs'!F42-'Product Emissions Analysis'!R63)) -> 0 | T63: 0
D64: Clothes Dryers - Standard Electric Dryer (Vented Ventless) | E64: =IF(E34="","",E34) ->  | H64: 0 | I64: 0 | J64: =IF(H64=0,0,H64*'Product Data and EFs'!L43/1000/'Product Data and EFs'!F43) -> 0 | K64: =IF(I64=0,0,I64*'Product Data and EFs'!K43/1000/'Product Data and EFs'!F43) -> 0 | L64: 0 | M64: =IF(L64=0,0,(E64*'Product Data and EFs'!K43/1000/'Product Data and EFs'!F43-'Product Emissions Analysis'!L64)) -> 0 | N64: 0 | O64: 0 | P64: =IF(N64=0,0,N64*'Product Data and EFs'!L43/1000/'Product Data and EFs'!F43) -> 0 | Q64: =IF(O64=0,0,O64*'Product Data and EFs'!K43/1000/'Product Data and EFs'!F43) -> 0 | R64: 0 | S64: =IF(R64=0,0,(E64*'Product Data and EFs'!K43/1000/'Product Data and EFs'!F43-'Product Emissions Analysis'!R64)) -> 0 | T64: 0
D65: Clothes Dryers - Gas Dryers | E65: =IF(E35="","",E35) ->  | H65: 0 | I65: 0 | J65: =IF(H65=0,0,H65*'Product Data and EFs'!L44/1000/'Product Data and EFs'!F44) -> 0 | K65: =IF(I65=0,0,I65*'Product Data and EFs'!K44/1000/'Product Data and EFs'!F44) -> 0 | L65: 0 | M65: =IF(L65=0,0,(E65*'Product Data and EFs'!K44/1000/'Product Data and EFs'!F44-'Product Emissions Analysis'!L65)) -> 0 | N65: 0 | O65: 0 | P65: =IF(N65=0,0,N65*'Product Data and EFs'!L44/1000/'Product Data and EFs'!F44) -> 0 | Q65: =IF(O65=0,0,O65*'Product Data and EFs'!K44/1000/'Product Data and EFs'!F44) -> 0 | R65: 0 | S65: =IF(R65=0,0,(E65*'Product Data and EFs'!K44/1000/'Product Data and EFs'!F44-'Product Emissions Analysis'!R65)) -> 0 | T65: 0
D66: Water Heaters - Gas Storage Water Heater | E66: =IF(E36="","",E36) ->  | H66: 0 | I66: 0 | J66: =IF(H66=0,0,H66*'Product Data and EFs'!L45/1000/'Product Data and EFs'!F45) -> 0 | K66: =IF(I66=0,0,I66*'Product Data and EFs'!K45/1000/'Product Data and EFs'!F45) -> 0 | L66: 0 | M66: =IF(L66=0,0,(E66*'Product Data and EFs'!K45/1000/'Product Data and EFs'!F45-'Product Emissions Analysis'!L66)) -> 0 | N66: 0 | O66: 0 | P66: =IF(N66=0,0,N66*'Product Data and EFs'!L45/1000/'Product Data and EFs'!F45) -> 0 | Q66: =IF(O66=0,0,O66*'Product Data and EFs'!K45/1000/'Product Data and EFs'!F45) -> 0 | R66: 0 | S66: =IF(R66=0,0,(E66*'Product Data and EFs'!K45/1000/'Product Data and EFs'!F45-'Product Emissions Analysis'!R66)) -> 0 | T66: 0
D67: Water Heaters - Electric (Heat Pump) Water Heater | E67: =IF(E37="","",E37) ->  | H67: 0 | I67: 0 | J67: =IF(H67=0,0,H67*'Product Data and EFs'!L46/1000/'Product Data and EFs'!F46) -> 0 | K67: =IF(I67=0,0,I67*'Product Data and EFs'!K46/1000/'Product Data and EFs'!F46) -> 0 | L67: 0 | M67: =IF(L67=0,0,(E67*'Product Data and EFs'!K46/1000/'Product Data and EFs'!F46-'Product Emissions Analysis'!L67)) -> 0 | N67: 0 | O67: 0 | P67: =IF(N67=0,0,N67*'Product Data and EFs'!L46/1000/'Product Data and EFs'!F46) -> 0 | Q67: =IF(O67=0,0,O67*'Product Data and EFs'!K46/1000/'Product Data and EFs'!F46) -> 0 | R67: 0 | S67: =IF(R67=0,0,(E67*'Product Data and EFs'!K46/1000/'Product Data and EFs'!F46-'Product Emissions Analysis'!R67)) -> 0 | T67: 0
D68: Water Heaters - Tankless Gas Water Heater | E68: =IF(E38="","",E38) ->  | H68: 0 | I68: 0 | J68: =IF(H68=0,0,H68*'Product Data and EFs'!L47/1000/'Product Data and EFs'!F47) -> 0 | K68: =IF(I68=0,0,I68*'Product Data and EFs'!K47/1000/'Product Data and EFs'!F47) -> 0 | L68: 0 | M68: =IF(L68=0,0,(E68*'Product Data and EFs'!K47/1000/'Product Data and EFs'!F47-'Product Emissions Analysis'!L68)) -> 0 | N68: 0 | O68: 0 | P68: =IF(N68=0,0,N68*'Product Data and EFs'!L47/1000/'Product Data and EFs'!F47) -> 0 | Q68: =IF(O68=0,0,O68*'Product Data and EFs'!K47/1000/'Product Data and EFs'!F47) -> 0 | R68: 0 | S68: =IF(R68=0,0,(E68*'Product Data and EFs'!K47/1000/'Product Data and EFs'!F47-'Product Emissions Analysis'!R68)) -> 0 | T68: 0
D69: TOTAL | E69: =E39 -> 0 | F69: =F39 -> NA | G69: NA | H69: =SUM(H45:H68) -> 0 | I69: 0 | J69: 0 | K69: 0 | L69: 0 | M69: 0 | N69: 0 | O69: 0 | P69: 0 | Q69: 0 | R69: 0 | S69: 0 | T69: 0
D73: Residential Lighting
D75: NOTE: LIGHTBULBS ARE A UNIQUE PRODUCT TYPE WITH RESPECT TO SCOPE 3 USE OF SOLD PRODUCT REPORTING. RESULTS SEEN WILL DIFFER FROM OTHER PRODUCT TYPES IN THIS TOOL. - Because LEDs and CFLs have longer lifetimes than halogens (13.7 years, 9.1 years, 0.9 years, respectively), lifetime total product use emissions increase with increased sale of LEDs or CFLs. Retailers must report in their scope 3 inventory actual lifetime emissions associated with the products they sell in the reporting year. However, retailers can consider also reporting annual emissions associated with the lighbulbs they sell (i.e., the emissions that result from sold lightbulbs in the reporting year). Annual emissions will decrease with increased sale of LEDs of CFLs. Retailers can additionally report the lifetime and annual emissions savings associated with their LED/CFL sales compared to only selling halogens to demonstrate commitment to decreasing emissions. Lifetime and annual emissions savings will increase with increased sale of LEDs or CFLs. - Lifetime emissions savings from LED/CFL sales shown represent emissions that would occur if a retailer only sold halogens and no LEDs or CFLs. Because halogens have a much shorter lifespan than LEDs or CFLs (0.9 years to 13.7 years and 9.1 years, respectively), lifetime emissions savings are determined by scaling up the number of halogens to match the lifetimes of LEDs and CFLs. For LEDs the scale up factor is 15.2 (13.7/0.9=15.2) and for CFLs the scale up factor is 10.1 (9.1/0.9=10.1). In other words, over the lifetime of a single LED bulb, 15.2 halogens would need to be purchased; and over the lifetime of a single CFL bulb, 10.1 halogens would need to be purchased. Annual emissions savings do not require a scale-up factor.
D78: Lightbulbs
D80: Lifetime | J80: Current | O80: Increased ENERGY STAR Sales
D81: Product Type | E81: Total Unit Sales | F81: % of Current Sales that are LED | G81: % of Current Sales that are CFL | H81: Enter a Higher % of LED Sales for Analysis | I81: Enter New % of CFL Sales for Analysis | J81: Total LED Sales | K81: Total CFL Sales | L81: Total Halogen Sales | M81: Lifetime Total Product Use Emissions (Metric Tons CO2e) | N81: Lifetime Emissions Savings from LED/CFL Product Sales (Metric Tons CO2e) | O81: Total LED Sales | P81: Total CFL Sales | Q81: Total Halogen Sales | R81: Lifetime Total Product Use Emissions (Metric Tons CO2e) | S81: Lifetime Emissions Savings from LED/CFL Product Sales (Metric Tons CO2e) | T81: Additional Lifetime Emissions Savings Achieved with Increased LED/CFL Sales (Metric Tons CO2e)
D82: Lightbulbs | J82: =IF(F82="",0,ROUND(E82*F82,0)) -> 0 | K82: =IF(G82="",0,ROUND(E82*G82,0)) -> 0 | L82: =IF(F82="",0,E82-J82-K82) -> 0 | M82: =IF(J82=0,0,J82*'Product Data and EFs'!H54/1000+'Product Emissions Analysis'!K82*'Product Data and EFs'!H55/1000+'Product Emissions Analysis'!L82*'Product Data and EFs'!H53/1000) -> 0 | N82: =IF(M82=0,0,J82*15.2*'Product Data and EFs'!H53/1000+'Product Emissions Analysis'!K82*10.1*'Product Data and EFs'!H53/1000+'Product Emissions Analysis'!L82*'Product Data and EFs'!H53/1000-'Product Emissions Analysis'!M82) -> 0 | O82: =IF(H82="",0,ROUND(E82*H82,0)) -> 0 | P82: =IF(I82="",0,ROUND(E82*I82,0)) -> 0 | Q82: =IF(H82="",0,E82-O82-P82) -> 0 | R82: =IF(O82=0,0,O82*'Product Data and EFs'!H54/1000+'Product Emissions Analysis'!P82*'Product Data and EFs'!H55/1000+'Product Emissions Analysis'!Q82*'Product Data and EFs'!H53/1000) -> 0 | S82: =IF(R82=0,0,O82*15.2*'Product Data and EFs'!H53/1000+'Product Emissions Analysis'!P82*10.1*'Product Data and EFs'!H53/1000+'Product Emissions Analysis'!Q82*'Product Data and EFs'!H53/1000-'Product Emissions Analysis'!R82) -> 0 | T82: =IF(H82="",0,S82-N82) -> 0
D85: Annual | J85: Current | O85: Increased ENERGY STAR Sales
D86: Product Type | E86: Total Unit Sales | F86: % of Current Sales that are LED | G86: % of Current Sales that are CFL | H86: Enter a Higher % of LED Sales for Analysis | I86: Enter New % of CFL Sales for Analysis | J86: Total LED Sales | K86: Total CFL Sales | L86: Total Halogen Sales | M86: Annual Total Product Use Emissions (Metric Tons CO2e) | N86: Annual Emissions Savings from LED/CFL Product Sales (Metric Tons CO2e) | O86: Total LED Sales | P86: Total CFL Sales | Q86: Total Halogen Sales | R86: Annual Total Product Use Emissions (Metric Tons CO2e) | S86: Annual Emissions Savings from LED/CFL Product Sales (Metric Tons CO2e) | T86: Additional Annual Emissions Savings Achieved with Increased LED/CFL Sales (Metric Tons CO2e)
D87: Lightbulbs | E87: =IF(E82="","",E82) ->  | F87: =IF(F82="","",F82) ->  | G87: =IF(G82="","",G82) ->  | H87: =IF(H82="","",H82) ->  | I87: =IF(I82="","",I82) ->  | J87: =IF(F87="",0,ROUND(E87*F87,0)) -> 0 | K87: =IF(G87="",0,ROUND(E87*G87,0)) -> 0 | L87: =IF(F87="",0,E87-J87-K87) -> 0 | M87: =IF(J87=0,0,J87*'Product Data and EFs'!H54/1000/'Product Data and EFs'!F54+'Product Emissions Analysis'!K87*'Product Data and EFs'!H55/1000/'Product Data and EFs'!F55+'Product Emissions Analysis'!L87*'Product Data and EFs'!H53/1000/'Product Data and EFs'!F53) -> 0 | N87: =IF(M87=0,0,E87*'Product Data and EFs'!H53/1000-'Product Emissions Analysis'!M87) -> 0 | O87: =IF(H87="",0,ROUND(E87*H87,0)) -> 0 | P87: =IF(I87="",0,ROUND(E87*I87,0)) -> 0 | Q87: =IF(H87="",0,E87-O87-P87) -> 0 | R87: =IF(O87=0,0,O87*'Product Data and EFs'!H54/1000/'Product Data and EFs'!F54+'Product Emissions Analysis'!P87*'Product Data and EFs'!H55/1000/'Product Data and EFs'!F55+'Product Emissions Analysis'!Q87*'Product Data and EFs'!H53/1000/'Product Data and EFs'!F53) -> 0 | S87: =IF(R87=0,0,E87*'Product Data and EFs'!H53/1000-'Product Emissions Analysis'!R87) -> 0 | T87: =IF(H87="",0,S87-N87) -> 0
D89: Light Fixtures
D91: Lifetime | H91: Current | N91: Increased ENERGY STAR Sales
D92: Product Type | E92: Total Unit Sales | F92: % of Current Sales that are ENERGY STAR | G92: Enter a Higher % of Sales that are ENERGY STAR for Analysis | H92: Total ENERGY STAR Product Sales | I92: Total Standard Product Sales | J92: Lifetime Product Use Emissions - ENERGY STAR (Metric Tons CO2e) | K92: Lifetime Product Use Emissions - Standard (Metric Tons CO2e) | L92: Lifetime Total Product Use Emissions (Metric Tons CO2e) | M92: Lifetime Emissions Savings from ENERGY STAR Product Sales (Metric Tons CO2e) | N92: Total ENERGY STAR Product Sales | O92: Total Standard Product Sales | P92: Lifetime Product Use Emissions - ENERGY STAR (Metric Tons CO2e) | Q92: Lifetime Product Use Emissions - Standard (Metric Tons CO2e) | R92: Lifetime Total Product Use Emissions (Metric Tons CO2e) | S92: Lifetime Emissions Savings from ENERGY STAR Product Sales (Metric Tons CO2e) | T92: Additional Lifetime Emissions Savings Achieved with Increased ENERGY STAR Sales (Metric Tons CO2e)
D93: Cove Mount | H93: =IF(F93="",0,ROUND(E93*F93,0)) -> 0 | I93: =IF(F93="",0,E93-H93) -> 0 | J93: =IF(H93=0,0,H93*'Product Data and EFs'!J59) -> 0 | K93: =IF(I93=0,0,I93*'Product Data and EFs'!I59) -> 0 | L93: =IF(F93=0,0,SUM(J93:K93)) -> 0 | M93: =IF(F93=0,0,(E93*'Product Data and EFs'!I59/1000-'Product Emissions Analysis'!L93)) -> 0 | N93: =IF(G93="",0,ROUND(E93*G93,0)) -> 0 | O93: =IF(G93="",0,E93-N93) -> 0 | P93: =IF(N93=0,0,N93*'Product Data and EFs'!J59/1000) -> 0 | Q93: =IF(O93=0,0,O93*'Product Data and EFs'!I59/1000) -> 0 | R93: =IF(G93="",0,SUM(P93:Q93)) -> 0 | S93: =IF(R93=0,0,(E93*'Product Data and EFs'!I59/1000-'Product Emissions Analysis'!R93)) -> 0 | T93: =IF(G93="",0,L93-R93) -> 0
D94: Downlights ≤ 4.5" | H94: =IF(F94="",0,ROUND(E94*F94,0)) -> 0 | I94: =IF(F94="",0,E94-H94) -> 0 | J94: =IF(H94=0,0,H94*'Product Data and EFs'!J60) -> 0 | K94: =IF(I94=0,0,I94*'Product Data and EFs'!I60) -> 0 | L94: =IF(F94=0,0,SUM(J94:K94)) -> 0 | M94: =IF(F94=0,0,(E94*'Product Data and EFs'!I60/1000-'Product Emissions Analysis'!L94)) -> 0 | N94: =IF(G94="",0,ROUND(E94*G94,0)) -> 0 | O94: =IF(G94="",0,E94-N94) -> 0 | P94: =IF(N94=0,0,N94*'Product Data and EFs'!J60/1000) -> 0 | Q94: =IF(O94=0,0,O94*'Product Data and EFs'!I60/1000) -> 0 | R94: =IF(G94="",0,SUM(P94:Q94)) -> 0 | S94: =IF(R94=0,0,(E94*'Product Data and EFs'!I60/1000-'Product Emissions Analysis'!R94)) -> 0 | T94: =IF(G94="",0,L94-R94) -> 0
D95: Downlights > 4.5" | H95: 0 | I95: 0 | J95: =IF(H95=0,0,H95*'Product Data and EFs'!J61) -> 0 | K95: =IF(I95=0,0,I95*'Product Data and EFs'!I61) -> 0 | L95: 0 | M95: =IF(F95=0,0,(E95*'Product Data and EFs'!I61/1000-'Product Emissions Analysis'!L95)) -> 0 | N95: 0 | O95: 0 | P95: =IF(N95=0,0,N95*'Product Data and EFs'!J61/1000) -> 0 | Q95: =IF(O95=0,0,O95*'Product Data and EFs'!I61/1000) -> 0 | R95: 0 | S95: =IF(R95=0,0,(E95*'Product Data and EFs'!I61/1000-'Product Emissions Analysis'!R95)) -> 0 | T95: 0
D96: Downlight Retrofits ≤ 4.5" | H96: 0 | I96: 0 | J96: =IF(H96=0,0,H96*'Product Data and EFs'!J62) -> 0 | K96: =IF(I96=0,0,I96*'Product Data and EFs'!I62) -> 0 | L96: 0 | M96: =IF(F96=0,0,(E96*'Product Data and EFs'!I62/1000-'Product Emissions Analysis'!L96)) -> 0 | N96: 0 | O96: 0 | P96: =IF(N96=0,0,N96*'Product Data and EFs'!J62/1000) -> 0 | Q96: =IF(O96=0,0,O96*'Product Data and EFs'!I62/1000) -> 0 | R96: 0 | S96: =IF(R96=0,0,(E96*'Product Data and EFs'!I62/1000-'Product Emissions Analysis'!R96)) -> 0 | T96: 0
D97: Downlight Retrofits > 4.5" | H97: 0 | I97: 0 | J97: =IF(H97=0,0,H97*'Product Data and EFs'!J63) -> 0 | K97: =IF(I97=0,0,I97*'Product Data and EFs'!I63) -> 0 | L97: 0 | M97: =IF(F97=0,0,(E97*'Product Data and EFs'!I63/1000-'Product Emissions Analysis'!L97)) -> 0 | N97: 0 | O97: 0 | P97: =IF(N97=0,0,N97*'Product Data and EFs'!J63/1000) -> 0 | Q97: =IF(O97=0,0,O97*'Product Data and EFs'!I63/1000) -> 0 | R97: 0 | S97: =IF(R97=0,0,(E97*'Product Data and EFs'!I63/1000-'Product Emissions Analysis'!R97)) -> 0 | T97: 0
D98: Accent Lights | H98: 0 | I98: 0 | J98: =IF(H98=0,0,H98*'Product Data and EFs'!J64) -> 0 | K98: =IF(I98=0,0,I98*'Product Data and EFs'!I64) -> 0 | L98: 0 | M98: =IF(F98=0,0,(E98*'Product Data and EFs'!I64/1000-'Product Emissions Analysis'!L98)) -> 0 | N98: 0 | O98: 0 | P98: =IF(N98=0,0,N98*'Product Data and EFs'!J64/1000) -> 0 | Q98: =IF(O98=0,0,O98*'Product Data and EFs'!I64/1000) -> 0 | R98: 0 | S98: =IF(R98=0,0,(E98*'Product Data and EFs'!I64/1000-'Product Emissions Analysis'!R98)) -> 0 | T98: 0
D99: Undercabinet | H99: 0 | I99: 0 | J99: =IF(H99=0,0,H99*'Product Data and EFs'!J65) -> 0 | K99: =IF(I99=0,0,I99*'Product Data and EFs'!I65) -> 0 | L99: 0 | M99: =IF(F99=0,0,(E99*'Product Data and EFs'!I65/1000-'Product Emissions Analysis'!L99)) -> 0 | N99: 0 | O99: 0 | P99: =IF(N99=0,0,N99*'Product Data and EFs'!J65/1000) -> 0 | Q99: =IF(O99=0,0,O99*'Product Data and EFs'!I65/1000) -> 0 | R99: 0 | S99: =IF(R99=0,0,(E99*'Product Data and EFs'!I65/1000-'Product Emissions Analysis'!R99)) -> 0 | T99: 0
D100: Outdoor Wall/Porch/Post | H100: 0 | I100: 0 | J100: =IF(H100=0,0,H100*'Product Data and EFs'!J66) -> 0 | K100: =IF(I100=0,0,I100*'Product Data and EFs'!I66) -> 0 | L100: 0 | M100: =IF(F100=0,0,(E100*'Product Data and EFs'!I66/1000-'Product Emissions Analysis'!L100)) -> 0 | N100: 0 | O100: 0 | P100: =IF(N100=0,0,N100*'Product Data and EFs'!J66/1000) -> 0 | Q100: =IF(O100=0,0,O100*'Product Data and EFs'!I66/1000) -> 0 | R100: 0 | S100: =IF(R100=0,0,(E100*'Product Data and EFs'!I66/1000-'Product Emissions Analysis'!R100)) -> 0 | T100: 0
D101: Portable Desk Task | H101: 0 | I101: 0 | J101: =IF(H101=0,0,H101*'Product Data and EFs'!J67) -> 0 | K101: =IF(I101=0,0,I101*'Product Data and EFs'!I67) -> 0 | L101: 0 | M101: =IF(F101=0,0,(E101*'Product Data and EFs'!I67/1000-'Product Emissions Analysis'!L101)) -> 0 | N101: 0 | O101: 0 | P101: =IF(N101=0,0,N101*'Product Data and EFs'!J67/1000) -> 0 | Q101: =IF(O101=0,0,O101*'Product Data and EFs'!I67/1000) -> 0 | R101: 0 | S101: =IF(R101=0,0,(E101*'Product Data and EFs'!I67/1000-'Product Emissions Analysis'!R101)) -> 0 | T101: 0
D102: Inseparable SSL | H102: 0 | I102: 0 | J102: =IF(H102=0,0,H102*'Product Data and EFs'!J68) -> 0 | K102: =IF(I102=0,0,I102*'Product Data and EFs'!I68) -> 0 | L102: 0 | M102: =IF(F102=0,0,(E102*'Product Data and EFs'!I68/1000-'Product Emissions Analysis'!L102)) -> 0 | N102: 0 | O102: 0 | P102: =IF(N102=0,0,N102*'Product Data and EFs'!J68/1000) -> 0 | Q102: =IF(O102=0,0,O102*'Product Data and EFs'!I68/1000) -> 0 | R102: 0 | S102: =IF(R102=0,0,(E102*'Product Data and EFs'!I68/1000-'Product Emissions Analysis'!R102)) -> 0 | T102: 0
D103: Fluorescent (CFL) (800 lm) | H103: 0 | I103: 0 | J103: =IF(H103=0,0,H103*'Product Data and EFs'!J69) -> 0 | K103: =IF(I103=0,0,I103*'Product Data and EFs'!I69) -> 0 | L103: 0 | M103: =IF(F103=0,0,(E103*'Product Data and EFs'!I69/1000-'Product Emissions Analysis'!L103)) -> 0 | N103: 0 | O103: 0 | P103: =IF(N103=0,0,N103*'Product Data and EFs'!J69/1000) -> 0 | Q103: =IF(O103=0,0,O103*'Product Data and EFs'!I69/1000) -> 0 | R103: 0 | S103: =IF(R103=0,0,(E103*'Product Data and EFs'!I69/1000-'Product Emissions Analysis'!R103)) -> 0 | T103: 0
D104: Fluorescent (CFL) (450 lm) | H104: 0 | I104: 0 | J104: =IF(H104=0,0,H104*'Product Data and EFs'!J70) -> 0 | K104: =IF(I104=0,0,I104*'Product Data and EFs'!I70) -> 0 | L104: 0 | M104: =IF(F104=0,0,(E104*'Product Data and EFs'!I70/1000-'Product Emissions Analysis'!L104)) -> 0 | N104: 0 | O104: 0 | P104: =IF(N104=0,0,N104*'Product Data and EFs'!J70/1000) -> 0 | Q104: =IF(O104=0,0,O104*'Product Data and EFs'!I70/1000) -> 0 | R104: 0 | S104: =IF(R104=0,0,(E104*'Product Data and EFs'!I70/1000-'Product Emissions Analysis'!R104)) -> 0 | T104: 0
D105: Fluorescent (CFL) (250 lm) | H105: 0 | I105: 0 | J105: =IF(H105=0,0,H105*'Product Data and EFs'!J71) -> 0 | K105: =IF(I105=0,0,I105*'Product Data and EFs'!I71) -> 0 | L105: 0 | M105: =IF(F105=0,0,(E105*'Product Data and EFs'!I71/1000-'Product Emissions Analysis'!L105)) -> 0 | N105: 0 | O105: 0 | P105: =IF(N105=0,0,N105*'Product Data and EFs'!J71/1000) -> 0 | Q105: =IF(O105=0,0,O105*'Product Data and EFs'!I71/1000) -> 0 | R105: 0 | S105: =IF(R105=0,0,(E105*'Product Data and EFs'!I71/1000-'Product Emissions Analysis'!R105)) -> 0 | T105: 0
D106: Solid State Light Engine - With Optics (800 lm) | H106: 0 | I106: 0 | J106: =IF(H106=0,0,H106*'Product Data and EFs'!J72) -> 0 | K106: =IF(I106=0,0,I106*'Product Data and EFs'!I72) -> 0 | L106: 0 | M106: =IF(F106=0,0,(E106*'Product Data and EFs'!I72/1000-'Product Emissions Analysis'!L106)) -> 0 | N106: 0 | O106: 0 | P106: =IF(N106=0,0,N106*'Product Data and EFs'!J72/1000) -> 0 | Q106: =IF(O106=0,0,O106*'Product Data and EFs'!I72/1000) -> 0 | R106: 0 | S106: =IF(R106=0,0,(E106*'Product Data and EFs'!I72/1000-'Product Emissions Analysis'!R106)) -> 0 | T106: 0
D107: Solid State Light Engine - With Optics (450 lm) | H107: 0 | I107: 0 | J107: =IF(H107=0,0,H107*'Product Data and EFs'!J73) -> 0 | K107: =IF(I107=0,0,I107*'Product Data and EFs'!I73) -> 0 | L107: 0 | M107: =IF(F107=0,0,(E107*'Product Data and EFs'!I73/1000-'Product Emissions Analysis'!L107)) -> 0 | N107: 0 | O107: 0 | P107: =IF(N107=0,0,N107*'Product Data and EFs'!J73/1000) -> 0 | Q107: =IF(O107=0,0,O107*'Product Data and EFs'!I73/1000) -> 0 | R107: 0 | S107: =IF(R107=0,0,(E107*'Product Data and EFs'!I73/1000-'Product Emissions Analysis'!R107)) -> 0 | T107: 0
D108: Solid State Light Engine - With Optics (250 lm) | H108: 0 | I108: 0 | J108: =IF(H108=0,0,H108*'Product Data and EFs'!J74) -> 0 | K108: =IF(I108=0,0,I108*'Product Data and EFs'!I74) -> 0 | L108: 0 | M108: =IF(F108=0,0,(E108*'Product Data and EFs'!I74/1000-'Product Emissions Analysis'!L108)) -> 0 | N108: 0 | O108: 0 | P108: =IF(N108=0,0,N108*'Product Data and EFs'!J74/1000) -> 0 | Q108: =IF(O108=0,0,O108*'Product Data and EFs'!I74/1000) -> 0 | R108: 0 | S108: =IF(R108=0,0,(E108*'Product Data and EFs'!I74/1000-'Product Emissions Analysis'!R108)) -> 0 | T108: 0
D109: Solid State Light Engine - Without Optics (800 lm) | H109: 0 | I109: 0 | J109: =IF(H109=0,0,H109*'Product Data and EFs'!J75) -> 0 | K109: =IF(I109=0,0,I109*'Product Data and EFs'!I75) -> 0 | L109: 0 | M109: =IF(F109=0,0,(E109*'Product Data and EFs'!I75/1000-'Product Emissions Analysis'!L109)) -> 0 | N109: 0 | O109: 0 | P109: =IF(N109=0,0,N109*'Product Data and EFs'!J75/1000) -> 0 | Q109: =IF(O109=0,0,O109*'Product Data and EFs'!I75/1000) -> 0 | R109: 0 | S109: =IF(R109=0,0,(E109*'Product Data and EFs'!I75/1000-'Product Emissions Analysis'!R109)) -> 0 | T109: 0
D110: Solid State Light Engine - Without Optics (450 lm) | H110: 0 | I110: 0 | J110: =IF(H110=0,0,H110*'Product Data and EFs'!J76) -> 0 | K110: =IF(I110=0,0,I110*'Product Data and EFs'!I76) -> 0 | L110: 0 | M110: =IF(F110=0,0,(E110*'Product Data and EFs'!I76/1000-'Product Emissions Analysis'!L110)) -> 0 | N110: 0 | O110: 0 | P110: =IF(N110=0,0,N110*'Product Data and EFs'!J76/1000) -> 0 | Q110: =IF(O110=0,0,O110*'Product Data and EFs'!I76/1000) -> 0 | R110: 0 | S110: =IF(R110=0,0,(E110*'Product Data and EFs'!I76/1000-'Product Emissions Analysis'!R110)) -> 0 | T110: 0
D111: Solid State Light Engine - Without Optics (250 lm) | H111: 0 | I111: 0 | J111: =IF(H111=0,0,H111*'Product Data and EFs'!J77) -> 0 | K111: =IF(I111=0,0,I111*'Product Data and EFs'!I77) -> 0 | L111: 0 | M111: =IF(F111=0,0,(E111*'Product Data and EFs'!I77/1000-'Product Emissions Analysis'!L111)) -> 0 | N111: 0 | O111: 0 | P111: =IF(N111=0,0,N111*'Product Data and EFs'!J77/1000) -> 0 | Q111: =IF(O111=0,0,O111*'Product Data and EFs'!I77/1000) -> 0 | R111: 0 | S111: =IF(R111=0,0,(E111*'Product Data and EFs'!I77/1000-'Product Emissions Analysis'!R111)) -> 0 | T111: 0
D112: Solid State Retrofit: Sconce - With Optics | H112: 0 | I112: 0 | J112: =IF(H112=0,0,H112*'Product Data and EFs'!J78) -> 0 | K112: =IF(I112=0,0,I112*'Product Data and EFs'!I78) -> 0 | L112: 0 | M112: =IF(F112=0,0,(E112*'Product Data and EFs'!I78/1000-'Product Emissions Analysis'!L112)) -> 0 | N112: 0 | O112: 0 | P112: =IF(N112=0,0,N112*'Product Data and EFs'!J78/1000) -> 0 | Q112: =IF(O112=0,0,O112*'Product Data and EFs'!I78/1000) -> 0 | R112: 0 | S112: =IF(R112=0,0,(E112*'Product Data and EFs'!I78/1000-'Product Emissions Analysis'!R112)) -> 0 | T112: 0
D113: Solid State Retrofit: Sconce - Without Optics | H113: 0 | I113: 0 | J113: =IF(H113=0,0,H113*'Product Data and EFs'!J79) -> 0 | K113: =IF(I113=0,0,I113*'Product Data and EFs'!I79) -> 0 | L113: 0 | M113: =IF(F113=0,0,(E113*'Product Data and EFs'!I79/1000-'Product Emissions Analysis'!L113)) -> 0 | N113: 0 | O113: 0 | P113: =IF(N113=0,0,N113*'Product Data and EFs'!J79/1000) -> 0 | Q113: =IF(O113=0,0,O113*'Product Data and EFs'!I79/1000) -> 0 | R113: 0 | S113: =IF(R113=0,0,(E113*'Product Data and EFs'!I79/1000-'Product Emissions Analysis'!R113)) -> 0 | T113: 0
D114: Solid State Retrofit: Ceiling Mount - With Optics | H114: 0 | I114: 0 | J114: =IF(H114=0,0,H114*'Product Data and EFs'!J80) -> 0 | K114: =IF(I114=0,0,I114*'Product Data and EFs'!I80) -> 0 | L114: 0 | M114: =IF(F114=0,0,(E114*'Product Data and EFs'!I80/1000-'Product Emissions Analysis'!L114)) -> 0 | N114: 0 | O114: 0 | P114: =IF(N114=0,0,N114*'Product Data and EFs'!J80/1000) -> 0 | Q114: =IF(O114=0,0,O114*'Product Data and EFs'!I80/1000) -> 0 | R114: 0 | S114: =IF(R114=0,0,(E114*'Product Data and EFs'!I80/1000-'Product Emissions Analysis'!R114)) -> 0 | T114: 0
D115: Solid State Retrofit: Ceiling Mount - With Optics | H115: 0 | I115: 0 | J115: =IF(H115=0,0,H115*'Product Data and EFs'!J81) -> 0 | K115: =IF(I115=0,0,I115*'Product Data and EFs'!I81) -> 0 | L115: 0 | M115: =IF(F115=0,0,(E115*'Product Data and EFs'!I81/1000-'Product Emissions Analysis'!L115)) -> 0 | N115: 0 | O115: 0 | P115: =IF(N115=0,0,N115*'Product Data and EFs'!J81/1000) -> 0 | Q115: =IF(O115=0,0,O115*'Product Data and EFs'!I81/1000) -> 0 | R115: 0 | S115: =IF(R115=0,0,(E115*'Product Data and EFs'!I81/1000-'Product Emissions Analysis'!R115)) -> 0 | T115: 0
D116: Solid State Retrofit: Ceiling Mount - Without Optics | H116: 0 | I116: 0 | J116: =IF(H116=0,0,H116*'Product Data and EFs'!J82) -> 0 | K116: =IF(I116=0,0,I116*'Product Data and EFs'!I82) -> 0 | L116: 0 | M116: =IF(F116=0,0,(E116*'Product Data and EFs'!I82/1000-'Product Emissions Analysis'!L116)) -> 0 | N116: 0 | O116: 0 | P116: =IF(N116=0,0,N116*'Product Data and EFs'!J82/1000) -> 0 | Q116: =IF(O116=0,0,O116*'Product Data and EFs'!I82/1000) -> 0 | R116: 0 | S116: =IF(R116=0,0,(E116*'Product Data and EFs'!I82/1000-'Product Emissions Analysis'!R116)) -> 0 | T116: 0
D117: Solid State Retrofit: Ceiling Mount - Without Optics | H117: 0 | I117: 0 | J117: =IF(H117=0,0,H117*'Product Data and EFs'!J83) -> 0 | K117: =IF(I117=0,0,I117*'Product Data and EFs'!I83) -> 0 | L117: 0 | M117: =IF(F117=0,0,(E117*'Product Data and EFs'!I83/1000-'Product Emissions Analysis'!L117)) -> 0 | N117: 0 | O117: 0 | P117: =IF(N117=0,0,N117*'Product Data and EFs'!J83/1000) -> 0 | Q117: =IF(O117=0,0,O117*'Product Data and EFs'!I83/1000) -> 0 | R117: 0 | S117: =IF(R117=0,0,(E117*'Product Data and EFs'!I83/1000-'Product Emissions Analysis'!R117)) -> 0 | T117: 0
D118: TOTAL | E118: =SUM(E93:E117) -> 0 | F118: NA | G118: NA | H118: =SUM(H93:H117) -> 0 | I118: 0 | J118: 0 | K118: 0 | L118: 0 | M118: 0 | N118: 0 | O118: 0 | P118: 0 | Q118: 0 | R118: 0 | S118: 0 | T118: 0
D120: Annual | H120: Current | N120: Increased ENERGY STAR Sales
D121: Product Type | E121: Total Unit Sales | F121: % of Current Sales that are ENERGY STAR | G121: Enter a Higher % of Sales that are ENERGY STAR for Analysis | H121: Total ENERGY STAR Product Sales | I121: Total Standard Product Sales | J121: Annual Product Use Emissions - ENERGY STAR (Metric Tons CO2e) | K121: Annual Product Use Emissions - Standard (Metric Tons CO2e) | L121: Annual Total Product Use Emissions (Metric Tons CO2e) | M121: Annual Emissions Savings from ENERGY STAR Product Sales (Metric Tons CO2e) | N121: Total ENERGY STAR Product Sales | O121: Total Standard Product Sales | P121: Annual Product Use Emissions - ENERGY STAR (Metric Tons CO2e) | Q121: Annual Product Use Emissions - Standard (Metric Tons CO2e) | R121: Annual Total Product Use Emissions (Metric Tons CO2e) | S121: Annual Emissions Savings from ENERGY STAR Product Sales (Metric Tons CO2e) | T121: Additional Annual Emissions Savings Achieved with Increased ENERGY STAR Sales (Metric Tons CO2e)
D122: Cove Mount | E122: =IF(E93="","",E93) ->  | F122: =IF(F93="","",F93) ->  | H122: =IF(F122="",0,ROUND(E122*F122,0)) -> 0 | I122: =IF(F122="",0,E122-H122) -> 0 | J122: =IF(H122=0,0,H122*'Product Data and EFs'!J59/1000/'Product Data and EFs'!F59) -> 0 | K122: =IF(I122=0,0,I122*'Product Data and EFs'!I59/1000/'Product Data and EFs'!F59) -> 0 | L122: =IF(F122="",0,SUM(J122:K122)) -> 0 | M122: =IF(L122=0,0,(E122*'Product Data and EFs'!I59/1000/'Product Data and EFs'!F59-'Product Emissions Analysis'!L122)) -> 0 | N122: =IF(G122="",0,ROUND(E122*G122,0)) -> 0 | O122: =IF(G122="",0,E122-N122) -> 0 | P122: =IF(N122=0,0,N122*'Product Data and EFs'!J59/1000/'Product Data and EFs'!F59) -> 0 | Q122: =IF(O122=0,0,O122*'Product Data and EFs'!I59/1000/'Product Data and EFs'!F59) -> 0 | R122: =IF(G122="",0,SUM(P122:Q122)) -> 0 | S122: =IF(R122=0,0,(E122*'Product Data and EFs'!I59/1000/'Product Data and EFs'!F59-'Product Emissions Analysis'!R122)) -> 0 | T122: =IF(G122="",0,L122-R122) -> 0
D123: Downlights ≤ 4.5" | E123: =IF(E94="","",E94) ->  | H123: =IF(F123="",0,ROUND(E123*F123,0)) -> 0 | I123: =IF(F123="",0,E123-H123) -> 0 | J123: =IF(H123=0,0,H123*'Product Data and EFs'!J60/1000/'Product Data and EFs'!F60) -> 0 | K123: =IF(I123=0,0,I123*'Product Data and EFs'!I60/1000/'Product Data and EFs'!F60) -> 0 | L123: =IF(F123="",0,SUM(J123:K123)) -> 0 | M123: =IF(L123=0,0,(E123*'Product Data and EFs'!I60/1000/'Product Data and EFs'!F60-'Product Emissions Analysis'!L123)) -> 0 | N123: =IF(G123="",0,ROUND(E123*G123,0)) -> 0 | O123: =IF(G123="",0,E123-N123) -> 0 | P123: =IF(N123=0,0,N123*'Product Data and EFs'!J60/1000/'Product Data and EFs'!F60) -> 0 | Q123: =IF(O123=0,0,O123*'Product Data and EFs'!I60/1000/'Product Data and EFs'!F60) -> 0 | R123: =IF(G123="",0,SUM(P123:Q123)) -> 0 | S123: =IF(R123=0,0,(E123*'Product Data and EFs'!I60/1000/'Product Data and EFs'!F60-'Product Emissions Analysis'!R123)) -> 0 | T123: =IF(G123="",0,L123-R123) -> 0
D124: Downlights > 4.5" | E124: =IF(E95="","",E95) ->  | H124: 0 | I124: 0 | J124: =IF(H124=0,0,H124*'Product Data and EFs'!J61/1000/'Product Data and EFs'!F61) -> 0 | K124: =IF(I124=0,0,I124*'Product Data and EFs'!I61/1000/'Product Data and EFs'!F61) -> 0 | L124: 0 | M124: =IF(L124=0,0,(E124*'Product Data and EFs'!I61/1000/'Product Data and EFs'!F61-'Product Emissions Analysis'!L124)) -> 0 | N124: 0 | O124: 0 | P124: =IF(N124=0,0,N124*'Product Data and EFs'!J61/1000/'Product Data and EFs'!F61) -> 0 | Q124: =IF(O124=0,0,O124*'Product Data and EFs'!I61/1000/'Product Data and EFs'!F61) -> 0 | R124: 0 | S124: =IF(R124=0,0,(E124*'Product Data and EFs'!I61/1000/'Product Data and EFs'!F61-'Product Emissions Analysis'!R124)) -> 0 | T124: 0
D125: Downlight Retrofits ≤ 4.5" | E125: =IF(E96="","",E96) ->  | H125: 0 | I125: 0 | J125: =IF(H125=0,0,H125*'Product Data and EFs'!J62/1000/'Product Data and EFs'!F62) -> 0 | K125: =IF(I125=0,0,I125*'Product Data and EFs'!I62/1000/'Product Data and EFs'!F62) -> 0 | L125: 0 | M125: =IF(L125=0,0,(E125*'Product Data and EFs'!I62/1000/'Product Data and EFs'!F62-'Product Emissions Analysis'!L125)) -> 0 | N125: 0 | O125: 0 | P125: =IF(N125=0,0,N125*'Product Data and EFs'!J62/1000/'Product Data and EFs'!F62) -> 0 | Q125: =IF(O125=0,0,O125*'Product Data and EFs'!I62/1000/'Product Data and EFs'!F62) -> 0 | R125: 0 | S125: =IF(R125=0,0,(E125*'Product Data and EFs'!I62/1000/'Product Data and EFs'!F62-'Product Emissions Analysis'!R125)) -> 0 | T125: 0
D126: Downlight Retrofits > 4.5" | E126: =IF(E97="","",E97) ->  | H126: 0 | I126: 0 | J126: =IF(H126=0,0,H126*'Product Data and EFs'!J63/1000/'Product Data and EFs'!F63) -> 0 | K126: =IF(I126=0,0,I126*'Product Data and EFs'!I63/1000/'Product Data and EFs'!F63) -> 0 | L126: 0 | M126: =IF(L126=0,0,(E126*'Product Data and EFs'!I63/1000/'Product Data and EFs'!F63-'Product Emissions Analysis'!L126)) -> 0 | N126: 0 | O126: 0 | P126: =IF(N126=0,0,N126*'Product Data and EFs'!J63/1000/'Product Data and EFs'!F63) -> 0 | Q126: =IF(O126=0,0,O126*'Product Data and EFs'!I63/1000/'Product Data and EFs'!F63) -> 0 | R126: 0 | S126: =IF(R126=0,0,(E126*'Product Data and EFs'!I63/1000/'Product Data and EFs'!F63-'Product Emissions Analysis'!R126)) -> 0 | T126: 0
D127: Accent Lights | E127: =IF(E98="","",E98) ->  | H127: 0 | I127: 0 | J127: =IF(H127=0,0,H127*'Product Data and EFs'!J64/1000/'Product Data and EFs'!F64) -> 0 | K127: =IF(I127=0,0,I127*'Product Data and EFs'!I64/1000/'Product Data and EFs'!F64) -> 0 | L127: 0 | M127: =IF(L127=0,0,(E127*'Product Data and EFs'!I64/1000/'Product Data and EFs'!F64-'Product Emissions Analysis'!L127)) -> 0 | N127: 0 | O127: 0 | P127: =IF(N127=0,0,N127*'Product Data and EFs'!J64/1000/'Product Data and EFs'!F64) -> 0 | Q127: =IF(O127=0,0,O127*'Product Data and EFs'!I64/1000/'Product Data and EFs'!F64) -> 0 | R127: 0 | S127: =IF(R127=0,0,(E127*'Product Data and EFs'!I64/1000/'Product Data and EFs'!F64-'Product Emissions Analysis'!R127)) -> 0 | T127: 0
D128: Undercabinet | E128: =IF(E99="","",E99) ->  | H128: 0 | I128: 0 | J128: =IF(H128=0,0,H128*'Product Data and EFs'!J65/1000/'Product Data and EFs'!F65) -> 0 | K128: =IF(I128=0,0,I128*'Product Data and EFs'!I65/1000/'Product Data and EFs'!F65) -> 0 | L128: 0 | M128: =IF(L128=0,0,(E128*'Product Data and EFs'!I65/1000/'Product Data and EFs'!F65-'Product Emissions Analysis'!L128)) -> 0 | N128: 0 | O128: 0 | P128: =IF(N128=0,0,N128*'Product Data and EFs'!J65/1000/'Product Data and EFs'!F65) -> 0 | Q128: =IF(O128=0,0,O128*'Product Data and EFs'!I65/1000/'Product Data and EFs'!F65) -> 0 | R128: 0 | S128: =IF(R128=0,0,(E128*'Product Data and EFs'!I65/1000/'Product Data and EFs'!F65-'Product Emissions Analysis'!R128)) -> 0 | T128: 0
D129: Outdoor Wall/Porch/Post | E129: =IF(E100="","",E100) ->  | H129: 0 | I129: 0 | J129: =IF(H129=0,0,H129*'Product Data and EFs'!J66/1000/'Product Data and EFs'!F66) -> 0 | K129: =IF(I129=0,0,I129*'Product Data and EFs'!I66/1000/'Product Data and EFs'!F66) -> 0 | L129: 0 | M129: =IF(L129=0,0,(E129*'Product Data and EFs'!I66/1000/'Product Data and EFs'!F66-'Product Emissions Analysis'!L129)) -> 0 | N129: 0 | O129: 0 | P129: =IF(N129=0,0,N129*'Product Data and EFs'!J66/1000/'Product Data and EFs'!F66) -> 0 | Q129: =IF(O129=0,0,O129*'Product Data and EFs'!I66/1000/'Product Data and EFs'!F66) -> 0 | R129: 0 | S129: =IF(R129=0,0,(E129*'Product Data and EFs'!I66/1000/'Product Data and EFs'!F66-'Product Emissions Analysis'!R129)) -> 0 | T129: 0
D130: Portable Desk Task | E130: =IF(E101="","",E101) ->  | H130: 0 | I130: 0 | J130: =IF(H130=0,0,H130*'Product Data and EFs'!J67/1000/'Product Data and EFs'!F67) -> 0 | K130: =IF(I130=0,0,I130*'Product Data and EFs'!I67/1000/'Product Data and EFs'!F67) -> 0 | L130: 0 | M130: =IF(L130=0,0,(E130*'Product Data and EFs'!I67/1000/'Product Data and EFs'!F67-'Product Emissions Analysis'!L130)) -> 0 | N130: 0 | O130: 0 | P130: =IF(N130=0,0,N130*'Product Data and EFs'!J67/1000/'Product Data and EFs'!F67) -> 0 | Q130: =IF(O130=0,0,O130*'Product Data and EFs'!I67/1000/'Product Data and EFs'!F67) -> 0 | R130: 0 | S130: =IF(R130=0,0,(E130*'Product Data and EFs'!I67/1000/'Product Data and EFs'!F67-'Product Emissions Analysis'!R130)) -> 0 | T130: 0
D131: Inseparable SSL | E131: =IF(E102="","",E102) ->  | H131: 0 | I131: 0 | J131: =IF(H131=0,0,H131*'Product Data and EFs'!J68/1000/'Product Data and EFs'!F68) -> 0 | K131: =IF(I131=0,0,I131*'Product Data and EFs'!I68/1000/'Product Data and EFs'!F68) -> 0 | L131: 0 | M131: =IF(L131=0,0,(E131*'Product Data and EFs'!I68/1000/'Product Data and EFs'!F68-'Product Emissions Analysis'!L131)) -> 0 | N131: 0 | O131: 0 | P131: =IF(N131=0,0,N131*'Product Data and EFs'!J68/1000/'Product Data and EFs'!F68) -> 0 | Q131: =IF(O131=0,0,O131*'Product Data and EFs'!I68/1000/'Product Data and EFs'!F68) -> 0 | R131: 0 | S131: =IF(R131=0,0,(E131*'Product Data and EFs'!I68/1000/'Product Data and EFs'!F68-'Product Emissions Analysis'!R131)) -> 0 | T131: 0
D132: Fluorescent (CFL) (800 lm) | E132: =IF(E103="","",E103) ->  | H132: 0 | I132: 0 | J132: =IF(H132=0,0,H132*'Product Data and EFs'!J69/1000/'Product Data and EFs'!F69) -> 0 | K132: =IF(I132=0,0,I132*'Product Data and EFs'!I69/1000/'Product Data and EFs'!F69) -> 0 | L132: 0 | M132: =IF(L132=0,0,(E132*'Product Data and EFs'!I69/1000/'Product Data and EFs'!F69-'Product Emissions Analysis'!L132)) -> 0 | N132: 0 | O132: 0 | P132: =IF(N132=0,0,N132*'Product Data and EFs'!J69/1000/'Product Data and EFs'!F69) -> 0 | Q132: =IF(O132=0,0,O132*'Product Data and EFs'!I69/1000/'Product Data and EFs'!F69) -> 0 | R132: 0 | S132: =IF(R132=0,0,(E132*'Product Data and EFs'!I69/1000/'Product Data and EFs'!F69-'Product Emissions Analysis'!R132)) -> 0 | T132: 0
D133: Fluorescent (CFL) (450 lm) | E133: =IF(E104="","",E104) ->  | H133: 0 | I133: 0 | J133: =IF(H133=0,0,H133*'Product Data and EFs'!J70/1000/'Product Data and EFs'!F70) -> 0 | K133: =IF(I133=0,0,I133*'Product Data and EFs'!I70/1000/'Product Data and EFs'!F70) -> 0 | L133: 0 | M133: =IF(L133=0,0,(E133*'Product Data and EFs'!I70/1000/'Product Data and EFs'!F70-'Product Emissions Analysis'!L133)) -> 0 | N133: 0 | O133: 0 | P133: =IF(N133=0,0,N133*'Product Data and EFs'!J70/1000/'Product Data and EFs'!F70) -> 0 | Q133: =IF(O133=0,0,O133*'Product Data and EFs'!I70/1000/'Product Data and EFs'!F70) -> 0 | R133: 0 | S133: =IF(R133=0,0,(E133*'Product Data and EFs'!I70/1000/'Product Data and EFs'!F70-'Product Emissions Analysis'!R133)) -> 0 | T133: 0
D134: Fluorescent (CFL) (250 lm) | E134: =IF(E105="","",E105) ->  | H134: 0 | I134: 0 | J134: =IF(H134=0,0,H134*'Product Data and EFs'!J71/1000/'Product Data and EFs'!F71) -> 0 | K134: =IF(I134=0,0,I134*'Product Data and EFs'!I71/1000/'Product Data and EFs'!F71) -> 0 | L134: 0 | M134: =IF(L134=0,0,(E134*'Product Data and EFs'!I71/1000/'Product Data and EFs'!F71-'Product Emissions Analysis'!L134)) -> 0 | N134: 0 | O134: 0 | P134: =IF(N134=0,0,N134*'Product Data and EFs'!J71/1000/'Product Data and EFs'!F71) -> 0 | Q134: =IF(O134=0,0,O134*'Product Data and EFs'!I71/1000/'Product Data and EFs'!F71) -> 0 | R134: 0 | S134: =IF(R134=0,0,(E134*'Product Data and EFs'!I71/1000/'Product Data and EFs'!F71-'Product Emissions Analysis'!R134)) -> 0 | T134: 0
D135: Solid State Light Engine - With Optics (800 lm) | E135: =IF(E106="","",E106) ->  | H135: 0 | I135: 0 | J135: =IF(H135=0,0,H135*'Product Data and EFs'!J72/1000/'Product Data and EFs'!F72) -> 0 | K135: =IF(I135=0,0,I135*'Product Data and EFs'!I72/1000/'Product Data and EFs'!F72) -> 0 | L135: 0 | M135: =IF(L135=0,0,(E135*'Product Data and EFs'!I72/1000/'Product Data and EFs'!F72-'Product Emissions Analysis'!L135)) -> 0 | N135: 0 | O135: 0 | P135: =IF(N135=0,0,N135*'Product Data and EFs'!J72/1000/'Product Data and EFs'!F72) -> 0 | Q135: =IF(O135=0,0,O135*'Product Data and EFs'!I72/1000/'Product Data and EFs'!F72) -> 0 | R135: 0 | S135: =IF(R135=0,0,(E135*'Product Data and EFs'!I72/1000/'Product Data and EFs'!F72-'Product Emissions Analysis'!R135)) -> 0 | T135: 0
D136: Solid State Light Engine - With Optics (450 lm) | E136: =IF(E107="","",E107) ->  | H136: 0 | I136: 0 | J136: =IF(H136=0,0,H136*'Product Data and EFs'!J73/1000/'Product Data and EFs'!F73) -> 0 | K136: =IF(I136=0,0,I136*'Product Data and EFs'!I73/1000/'Product Data and EFs'!F73) -> 0 | L136: 0 | M136: =IF(L136=0,0,(E136*'Product Data and EFs'!I73/1000/'Product Data and EFs'!F73-'Product Emissions Analysis'!L136)) -> 0 | N136: 0 | O136: 0 | P136: =IF(N136=0,0,N136*'Product Data and EFs'!J73/1000/'Product Data and EFs'!F73) -> 0 | Q136: =IF(O136=0,0,O136*'Product Data and EFs'!I73/1000/'Product Data and EFs'!F73) -> 0 | R136: 0 | S136: =IF(R136=0,0,(E136*'Product Data and EFs'!I73/1000/'Product Data and EFs'!F73-'Product Emissions Analysis'!R136)) -> 0 | T136: 0
D137: Solid State Light Engine - With Optics (250 lm) | E137: =IF(E108="","",E108) ->  | H137: 0 | I137: 0 | J137: =IF(H137=0,0,H137*'Product Data and EFs'!J74/1000/'Product Data and EFs'!F74) -> 0 | K137: =IF(I137=0,0,I137*'Product Data and EFs'!I74/1000/'Product Data and EFs'!F74) -> 0 | L137: 0 | M137: =IF(L137=0,0,(E137*'Product Data and EFs'!I74/1000/'Product Data and EFs'!F74-'Product Emissions Analysis'!L137)) -> 0 | N137: 0 | O137: 0 | P137: =IF(N137=0,0,N137*'Product Data and EFs'!J74/1000/'Product Data and EFs'!F74) -> 0 | Q137: =IF(O137=0,0,O137*'Product Data and EFs'!I74/1000/'Product Data and EFs'!F74) -> 0 | R137: 0 | S137: =IF(R137=0,0,(E137*'Product Data and EFs'!I74/1000/'Product Data and EFs'!F74-'Product Emissions Analysis'!R137)) -> 0 | T137: 0
D138: Solid State Light Engine - Without Optics (800 lm) | E138: =IF(E109="","",E109) ->  | H138: 0 | I138: 0 | J138: =IF(H138=0,0,H138*'Product Data and EFs'!J75/1000/'Product Data and EFs'!F75) -> 0 | K138: =IF(I138=0,0,I138*'Product Data and EFs'!I75/1000/'Product Data and EFs'!F75) -> 0 | L138: 0 | M138: =IF(L138=0,0,(E138*'Product Data and EFs'!I75/1000/'Product Data and EFs'!F75-'Product Emissions Analysis'!L138)) -> 0 | N138: 0 | O138: 0 | P138: =IF(N138=0,0,N138*'Product Data and EFs'!J75/1000/'Product Data and EFs'!F75) -> 0 | Q138: =IF(O138=0,0,O138*'Product Data and EFs'!I75/1000/'Product Data and EFs'!F75) -> 0 | R138: 0 | S138: =IF(R138=0,0,(E138*'Product Data and EFs'!I75/1000/'Product Data and EFs'!F75-'Product Emissions Analysis'!R138)) -> 0 | T138: 0
D139: Solid State Light Engine - Without Optics (450 lm) | E139: =IF(E110="","",E110) ->  | H139: 0 | I139: 0 | J139: =IF(H139=0,0,H139*'Product Data and EFs'!J76/1000/'Product Data and EFs'!F76) -> 0 | K139: =IF(I139=0,0,I139*'Product Data and EFs'!I76/1000/'Product Data and EFs'!F76) -> 0 | L139: 0 | M139: =IF(L139=0,0,(E139*'Product Data and EFs'!I76/1000/'Product Data and EFs'!F76-'Product Emissions Analysis'!L139)) -> 0 | N139: 0 | O139: 0 | P139: =IF(N139=0,0,N139*'Product Data and EFs'!J76/1000/'Product Data and EFs'!F76) -> 0 | Q139: =IF(O139=0,0,O139*'Product Data and EFs'!I76/1000/'Product Data and EFs'!F76) -> 0 | R139: 0 | S139: =IF(R139=0,0,(E139*'Product Data and EFs'!I76/1000/'Product Data and EFs'!F76-'Product Emissions Analysis'!R139)) -> 0 | T139: 0
D140: Solid State Light Engine - Without Optics (250 lm) | E140: =IF(E111="","",E111) ->  | H140: 0 | I140: 0 | J140: =IF(H140=0,0,H140*'Product Data and EFs'!J77/1000/'Product Data and EFs'!F77) -> 0 | K140: =IF(I140=0,0,I140*'Product Data and EFs'!I77/1000/'Product Data and EFs'!F77) -> 0 | L140: 0 | M140: =IF(L140=0,0,(E140*'Product Data and EFs'!I77/1000/'Product Data and EFs'!F77-'Product Emissions Analysis'!L140)) -> 0 | N140: 0 | O140: 0 | P140: =IF(N140=0,0,N140*'Product Data and EFs'!J77/1000/'Product Data and EFs'!F77) -> 0 | Q140: =IF(O140=0,0,O140*'Product Data and EFs'!I77/1000/'Product Data and EFs'!F77) -> 0 | R140: 0 | S140: =IF(R140=0,0,(E140*'Product Data and EFs'!I77/1000/'Product Data and EFs'!F77-'Product Emissions Analysis'!R140)) -> 0 | T140: 0
D141: Solid State Retrofit: Sconce - With Optics | E141: =IF(E112="","",E112) ->  | H141: 0 | I141: 0 | J141: =IF(H141=0,0,H141*'Product Data and EFs'!J78/1000/'Product Data and EFs'!F78) -> 0 | K141: =IF(I141=0,0,I141*'Product Data and EFs'!I78/1000/'Product Data and EFs'!F78) -> 0 | L141: 0 | M141: =IF(L141=0,0,(E141*'Product Data and EFs'!I78/1000/'Product Data and EFs'!F78-'Product Emissions Analysis'!L141)) -> 0 | N141: 0 | O141: 0 | P141: =IF(N141=0,0,N141*'Product Data and EFs'!J78/1000/'Product Data and EFs'!F78) -> 0 | Q141: =IF(O141=0,0,O141*'Product Data and EFs'!I78/1000/'Product Data and EFs'!F78) -> 0 | R141: 0 | S141: =IF(R141=0,0,(E141*'Product Data and EFs'!I78/1000/'Product Data and EFs'!F78-'Product Emissions Analysis'!R141)) -> 0 | T141: 0
D142: Solid State Retrofit: Sconce - Without Optics | E142: =IF(E113="","",E113) ->  | H142: 0 | I142: 0 | J142: =IF(H142=0,0,H142*'Product Data and EFs'!J79/1000/'Product Data and EFs'!F79) -> 0 | K142: =IF(I142=0,0,I142*'Product Data and EFs'!I79/1000/'Product Data and EFs'!F79) -> 0 | L142: 0 | M142: =IF(L142=0,0,(E142*'Product Data and EFs'!I79/1000/'Product Data and EFs'!F79-'Product Emissions Analysis'!L142)) -> 0 | N142: 0 | O142: 0 | P142: =IF(N142=0,0,N142*'Product Data and EFs'!J79/1000/'Product Data and EFs'!F79) -> 0 | Q142: =IF(O142=0,0,O142*'Product Data and EFs'!I79/1000/'Product Data and EFs'!F79) -> 0 | R142: 0 | S142: =IF(R142=0,0,(E142*'Product Data and EFs'!I79/1000/'Product Data and EFs'!F79-'Product Emissions Analysis'!R142)) -> 0 | T142: 0
D143: Solid State Retrofit: Ceiling Mount - With Optics | E143: =IF(E114="","",E114) ->  | H143: 0 | I143: 0 | J143: =IF(H143=0,0,H143*'Product Data and EFs'!J80/1000/'Product Data and EFs'!F80) -> 0 | K143: =IF(I143=0,0,I143*'Product Data and EFs'!I80/1000/'Product Data and EFs'!F80) -> 0 | L143: 0 | M143: =IF(L143=0,0,(E143*'Product Data and EFs'!I80/1000/'Product Data and EFs'!F80-'Product Emissions Analysis'!L143)) -> 0 | N143: 0 | O143: 0 | P143: =IF(N143=0,0,N143*'Product Data and EFs'!J80/1000/'Product Data and EFs'!F80) -> 0 | Q143: =IF(O143=0,0,O143*'Product Data and EFs'!I80/1000/'Product Data and EFs'!F80) -> 0 | R143: 0 | S143: =IF(R143=0,0,(E143*'Product Data and EFs'!I80/1000/'Product Data and EFs'!F80-'Product Emissions Analysis'!R143)) -> 0 | T143: 0
D144: Solid State Retrofit: Ceiling Mount - With Optics | E144: =IF(E115="","",E115) ->  | H144: 0 | I144: 0 | J144: =IF(H144=0,0,H144*'Product Data and EFs'!J81/1000/'Product Data and EFs'!F81) -> 0 | K144: =IF(I144=0,0,I144*'Product Data and EFs'!I81/1000/'Product Data and EFs'!F81) -> 0 | L144: 0 | M144: =IF(L144=0,0,(E144*'Product Data and EFs'!I81/1000/'Product Data and EFs'!F81-'Product Emissions Analysis'!L144)) -> 0 | N144: 0 | O144: 0 | P144: =IF(N144=0,0,N144*'Product Data and EFs'!J81/1000/'Product Data and EFs'!F81) -> 0 | Q144: =IF(O144=0,0,O144*'Product Data and EFs'!I81/1000/'Product Data and EFs'!F81) -> 0 | R144: 0 | S144: =IF(R144=0,0,(E144*'Product Data and EFs'!I81/1000/'Product Data and EFs'!F81-'Product Emissions Analysis'!R144)) -> 0 | T144: 0
D145: Solid State Retrofit: Ceiling Mount - Without Optics | E145: =IF(E116="","",E116) ->  | H145: 0 | I145: 0 | J145: =IF(H145=0,0,H145*'Product Data and EFs'!J82/1000/'Product Data and EFs'!F82) -> 0 | K145: =IF(I145=0,0,I145*'Product Data and EFs'!I82/1000/'Product Data and EFs'!F82) -> 0 | L145: 0 | M145: =IF(L145=0,0,(E145*'Product Data and EFs'!I82/1000/'Product Data and EFs'!F82-'Product Emissions Analysis'!L145)) -> 0 | N145: 0 | O145: 0 | P145: =IF(N145=0,0,N145*'Product Data and EFs'!J82/1000/'Product Data and EFs'!F82) -> 0 | Q145: =IF(O145=0,0,O145*'Product Data and EFs'!I82/1000/'Product Data and EFs'!F82) -> 0 | R145: 0 | S145: =IF(R145=0,0,(E145*'Product Data and EFs'!I82/1000/'Product Data and EFs'!F82-'Product Emissions Analysis'!R145)) -> 0 | T145: 0
D146: Solid State Retrofit: Ceiling Mount - Without Optics | E146: =IF(E117="","",E117) ->  | H146: 0 | I146: 0 | J146: =IF(H146=0,0,H146*'Product Data and EFs'!J83/1000/'Product Data and EFs'!F83) -> 0 | K146: =IF(I146=0,0,I146*'Product Data and EFs'!I83/1000/'Product Data and EFs'!F83) -> 0 | L146: 0 | M146: =IF(L146=0,0,(E146*'Product Data and EFs'!I83/1000/'Product Data and EFs'!F83-'Product Emissions Analysis'!L146)) -> 0 | N146: 0 | O146: 0 | P146: =IF(N146=0,0,N146*'Product Data and EFs'!J83/1000/'Product Data and EFs'!F83) -> 0 | Q146: =IF(O146=0,0,O146*'Product Data and EFs'!I83/1000/'Product Data and EFs'!F83) -> 0 | R146: 0 | S146: =IF(R146=0,0,(E146*'Product Data and EFs'!I83/1000/'Product Data and EFs'!F83-'Product Emissions Analysis'!R146)) -> 0 | T146: 0
D147: TOTAL | E147: =IF(E118="","",E118) -> 0 | F147: NA | G147: NA | H147: =SUM(H122:H146) -> 0 | I147: 0 | J147: 0 | K147: 0 | L147: 0 | M147: 0 | N147: 0 | O147: 0 | P147: 0 | Q147: 0 | R147: 0 | S147: 0 | T147: 0
D150: Decorative Light Strings
D152: Lifetime | H152: Current | N152: Increased ENERGY STAR Sales
D153: Product Type | E153: Total Unit Sales | F153: % of Current Sales that are ENERGY STAR | G153: Enter a Higher % of Sales that are ENERGY STAR for Analysis | H153: Total ENERGY STAR Product Sales | I153: Total Standard Product Sales | J153: Lifetime Product Use Emissions - ENERGY STAR (Metric Tons CO2e) | K153: Lifetime Product Use Emissions - Standard (Metric Tons CO2e) | L153: Lifetime Total Product Use Emissions (Metric Tons CO2e) | M153: Lifetime Emissions Savings from ENERGY STAR Product Sales (Metric Tons CO2e) | N153: Total ENERGY STAR Product Sales | O153: Total Standard Product Sales | P153: Lifetime Product Use Emissions - ENERGY STAR (Metric Tons CO2e) | Q153: Lifetime Product Use Emissions - Standard (Metric Tons CO2e) | R153: Lifetime Total Product Use Emissions (Metric Tons CO2e) | S153: Lifetime Emissions Savings from ENERGY STAR Product Sales (Metric Tons CO2e) | T153: Additional Lifetime Emissions Savings Achieved with Increased ENERGY STAR Sales (Metric Tons CO2e)
D154: Decorative Light Strings | H154: =IF(F154="",0,ROUND(E154*F154,0)) -> 0 | I154: =IF(F154="",0,E154-H154) -> 0 | J154: =IF(H154=0,0,H154*'Product Data and EFs'!J88/1000) -> 0 | K154: =IF(I154=0,0,I154*'Product Data and EFs'!I88/1000) -> 0 | L154: =IF(F154="",0,SUM(J154:K154)) -> 0 | M154: =IF(L154=0,0,(E154*'Product Data and EFs'!I88/1000-'Product Emissions Analysis'!L154)) -> 0 | N154: =IF(G154="",0,ROUND(E154*G154,0)) -> 0 | O154: =IF(G154="",0,E154-N154) -> 0 | P154: =IF(N154=0,0,N154*'Product Data and EFs'!J88/1000) -> 0 | Q154: =IF(O154=0,0,O154*'Product Data and EFs'!I88/1000) -> 0 | R154: =IF(G154="",0,SUM(P154:Q154)) -> 0 | S154: =IF(R154=0,0,(E154*'Product Data and EFs'!I88/1000-'Product Emissions Analysis'!R154)) -> 0 | T154: =IF(G154="",0,L154-R154) -> 0
D157: Annual | H157: Current | N157: Increased ENERGY STAR Sales
D158: Product Type | E158: Total Unit Sales | F158: % of Current Sales that are ENERGY STAR | G158: Enter a Higher % of Sales that are ENERGY STAR for Analysis | H158: Total ENERGY STAR Product Sales | I158: Total Standard Product Sales | J158: Annual Product Use Emissions - ENERGY STAR (Metric Tons CO2e) | K158: Annual Product Use Emissions - Standard (Metric Tons CO2e) | L158: Annual Total Product Use Emissions (Metric Tons CO2e) | M158: Annual Emissions Savings from ENERGY STAR Product Sales (Metric Tons CO2e) | N158: Total ENERGY STAR Product Sales | O158: Total Standard Product Sales | P158: Annual Product Use Emissions - ENERGY STAR (Metric Tons CO2e) | Q158: Annual Product Use Emissions - Standard (Metric Tons CO2e) | R158: Annual Total Product Use Emissions (Metric Tons CO2e) | S158: Annual Emissions Savings from ENERGY STAR Product Sales (Metric Tons CO2e) | T158: Additional Annual Emissions Savings Achieved with Increased ENERGY STAR Sales (Metric Tons CO2e)
D159: Decorative Light Strings | E159: =IF(E154="","",E154) ->  | F159: =IF(F154="","",F154) ->  | G159: =IF(G154="","",G154) ->  | H159: =IF(F159="",0,ROUND(E159*F159,0)) -> 0 | I159: =IF(F159="",0,E159-H159) -> 0 | J159: =IF(H159=0,0,H159*'Product Data and EFs'!J88/1000/'Product Data and EFs'!F88) -> 0 | K159: =IF(I159=0,0,I159*'Product Data and EFs'!I88/1000/'Product Data and EFs'!F88) -> 0 | L159: =IF(F159="",0,SUM(J159:K159)) -> 0 | M159: =IF(L159=0,0,(E159*'Product Data and EFs'!I88/1000/'Product Data and EFs'!F88-'Product Emissions Analysis'!L159)) -> 0 | N159: =IF(G159="",0,ROUND(E159*G159,0)) -> 0 | O159: =IF(G159="",0,E159-N159) -> 0 | P159: =IF(N159=0,0,N159*'Product Data and EFs'!J88/1000/'Product Data and EFs'!F88) -> 0 | Q159: =IF(O159=0,0,O159*'Product Data and EFs'!I88/1000/'Product Data and EFs'!F88) -> 0 | R159: =IF(G159="",0,SUM(P159:Q159)) -> 0 | S159: =IF(R159=0,0,(E159*'Product Data and EFs'!I88/1000/'Product Data and EFs'!F88-'Product Emissions Analysis'!R159)) -> 0 | T159: =IF(G159="",0,L159-R159) -> 0
D163: Consumer Electronics
D165: Lifetime
H167: Current | N167: Increased ENERGY STAR Sales
D168: Product Type | E168: Total Unit Sales | F168: % of Current Sales that are ENERGY STAR | G168: Enter a Higher % of Sales that are ENERGY STAR for Analysis | H168: Total ENERGY STAR Product Sales | I168: Total Standard Product Sales | J168: Lifetime Product Use Emissions - ENERGY STAR (Metric Tons CO2e) | K168: Lifetime Product Use Emissions - Standard (Metric Tons CO2e) | L168: Lifetime Total Product Use Emissions (Metric Tons CO2e) | M168: Lifetime Emissions Savings from ENERGY STAR Product Sales (Metric Tons CO2e) | N168: Total ENERGY STAR Product Sales | O168: Total Standard Product Sales | P168: Lifetime Product Use Emissions - ENERGY STAR (Metric Tons CO2e) | Q168: Lifetime Product Use Emissions - Standard (Metric Tons CO2e) | R168: Lifetime Total Product Use Emissions (Metric Tons CO2e) | S168: Lifetime Emissions Savings from ENERGY STAR Product Sales (Metric Tons CO2e) | T168: Additional Lifetime Emissions Savings Achieved with Increased ENERGY STAR Sales (Metric Tons CO2e)
D169: TV - LCD TVs 20" and under | H169: =IF(F169="",0,ROUND(E169*F169,0)) -> 0 | I169: =IF(F169="",0,E169-H169) -> 0 | J169: =IF(H169=0,0,H169*'Product Data and EFs'!L95/1000) -> 0 | K169: =IF(I169=0,0,I169*'Product Data and EFs'!K95/1000) -> 0 | L169: =IF(F169="",0,SUM(J169:K169)) -> 0 | M169: =IF(L169=0,0,(E169*'Product Data and EFs'!K95/1000-'Product Emissions Analysis'!L169)) -> 0 | N169: =IF(G169="",0,ROUND(E169*G169,0)) -> 0 | O169: =IF(G169="",0,E169-N169) -> 0 | P169: =IF(N169=0,0,N169*'Product Data and EFs'!L95/1000) -> 0 | Q169: =IF(O169=0,0,O169*'Product Data and EFs'!K95/1000) -> 0 | R169: =IF(G169="",0,SUM(P169:Q169)) -> 0 | S169: =IF(R169=0,0,(E169*'Product Data and EFs'!K95/1000-'Product Emissions Analysis'!R169)) -> 0 | T169: =IF(G169="",0,L169-R169) -> 0
D170: TV - LCD TVs 21"-23" | H170: =IF(F170="",0,ROUND(E170*F170,0)) -> 0 | I170: =IF(F170="",0,E170-H170) -> 0 | J170: =IF(H170=0,0,H170*'Product Data and EFs'!L96/1000) -> 0 | K170: =IF(I170=0,0,I170*'Product Data and EFs'!K96/1000) -> 0 | L170: =IF(F170="",0,SUM(J170:K170)) -> 0 | M170: =IF(L170=0,0,(E170*'Product Data and EFs'!K96/1000-'Product Emissions Analysis'!L170)) -> 0 | N170: =IF(G170="",0,ROUND(E170*G170,0)) -> 0 | O170: =IF(G170="",0,E170-N170) -> 0 | P170: =IF(N170=0,0,N170*'Product Data and EFs'!L96/1000) -> 0 | Q170: =IF(O170=0,0,O170*'Product Data and EFs'!K96/1000) -> 0 | R170: =IF(G170="",0,SUM(P170:Q170)) -> 0 | S170: =IF(R170=0,0,(E170*'Product Data and EFs'!K96/1000-'Product Emissions Analysis'!R170)) -> 0 | T170: =IF(G170="",0,L170-R170) -> 0
D171: TV - LCD TVs 24"-29" | H171: 0 | I171: 0 | J171: =IF(H171=0,0,H171*'Product Data and EFs'!L97/1000) -> 0 | K171: =IF(I171=0,0,I171*'Product Data and EFs'!K97/1000) -> 0 | L171: 0 | M171: =IF(L171=0,0,(E171*'Product Data and EFs'!K97/1000-'Product Emissions Analysis'!L171)) -> 0 | N171: 0 | O171: 0 | P171: =IF(N171=0,0,N171*'Product Data and EFs'!L97/1000) -> 0 | Q171: =IF(O171=0,0,O171*'Product Data and EFs'!K97/1000) -> 0 | R171: 0 | S171: =IF(R171=0,0,(E171*'Product Data and EFs'!K97/1000-'Product Emissions Analysis'!R171)) -> 0 | T171: 0
D172: TV - LCD TVs 30"-34" | H172: 0 | I172: 0 | J172: =IF(H172=0,0,H172*'Product Data and EFs'!L98/1000) -> 0 | K172: =IF(I172=0,0,I172*'Product Data and EFs'!K98/1000) -> 0 | L172: 0 | M172: =IF(L172=0,0,(E172*'Product Data and EFs'!K98/1000-'Product Emissions Analysis'!L172)) -> 0 | N172: 0 | O172: 0 | P172: =IF(N172=0,0,N172*'Product Data and EFs'!L98/1000) -> 0 | Q172: =IF(O172=0,0,O172*'Product Data and EFs'!K98/1000) -> 0 | R172: 0 | S172: =IF(R172=0,0,(E172*'Product Data and EFs'!K98/1000-'Product Emissions Analysis'!R172)) -> 0 | T172: 0
D173: TV - LCD TVs 35"-39" | H173: 0 | I173: 0 | J173: =IF(H173=0,0,H173*'Product Data and EFs'!L99/1000) -> 0 | K173: =IF(I173=0,0,I173*'Product Data and EFs'!K99/1000) -> 0 | L173: 0 | M173: =IF(L173=0,0,(E173*'Product Data and EFs'!K99/1000-'Product Emissions Analysis'!L173)) -> 0 | N173: 0 | O173: 0 | P173: =IF(N173=0,0,N173*'Product Data and EFs'!L99/1000) -> 0 | Q173: =IF(O173=0,0,O173*'Product Data and EFs'!K99/1000) -> 0 | R173: 0 | S173: =IF(R173=0,0,(E173*'Product Data and EFs'!K99/1000-'Product Emissions Analysis'!R173)) -> 0 | T173: 0
D174: TV - LCD TVs 40"-44" | H174: 0 | I174: 0 | J174: =IF(H174=0,0,H174*'Product Data and EFs'!L100/1000) -> 0 | K174: =IF(I174=0,0,I174*'Product Data and EFs'!K100/1000) -> 0 | L174: 0 | M174: =IF(L174=0,0,(E174*'Product Data and EFs'!K100/1000-'Product Emissions Analysis'!L174)) -> 0 | N174: 0 | O174: 0 | P174: =IF(N174=0,0,N174*'Product Data and EFs'!L100/1000) -> 0 | Q174: =IF(O174=0,0,O174*'Product Data and EFs'!K100/1000) -> 0 | R174: 0 | S174: =IF(R174=0,0,(E174*'Product Data and EFs'!K100/1000-'Product Emissions Analysis'!R174)) -> 0 | T174: 0
D175: TV - LCD TVs 45"-49" | H175: 0 | I175: 0 | J175: =IF(H175=0,0,H175*'Product Data and EFs'!L101/1000) -> 0 | K175: =IF(I175=0,0,I175*'Product Data and EFs'!K101/1000) -> 0 | L175: 0 | M175: =IF(L175=0,0,(E175*'Product Data and EFs'!K101/1000-'Product Emissions Analysis'!L175)) -> 0 | N175: 0 | O175: 0 | P175: =IF(N175=0,0,N175*'Product Data and EFs'!L101/1000) -> 0 | Q175: =IF(O175=0,0,O175*'Product Data and EFs'!K101/1000) -> 0 | R175: 0 | S175: =IF(R175=0,0,(E175*'Product Data and EFs'!K101/1000-'Product Emissions Analysis'!R175)) -> 0 | T175: 0
D176: TV - LCD TVs 50"-54" | H176: 0 | I176: 0 | J176: =IF(H176=0,0,H176*'Product Data and EFs'!L102/1000) -> 0 | K176: =IF(I176=0,0,I176*'Product Data and EFs'!K102/1000) -> 0 | L176: 0 | M176: =IF(L176=0,0,(E176*'Product Data and EFs'!K102/1000-'Product Emissions Analysis'!L176)) -> 0 | N176: 0 | O176: 0 | P176: =IF(N176=0,0,N176*'Product Data and EFs'!L102/1000) -> 0 | Q176: =IF(O176=0,0,O176*'Product Data and EFs'!K102/1000) -> 0 | R176: 0 | S176: =IF(R176=0,0,(E176*'Product Data and EFs'!K102/1000-'Product Emissions Analysis'!R176)) -> 0 | T176: 0
D177: TV - LCD TVs 55"-59" | H177: 0 | I177: 0 | J177: =IF(H177=0,0,H177*'Product Data and EFs'!L103/1000) -> 0 | K177: =IF(I177=0,0,I177*'Product Data and EFs'!K103/1000) -> 0 | L177: 0 | M177: =IF(L177=0,0,(E177*'Product Data and EFs'!K103/1000-'Product Emissions Analysis'!L177)) -> 0 | N177: 0 | O177: 0 | P177: =IF(N177=0,0,N177*'Product Data and EFs'!L103/1000) -> 0 | Q177: =IF(O177=0,0,O177*'Product Data and EFs'!K103/1000) -> 0 | R177: 0 | S177: =IF(R177=0,0,(E177*'Product Data and EFs'!K103/1000-'Product Emissions Analysis'!R177)) -> 0 | T177: 0
D178: TV - LCD TVs 60"-64" | H178: 0 | I178: 0 | J178: =IF(H178=0,0,H178*'Product Data and EFs'!L104/1000) -> 0 | K178: =IF(I178=0,0,I178*'Product Data and EFs'!K104/1000) -> 0 | L178: 0 | M178: =IF(L178=0,0,(E178*'Product Data and EFs'!K104/1000-'Product Emissions Analysis'!L178)) -> 0 | N178: 0 | O178: 0 | P178: =IF(N178=0,0,N178*'Product Data and EFs'!L104/1000) -> 0 | Q178: =IF(O178=0,0,O178*'Product Data and EFs'!K104/1000) -> 0 | R178: 0 | S178: =IF(R178=0,0,(E178*'Product Data and EFs'!K104/1000-'Product Emissions Analysis'!R178)) -> 0 | T178: 0
D179: TV - LCD TVs 65" or greater | H179: 0 | I179: 0 | J179: =IF(H179=0,0,H179*'Product Data and EFs'!L105/1000) -> 0 | K179: =IF(I179=0,0,I179*'Product Data and EFs'!K105/1000) -> 0 | L179: 0 | M179: =IF(L179=0,0,(E179*'Product Data and EFs'!K105/1000-'Product Emissions Analysis'!L179)) -> 0 | N179: 0 | O179: 0 | P179: =IF(N179=0,0,N179*'Product Data and EFs'!L105/1000) -> 0 | Q179: =IF(O179=0,0,O179*'Product Data and EFs'!K105/1000) -> 0 | R179: 0 | S179: =IF(R179=0,0,(E179*'Product Data and EFs'!K105/1000-'Product Emissions Analysis'!R179)) -> 0 | T179: 0
D180: TV - Plasma TVs under 60" | H180: 0 | I180: 0 | J180: =IF(H180=0,0,H180*'Product Data and EFs'!L106/1000) -> 0 | K180: =IF(I180=0,0,I180*'Product Data and EFs'!K106/1000) -> 0 | L180: 0 | M180: =IF(L180=0,0,(E180*'Product Data and EFs'!K106/1000-'Product Emissions Analysis'!L180)) -> 0 | N180: 0 | O180: 0 | P180: =IF(N180=0,0,N180*'Product Data and EFs'!L106/1000) -> 0 | Q180: =IF(O180=0,0,O180*'Product Data and EFs'!K106/1000) -> 0 | R180: 0 | S180: =IF(R180=0,0,(E180*'Product Data and EFs'!K106/1000-'Product Emissions Analysis'!R180)) -> 0 | T180: 0
D181: TV - Plasma TVs 60" and up | H181: 0 | I181: 0 | J181: =IF(H181=0,0,H181*'Product Data and EFs'!L107/1000) -> 0 | K181: =IF(I181=0,0,I181*'Product Data and EFs'!K107/1000) -> 0 | L181: 0 | M181: =IF(L181=0,0,(E181*'Product Data and EFs'!K107/1000-'Product Emissions Analysis'!L181)) -> 0 | N181: 0 | O181: 0 | P181: =IF(N181=0,0,N181*'Product Data and EFs'!L107/1000) -> 0 | Q181: =IF(O181=0,0,O181*'Product Data and EFs'!K107/1000) -> 0 | R181: 0 | S181: =IF(R181=0,0,(E181*'Product Data and EFs'!K107/1000-'Product Emissions Analysis'!R181)) -> 0 | T181: 0
D182: TV - OLED TVs | H182: 0 | I182: 0 | J182: =IF(H182=0,0,H182*'Product Data and EFs'!L108/1000) -> 0 | K182: =IF(I182=0,0,I182*'Product Data and EFs'!K108/1000) -> 0 | L182: 0 | M182: =IF(L182=0,0,(E182*'Product Data and EFs'!K108/1000-'Product Emissions Analysis'!L182)) -> 0 | N182: 0 | O182: 0 | P182: =IF(N182=0,0,N182*'Product Data and EFs'!L108/1000) -> 0 | Q182: =IF(O182=0,0,O182*'Product Data and EFs'!K108/1000) -> 0 | R182: 0 | S182: =IF(R182=0,0,(E182*'Product Data and EFs'!K108/1000-'Product Emissions Analysis'!R182)) -> 0 | T182: 0
D183: DVD Players | H183: 0 | I183: 0 | J183: =IF(H183=0,0,H183*'Product Data and EFs'!L109/1000) -> 0 | K183: =IF(I183=0,0,I183*'Product Data and EFs'!K109/1000) -> 0 | L183: 0 | M183: =IF(L183=0,0,(E183*'Product Data and EFs'!K109/1000-'Product Emissions Analysis'!L183)) -> 0 | N183: 0 | O183: 0 | P183: =IF(N183=0,0,N183*'Product Data and EFs'!L109/1000) -> 0 | Q183: =IF(O183=0,0,O183*'Product Data and EFs'!K109/1000) -> 0 | R183: 0 | S183: =IF(R183=0,0,(E183*'Product Data and EFs'!K109/1000-'Product Emissions Analysis'!R183)) -> 0 | T183: 0
D184: Blu Ray | H184: 0 | I184: 0 | J184: =IF(H184=0,0,H184*'Product Data and EFs'!L110/1000) -> 0 | K184: =IF(I184=0,0,I184*'Product Data and EFs'!K110/1000) -> 0 | L184: 0 | M184: =IF(L184=0,0,(E184*'Product Data and EFs'!K110/1000-'Product Emissions Analysis'!L184)) -> 0 | N184: 0 | O184: 0 | P184: =IF(N184=0,0,N184*'Product Data and EFs'!L110/1000) -> 0 | Q184: =IF(O184=0,0,O184*'Product Data and EFs'!K110/1000) -> 0 | R184: 0 | S184: =IF(R184=0,0,(E184*'Product Data and EFs'!K110/1000-'Product Emissions Analysis'!R184)) -> 0 | T184: 0
D185: Audio Equipment - Receivers | H185: 0 | I185: 0 | J185: =IF(H185=0,0,H185*'Product Data and EFs'!L111/1000) -> 0 | K185: =IF(I185=0,0,I185*'Product Data and EFs'!K111/1000) -> 0 | L185: 0 | M185: =IF(L185=0,0,(E185*'Product Data and EFs'!K111/1000-'Product Emissions Analysis'!L185)) -> 0 | N185: 0 | O185: 0 | P185: =IF(N185=0,0,N185*'Product Data and EFs'!L111/1000) -> 0 | Q185: =IF(O185=0,0,O185*'Product Data and EFs'!K111/1000) -> 0 | R185: 0 | S185: =IF(R185=0,0,(E185*'Product Data and EFs'!K111/1000-'Product Emissions Analysis'!R185)) -> 0 | T185: 0
D186: Audio Equipment - Home Theater In-a-Box | H186: 0 | I186: 0 | J186: =IF(H186=0,0,H186*'Product Data and EFs'!L112/1000) -> 0 | K186: =IF(I186=0,0,I186*'Product Data and EFs'!K112/1000) -> 0 | L186: 0 | M186: =IF(L186=0,0,(E186*'Product Data and EFs'!K112/1000-'Product Emissions Analysis'!L186)) -> 0 | N186: 0 | O186: 0 | P186: =IF(N186=0,0,N186*'Product Data and EFs'!L112/1000) -> 0 | Q186: =IF(O186=0,0,O186*'Product Data and EFs'!K112/1000) -> 0 | R186: 0 | S186: =IF(R186=0,0,(E186*'Product Data and EFs'!K112/1000-'Product Emissions Analysis'!R186)) -> 0 | T186: 0
D187: Audio Equipment - Compact Systems | H187: 0 | I187: 0 | J187: =IF(H187=0,0,H187*'Product Data and EFs'!L113/1000) -> 0 | K187: =IF(I187=0,0,I187*'Product Data and EFs'!K113/1000) -> 0 | L187: 0 | M187: =IF(L187=0,0,(E187*'Product Data and EFs'!K113/1000-'Product Emissions Analysis'!L187)) -> 0 | N187: 0 | O187: 0 | P187: =IF(N187=0,0,N187*'Product Data and EFs'!L113/1000) -> 0 | Q187: =IF(O187=0,0,O187*'Product Data and EFs'!K113/1000) -> 0 | R187: 0 | S187: =IF(R187=0,0,(E187*'Product Data and EFs'!K113/1000-'Product Emissions Analysis'!R187)) -> 0 | T187: 0
D188: Audio Equipment - Soundbars | H188: 0 | I188: 0 | J188: =IF(H188=0,0,H188*'Product Data and EFs'!L114/1000) -> 0 | K188: =IF(I188=0,0,I188*'Product Data and EFs'!K114/1000) -> 0 | L188: 0 | M188: =IF(L188=0,0,(E188*'Product Data and EFs'!K114/1000-'Product Emissions Analysis'!L188)) -> 0 | N188: 0 | O188: 0 | P188: =IF(N188=0,0,N188*'Product Data and EFs'!L114/1000) -> 0 | Q188: =IF(O188=0,0,O188*'Product Data and EFs'!K114/1000) -> 0 | R188: 0 | S188: =IF(R188=0,0,(E188*'Product Data and EFs'!K114/1000-'Product Emissions Analysis'!R188)) -> 0 | T188: 0
D189: Audio Equipment - Other Powered Speakers | H189: 0 | I189: 0 | J189: =IF(H189=0,0,H189*'Product Data and EFs'!L115/1000) -> 0 | K189: =IF(I189=0,0,I189*'Product Data and EFs'!K115/1000) -> 0 | L189: 0 | M189: =IF(L189=0,0,(E189*'Product Data and EFs'!K115/1000-'Product Emissions Analysis'!L189)) -> 0 | N189: 0 | O189: 0 | P189: =IF(N189=0,0,N189*'Product Data and EFs'!L115/1000) -> 0 | Q189: =IF(O189=0,0,O189*'Product Data and EFs'!K115/1000) -> 0 | R189: 0 | S189: =IF(R189=0,0,(E189*'Product Data and EFs'!K115/1000-'Product Emissions Analysis'!R189)) -> 0 | T189: 0
D190: Audio Equipment - Home Radios | H190: 0 | I190: 0 | J190: =IF(H190=0,0,H190*'Product Data and EFs'!L116/1000) -> 0 | K190: =IF(I190=0,0,I190*'Product Data and EFs'!K116/1000) -> 0 | L190: 0 | M190: =IF(L190=0,0,(E190*'Product Data and EFs'!K116/1000-'Product Emissions Analysis'!L190)) -> 0 | N190: 0 | O190: 0 | P190: =IF(N190=0,0,N190*'Product Data and EFs'!L116/1000) -> 0 | Q190: =IF(O190=0,0,O190*'Product Data and EFs'!K116/1000) -> 0 | R190: 0 | S190: =IF(R190=0,0,(E190*'Product Data and EFs'!K116/1000-'Product Emissions Analysis'!R190)) -> 0 | T190: 0
D191: Audio Equipment - Portable Media/MP3 Player Speakers and Docks | H191: 0 | I191: 0 | J191: =IF(H191=0,0,H191*'Product Data and EFs'!L117/1000) -> 0 | K191: =IF(I191=0,0,I191*'Product Data and EFs'!K117/1000) -> 0 | L191: 0 | M191: =IF(L191=0,0,(E191*'Product Data and EFs'!K117/1000-'Product Emissions Analysis'!L191)) -> 0 | N191: 0 | O191: 0 | P191: =IF(N191=0,0,N191*'Product Data and EFs'!L117/1000) -> 0 | Q191: =IF(O191=0,0,O191*'Product Data and EFs'!K117/1000) -> 0 | R191: 0 | S191: =IF(R191=0,0,(E191*'Product Data and EFs'!K117/1000-'Product Emissions Analysis'!R191)) -> 0 | T191: 0
D192: Residential Telephony | H192: 0 | I192: 0 | J192: =IF(H192=0,0,H192*'Product Data and EFs'!L118/1000) -> 0 | K192: =IF(I192=0,0,I192*'Product Data and EFs'!K118/1000) -> 0 | L192: 0 | M192: =IF(L192=0,0,(E192*'Product Data and EFs'!K118/1000-'Product Emissions Analysis'!L192)) -> 0 | N192: 0 | O192: 0 | P192: =IF(N192=0,0,N192*'Product Data and EFs'!L118/1000) -> 0 | Q192: =IF(O192=0,0,O192*'Product Data and EFs'!K118/1000) -> 0 | R192: 0 | S192: =IF(R192=0,0,(E192*'Product Data and EFs'!K118/1000-'Product Emissions Analysis'!R192)) -> 0 | T192: 0
D193: Commercial Telephony (VOIP) | H193: 0 | I193: 0 | J193: =IF(H193=0,0,H193*'Product Data and EFs'!L119/1000) -> 0 | K193: =IF(I193=0,0,I193*'Product Data and EFs'!K119/1000) -> 0 | L193: 0 | M193: =IF(L193=0,0,(E193*'Product Data and EFs'!K119/1000-'Product Emissions Analysis'!L193)) -> 0 | N193: 0 | O193: 0 | P193: =IF(N193=0,0,N193*'Product Data and EFs'!L119/1000) -> 0 | Q193: =IF(O193=0,0,O193*'Product Data and EFs'!K119/1000) -> 0 | R193: 0 | S193: =IF(R193=0,0,(E193*'Product Data and EFs'!K119/1000-'Product Emissions Analysis'!R193)) -> 0 | T193: 0
D194: Set Top Box - Cable | H194: 0 | I194: 0 | J194: =IF(H194=0,0,H194*'Product Data and EFs'!L120/1000) -> 0 | K194: =IF(I194=0,0,I194*'Product Data and EFs'!K120/1000) -> 0 | L194: 0 | M194: =IF(L194=0,0,(E194*'Product Data and EFs'!K120/1000-'Product Emissions Analysis'!L194)) -> 0 | N194: 0 | O194: 0 | P194: =IF(N194=0,0,N194*'Product Data and EFs'!L120/1000) -> 0 | Q194: =IF(O194=0,0,O194*'Product Data and EFs'!K120/1000) -> 0 | R194: 0 | S194: =IF(R194=0,0,(E194*'Product Data and EFs'!K120/1000-'Product Emissions Analysis'!R194)) -> 0 | T194: 0
D195: Set Top Box - Cable Digital Transport Adapter | H195: 0 | I195: 0 | J195: =IF(H195=0,0,H195*'Product Data and EFs'!L121/1000) -> 0 | K195: =IF(I195=0,0,I195*'Product Data and EFs'!K121/1000) -> 0 | L195: 0 | M195: =IF(L195=0,0,(E195*'Product Data and EFs'!K121/1000-'Product Emissions Analysis'!L195)) -> 0 | N195: 0 | O195: 0 | P195: =IF(N195=0,0,N195*'Product Data and EFs'!L121/1000) -> 0 | Q195: =IF(O195=0,0,O195*'Product Data and EFs'!K121/1000) -> 0 | R195: 0 | S195: =IF(R195=0,0,(E195*'Product Data and EFs'!K121/1000-'Product Emissions Analysis'!R195)) -> 0 | T195: 0
D196: Set Top Box - Satellite | H196: 0 | I196: 0 | J196: =IF(H196=0,0,H196*'Product Data and EFs'!L122/1000) -> 0 | K196: =IF(I196=0,0,I196*'Product Data and EFs'!K122/1000) -> 0 | L196: 0 | M196: =IF(L196=0,0,(E196*'Product Data and EFs'!K122/1000-'Product Emissions Analysis'!L196)) -> 0 | N196: 0 | O196: 0 | P196: =IF(N196=0,0,N196*'Product Data and EFs'!L122/1000) -> 0 | Q196: =IF(O196=0,0,O196*'Product Data and EFs'!K122/1000) -> 0 | R196: 0 | S196: =IF(R196=0,0,(E196*'Product Data and EFs'!K122/1000-'Product Emissions Analysis'!R196)) -> 0 | T196: 0
D197: Set Top Box - Multichannel Video Programming Distributor (MVPD) Internet Protocol (IP) | H197: =IF(F197="",0,ROUND(E197*F197,0)) -> 0 | I197: =IF(F197="",0,E197-H197) -> 0 | J197: =IF(H197=0,0,H197*'Product Data and EFs'!L123/1000) -> 0 | K197: =IF(I197=0,0,I197*'Product Data and EFs'!K123/1000) -> 0 | L197: 0 | M197: =IF(L197=0,0,(E197*'Product Data and EFs'!K123/1000-'Product Emissions Analysis'!L197)) -> 0 | N197: 0 | O197: 0 | P197: =IF(N197=0,0,N197*'Product Data and EFs'!L123/1000) -> 0 | Q197: =IF(O197=0,0,O197*'Product Data and EFs'!K123/1000) -> 0 | R197: 0 | S197: =IF(R197=0,0,(E197*'Product Data and EFs'!K123/1000-'Product Emissions Analysis'!R197)) -> 0 | T197: 0
D198: Set Top Box - Over-the-Top (OTT) Internet Protocol (IP) | H198: 0 | I198: 0 | J198: =IF(H198=0,0,H198*'Product Data and EFs'!L124/1000) -> 0 | K198: =IF(I198=0,0,I198*'Product Data and EFs'!K124/1000) -> 0 | L198: 0 | M198: =IF(L198=0,0,(E198*'Product Data and EFs'!K124/1000-'Product Emissions Analysis'!L198)) -> 0 | N198: 0 | O198: 0 | P198: =IF(N198=0,0,N198*'Product Data and EFs'!L124/1000) -> 0 | Q198: =IF(O198=0,0,O198*'Product Data and EFs'!K124/1000) -> 0 | R198: 0 | S198: =IF(R198=0,0,(E198*'Product Data and EFs'!K124/1000-'Product Emissions Analysis'!R198)) -> 0 | T198: 0
D199: Set Top Box - Thin-client | H199: 0 | I199: 0 | J199: =IF(H199=0,0,H199*'Product Data and EFs'!L125/1000) -> 0 | K199: =IF(I199=0,0,I199*'Product Data and EFs'!K125/1000) -> 0 | L199: 0 | M199: =IF(L199=0,0,(E199*'Product Data and EFs'!K125/1000-'Product Emissions Analysis'!L199)) -> 0 | N199: 0 | O199: 0 | P199: =IF(N199=0,0,N199*'Product Data and EFs'!L125/1000) -> 0 | Q199: =IF(O199=0,0,O199*'Product Data and EFs'!K125/1000) -> 0 | R199: 0 | S199: =IF(R199=0,0,(E199*'Product Data and EFs'!K125/1000-'Product Emissions Analysis'!R199)) -> 0 | T199: 0
D200: Computer Servers | H200: 0 | I200: 0 | J200: =IF(H200=0,0,H200*'Product Data and EFs'!L126/1000) -> 0 | K200: =IF(I200=0,0,I200*'Product Data and EFs'!K126/1000) -> 0 | L200: 0 | M200: =IF(L200=0,0,(E200*'Product Data and EFs'!K126/1000-'Product Emissions Analysis'!L200)) -> 0 | N200: 0 | O200: 0 | P200: =IF(N200=0,0,N200*'Product Data and EFs'!L126/1000) -> 0 | Q200: =IF(O200=0,0,O200*'Product Data and EFs'!K126/1000) -> 0 | R200: 0 | S200: =IF(R200=0,0,(E200*'Product Data and EFs'!K126/1000-'Product Emissions Analysis'!R200)) -> 0 | T200: 0
D201: TOTAL | E201: =SUM(E169:E200) -> 0 | F201: NA | G201: NA | H201: =SUM(H169:H200) -> 0 | I201: 0 | J201: 0 | K201: 0 | L201: 0 | M201: 0 | N201: 0 | O201: 0 | P201: 0 | Q201: 0 | R201: 0 | S201: 0 | T201: 0
D203: Annual
H205: Current | N205: Increased ENERGY STAR Sales
D206: Product Type | E206: Total Unit Sales | F206: % of Current Sales that are ENERGY STAR | G206: Higher % of Sales that are ENERGY STAR for Analysis | H206: Total ENERGY STAR Product Sales | I206: Total Standard Product Sales | J206: Annual Product Use Emissions - ENERGY STAR (Metric Tons CO2e) | K206: Annual Product Use Emissions - Standard (Metric Tons CO2e) | L206: Annual Total Product Use Emissions (Metric Tons CO2e) | M206: Annual Emissions Savings from ENERGY STAR Product Sales (Metric Tons CO2e) | N206: Total ENERGY STAR Product Sales | O206: Total Standard Product Sales | P206: Annual Product Use Emissions - ENERGY STAR (Metric Tons CO2e) | Q206: Annual Product Use Emissions - Standard (Metric Tons CO2e) | R206: Annual Total Product Use Emissions (Metric Tons CO2e) | S206: Annual Emissions Savings from ENERGY STAR Product Sales (Metric Tons CO2e) | T206: Additional Annual Emissions Savings Achieved with Increased ENERGY STAR Sales (Metric Tons CO2e)
D207: TV - LCD TVs 20" and under | E207: =IF(E169="","",E169) ->  | F207: =IF(F169="","",F169) ->  | G207: =IF(G169="","",G169) ->  | H207: =IF(F207="",0,ROUND(E207*F207,0)) -> 0 | I207: =IF(F207="",0,E207-H207) -> 0 | J207: =IF(H207=0,0,H207*'Product Data and EFs'!L95/1000/'Product Data and EFs'!F95) -> 0 | K207: =IF(I207=0,0,I207*'Product Data and EFs'!K95/1000/'Product Data and EFs'!F95) -> 0 | L207: =IF(F207="",0,SUM(J207:K207)) -> 0 | M207: =IF(L207=0,0,(E207*'Product Data and EFs'!K95/1000/'Product Data and EFs'!F95-'Product Emissions Analysis'!L207)) -> 0 | N207: =IF(G207="",0,ROUND(E207*G207,0)) -> 0 | O207: =IF(G207="",0,E207-N207) -> 0 | P207: =IF(N207=0,0,N207*'Product Data and EFs'!L95/1000/'Product Data and EFs'!F95) -> 0 | Q207: =IF(O207=0,0,O207*'Product Data and EFs'!K95/1000/'Product Data and EFs'!F95) -> 0 | R207: =IF(G207="",0,SUM(P207:Q207)) -> 0 | S207: =IF(R207=0,0,(E207*'Product Data and EFs'!K95/1000/'Product Data and EFs'!F95-'Product Emissions Analysis'!R207)) -> 0 | T207: =IF(G207="",0,L207-R207) -> 0
D208: TV - LCD TVs 21"-23" | E208: =IF(E170="","",E170) ->  | H208: =IF(F208="",0,ROUND(E208*F208,0)) -> 0 | I208: =IF(F208="",0,E208-H208) -> 0 | J208: =IF(H208=0,0,H208*'Product Data and EFs'!L96/1000/'Product Data and EFs'!F96) -> 0 | K208: =IF(I208=0,0,I208*'Product Data and EFs'!K96/1000/'Product Data and EFs'!F96) -> 0 | L208: =IF(F208="",0,SUM(J208:K208)) -> 0 | M208: =IF(L208=0,0,(E208*'Product Data and EFs'!K96/1000/'Product Data and EFs'!F96-'Product Emissions Analysis'!L208)) -> 0 | N208: =IF(G208="",0,ROUND(E208*G208,0)) -> 0 | O208: =IF(G208="",0,E208-N208) -> 0 | P208: =IF(N208=0,0,N208*'Product Data and EFs'!L96/1000/'Product Data and EFs'!F96) -> 0 | Q208: =IF(O208=0,0,O208*'Product Data and EFs'!K96/1000/'Product Data and EFs'!F96) -> 0 | R208: =IF(G208="",0,SUM(P208:Q208)) -> 0 | S208: =IF(R208=0,0,(E208*'Product Data and EFs'!K96/1000/'Product Data and EFs'!F96-'Product Emissions Analysis'!R208)) -> 0 | T208: =IF(G208="",0,L208-R208) -> 0
D209: TV - LCD TVs 24"-29" | E209: =IF(E171="","",E171) ->  | H209: 0 | I209: 0 | J209: =IF(H209=0,0,H209*'Product Data and EFs'!L97/1000/'Product Data and EFs'!F97) -> 0 | K209: =IF(I209=0,0,I209*'Product Data and EFs'!K97/1000/'Product Data and EFs'!F97) -> 0 | L209: 0 | M209: =IF(L209=0,0,(E209*'Product Data and EFs'!K97/1000/'Product Data and EFs'!F97-'Product Emissions Analysis'!L209)) -> 0 | N209: 0 | O209: 0 | P209: =IF(N209=0,0,N209*'Product Data and EFs'!L97/1000/'Product Data and EFs'!F97) -> 0 | Q209: =IF(O209=0,0,O209*'Product Data and EFs'!K97/1000/'Product Data and EFs'!F97) -> 0 | R209: 0 | S209: =IF(R209=0,0,(E209*'Product Data and EFs'!K97/1000/'Product Data and EFs'!F97-'Product Emissions Analysis'!R209)) -> 0 | T209: 0
D210: TV - LCD TVs 30"-34" | E210: =IF(E172="","",E172) ->  | H210: 0 | I210: 0 | J210: =IF(H210=0,0,H210*'Product Data and EFs'!L98/1000/'Product Data and EFs'!F98) -> 0 | K210: =IF(I210=0,0,I210*'Product Data and EFs'!K98/1000/'Product Data and EFs'!F98) -> 0 | L210: 0 | M210: =IF(L210=0,0,(E210*'Product Data and EFs'!K98/1000/'Product Data and EFs'!F98-'Product Emissions Analysis'!L210)) -> 0 | N210: 0 | O210: 0 | P210: =IF(N210=0,0,N210*'Product Data and EFs'!L98/1000/'Product Data and EFs'!F98) -> 0 | Q210: =IF(O210=0,0,O210*'Product Data and EFs'!K98/1000/'Product Data and EFs'!F98) -> 0 | R210: 0 | S210: =IF(R210=0,0,(E210*'Product Data and EFs'!K98/1000/'Product Data and EFs'!F98-'Product Emissions Analysis'!R210)) -> 0 | T210: 0
D211: TV - LCD TVs 35"-39" | E211: =IF(E173="","",E173) ->  | H211: 0 | I211: 0 | J211: =IF(H211=0,0,H211*'Product Data and EFs'!L99/1000/'Product Data and EFs'!F99) -> 0 | K211: =IF(I211=0,0,I211*'Product Data and EFs'!K99/1000/'Product Data and EFs'!F99) -> 0 | L211: 0 | M211: =IF(L211=0,0,(E211*'Product Data and EFs'!K99/1000/'Product Data and EFs'!F99-'Product Emissions Analysis'!L211)) -> 0 | N211: 0 | O211: 0 | P211: =IF(N211=0,0,N211*'Product Data and EFs'!L99/1000/'Product Data and EFs'!F99) -> 0 | Q211: =IF(O211=0,0,O211*'Product Data and EFs'!K99/1000/'Product Data and EFs'!F99) -> 0 | R211: 0 | S211: =IF(R211=0,0,(E211*'Product Data and EFs'!K99/1000/'Product Data and EFs'!F99-'Product Emissions Analysis'!R211)) -> 0 | T211: 0
D212: TV - LCD TVs 40"-44" | E212: =IF(E174="","",E174) ->  | H212: 0 | I212: 0 | J212: =IF(H212=0,0,H212*'Product Data and EFs'!L100/1000/'Product Data and EFs'!F100) -> 0 | K212: =IF(I212=0,0,I212*'Product Data and EFs'!K100/1000/'Product Data and EFs'!F100) -> 0 | L212: 0 | M212: =IF(L212=0,0,(E212*'Product Data and EFs'!K100/1000/'Product Data and EFs'!F100-'Product Emissions Analysis'!L212)) -> 0 | N212: 0 | O212: 0 | P212: =IF(N212=0,0,N212*'Product Data and EFs'!L100/1000/'Product Data and EFs'!F100) -> 0 | Q212: =IF(O212=0,0,O212*'Product Data and EFs'!K100/1000/'Product Data and EFs'!F100) -> 0 | R212: 0 | S212: =IF(R212=0,0,(E212*'Product Data and EFs'!K100/1000/'Product Data and EFs'!F100-'Product Emissions Analysis'!R212)) -> 0 | T212: 0
D213: TV - LCD TVs 45"-49" | E213: =IF(E175="","",E175) ->  | H213: 0 | I213: 0 | J213: =IF(H213=0,0,H213*'Product Data and EFs'!L101/1000/'Product Data and EFs'!F101) -> 0 | K213: =IF(I213=0,0,I213*'Product Data and EFs'!K101/1000/'Product Data and EFs'!F101) -> 0 | L213: 0 | M213: =IF(L213=0,0,(E213*'Product Data and EFs'!K101/1000/'Product Data and EFs'!F101-'Product Emissions Analysis'!L213)) -> 0 | N213: 0 | O213: 0 | P213: =IF(N213=0,0,N213*'Product Data and EFs'!L101/1000/'Product Data and EFs'!F101) -> 0 | Q213: =IF(O213=0,0,O213*'Product Data and EFs'!K101/1000/'Product Data and EFs'!F101) -> 0 | R213: 0 | S213: =IF(R213=0,0,(E213*'Product Data and EFs'!K101/1000/'Product Data and EFs'!F101-'Product Emissions Analysis'!R213)) -> 0 | T213: 0
D214: TV - LCD TVs 50"-54" | E214: =IF(E176="","",E176) ->  | H214: 0 | I214: 0 | J214: =IF(H214=0,0,H214*'Product Data and EFs'!L102/1000/'Product Data and EFs'!F102) -> 0 | K214: =IF(I214=0,0,I214*'Product Data and EFs'!K102/1000/'Product Data and EFs'!F102) -> 0 | L214: 0 | M214: =IF(L214=0,0,(E214*'Product Data and EFs'!K102/1000/'Product Data and EFs'!F102-'Product Emissions Analysis'!L214)) -> 0 | N214: 0 | O214: 0 | P214: =IF(N214=0,0,N214*'Product Data and EFs'!L102/1000/'Product Data and EFs'!F102) -> 0 | Q214: =IF(O214=0,0,O214*'Product Data and EFs'!K102/1000/'Product Data and EFs'!F102) -> 0 | R214: 0 | S214: =IF(R214=0,0,(E214*'Product Data and EFs'!K102/1000/'Product Data and EFs'!F102-'Product Emissions Analysis'!R214)) -> 0 | T214: 0
D215: TV - LCD TVs 55"-59" | E215: =IF(E177="","",E177) ->  | H215: 0 | I215: 0 | J215: =IF(H215=0,0,H215*'Product Data and EFs'!L103/1000/'Product Data and EFs'!F103) -> 0 | K215: =IF(I215=0,0,I215*'Product Data and EFs'!K103/1000/'Product Data and EFs'!F103) -> 0 | L215: 0 | M215: =IF(L215=0,0,(E215*'Product Data and EFs'!K103/1000/'Product Data and EFs'!F103-'Product Emissions Analysis'!L215)) -> 0 | N215: 0 | O215: 0 | P215: =IF(N215=0,0,N215*'Product Data and EFs'!L103/1000/'Product Data and EFs'!F103) -> 0 | Q215: =IF(O215=0,0,O215*'Product Data and EFs'!K103/1000/'Product Data and EFs'!F103) -> 0 | R215: 0 | S215: =IF(R215=0,0,(E215*'Product Data and EFs'!K103/1000/'Product Data and EFs'!F103-'Product Emissions Analysis'!R215)) -> 0 | T215: 0
D216: TV - LCD TVs 60"-64" | E216: =IF(E178="","",E178) ->  | H216: 0 | I216: 0 | J216: =IF(H216=0,0,H216*'Product Data and EFs'!L104/1000/'Product Data and EFs'!F104) -> 0 | K216: =IF(I216=0,0,I216*'Product Data and EFs'!K104/1000/'Product Data and EFs'!F104) -> 0 | L216: 0 | M216: =IF(L216=0,0,(E216*'Product Data and EFs'!K104/1000/'Product Data and EFs'!F104-'Product Emissions Analysis'!L216)) -> 0 | N216: 0 | O216: 0 | P216: =IF(N216=0,0,N216*'Product Data and EFs'!L104/1000/'Product Data and EFs'!F104) -> 0 | Q216: =IF(O216=0,0,O216*'Product Data and EFs'!K104/1000/'Product Data and EFs'!F104) -> 0 | R216: 0 | S216: =IF(R216=0,0,(E216*'Product Data and EFs'!K104/1000/'Product Data and EFs'!F104-'Product Emissions Analysis'!R216)) -> 0 | T216: 0
D217: TV - LCD TVs 65" or greater | E217: =IF(E179="","",E179) ->  | H217: 0 | I217: 0 | J217: =IF(H217=0,0,H217*'Product Data and EFs'!L105/1000/'Product Data and EFs'!F105) -> 0 | K217: =IF(I217=0,0,I217*'Product Data and EFs'!K105/1000/'Product Data and EFs'!F105) -> 0 | L217: 0 | M217: =IF(L217=0,0,(E217*'Product Data and EFs'!K105/1000/'Product Data and EFs'!F105-'Product Emissions Analysis'!L217)) -> 0 | N217: 0 | O217: 0 | P217: =IF(N217=0,0,N217*'Product Data and EFs'!L105/1000/'Product Data and EFs'!F105) -> 0 | Q217: =IF(O217=0,0,O217*'Product Data and EFs'!K105/1000/'Product Data and EFs'!F105) -> 0 | R217: 0 | S217: =IF(R217=0,0,(E217*'Product Data and EFs'!K105/1000/'Product Data and EFs'!F105-'Product Emissions Analysis'!R217)) -> 0 | T217: 0
D218: TV - Plasma TVs under 60" | E218: =IF(E180="","",E180) ->  | H218: 0 | I218: 0 | J218: =IF(H218=0,0,H218*'Product Data and EFs'!L106/1000/'Product Data and EFs'!F106) -> 0 | K218: =IF(I218=0,0,I218*'Product Data and EFs'!K106/1000/'Product Data and EFs'!F106) -> 0 | L218: 0 | M218: =IF(L218=0,0,(E218*'Product Data and EFs'!K106/1000/'Product Data and EFs'!F106-'Product Emissions Analysis'!L218)) -> 0 | N218: 0 | O218: 0 | P218: =IF(N218=0,0,N218*'Product Data and EFs'!L106/1000/'Product Data and EFs'!F106) -> 0 | Q218: =IF(O218=0,0,O218*'Product Data and EFs'!K106/1000/'Product Data and EFs'!F106) -> 0 | R218: 0 | S218: =IF(R218=0,0,(E218*'Product Data and EFs'!K106/1000/'Product Data and EFs'!F106-'Product Emissions Analysis'!R218)) -> 0 | T218: 0
D219: TV - Plasma TVs 60" and up | E219: =IF(E181="","",E181) ->  | H219: 0 | I219: 0 | J219: =IF(H219=0,0,H219*'Product Data and EFs'!L107/1000/'Product Data and EFs'!F107) -> 0 | K219: =IF(I219=0,0,I219*'Product Data and EFs'!K107/1000/'Product Data and EFs'!F107) -> 0 | L219: 0 | M219: =IF(L219=0,0,(E219*'Product Data and EFs'!K107/1000/'Product Data and EFs'!F107-'Product Emissions Analysis'!L219)) -> 0 | N219: 0 | O219: 0 | P219: =IF(N219=0,0,N219*'Product Data and EFs'!L107/1000/'Product Data and EFs'!F107) -> 0 | Q219: =IF(O219=0,0,O219*'Product Data and EFs'!K107/1000/'Product Data and EFs'!F107) -> 0 | R219: 0 | S219: =IF(R219=0,0,(E219*'Product Data and EFs'!K107/1000/'Product Data and EFs'!F107-'Product Emissions Analysis'!R219)) -> 0 | T219: 0
D220: TV - OLED TVs | E220: =IF(E182="","",E182) ->  | H220: 0 | I220: 0 | J220: =IF(H220=0,0,H220*'Product Data and EFs'!L108/1000/'Product Data and EFs'!F108) -> 0 | K220: =IF(I220=0,0,I220*'Product Data and EFs'!K108/1000/'Product Data and EFs'!F108) -> 0 | L220: 0 | M220: =IF(L220=0,0,(E220*'Product Data and EFs'!K108/1000/'Product Data and EFs'!F108-'Product Emissions Analysis'!L220)) -> 0 | N220: 0 | O220: 0 | P220: =IF(N220=0,0,N220*'Product Data and EFs'!L108/1000/'Product Data and EFs'!F108) -> 0 | Q220: =IF(O220=0,0,O220*'Product Data and EFs'!K108/1000/'Product Data and EFs'!F108) -> 0 | R220: 0 | S220: =IF(R220=0,0,(E220*'Product Data and EFs'!K108/1000/'Product Data and EFs'!F108-'Product Emissions Analysis'!R220)) -> 0 | T220: 0
D221: DVD Players | E221: =IF(E183="","",E183) ->  | H221: 0 | I221: 0 | J221: =IF(H221=0,0,H221*'Product Data and EFs'!L109/1000/'Product Data and EFs'!F109) -> 0 | K221: =IF(I221=0,0,I221*'Product Data and EFs'!K109/1000/'Product Data and EFs'!F109) -> 0 | L221: 0 | M221: =IF(L221=0,0,(E221*'Product Data and EFs'!K109/1000/'Product Data and EFs'!F109-'Product Emissions Analysis'!L221)) -> 0 | N221: 0 | O221: 0 | P221: =IF(N221=0,0,N221*'Product Data and EFs'!L109/1000/'Product Data and EFs'!F109) -> 0 | Q221: =IF(O221=0,0,O221*'Product Data and EFs'!K109/1000/'Product Data and EFs'!F109) -> 0 | R221: 0 | S221: =IF(R221=0,0,(E221*'Product Data and EFs'!K109/1000/'Product Data and EFs'!F109-'Product Emissions Analysis'!R221)) -> 0 | T221: 0
D222: Blu Ray | E222: =IF(E184="","",E184) ->  | H222: 0 | I222: 0 | J222: =IF(H222=0,0,H222*'Product Data and EFs'!L110/1000/'Product Data and EFs'!F110) -> 0 | K222: =IF(I222=0,0,I222*'Product Data and EFs'!K110/1000/'Product Data and EFs'!F110) -> 0 | L222: 0 | M222: =IF(L222=0,0,(E222*'Product Data and EFs'!K110/1000/'Product Data and EFs'!F110-'Product Emissions Analysis'!L222)) -> 0 | N222: 0 | O222: 0 | P222: =IF(N222=0,0,N222*'Product Data and EFs'!L110/1000/'Product Data and EFs'!F110) -> 0 | Q222: =IF(O222=0,0,O222*'Product Data and EFs'!K110/1000/'Product Data and EFs'!F110) -> 0 | R222: 0 | S222: =IF(R222=0,0,(E222*'Product Data and EFs'!K110/1000/'Product Data and EFs'!F110-'Product Emissions Analysis'!R222)) -> 0 | T222: 0
D223: Audio Equipment - Receivers | E223: =IF(E185="","",E185) ->  | H223: 0 | I223: 0 | J223: =IF(H223=0,0,H223*'Product Data and EFs'!L111/1000/'Product Data and EFs'!F111) -> 0 | K223: =IF(I223=0,0,I223*'Product Data and EFs'!K111/1000/'Product Data and EFs'!F111) -> 0 | L223: 0 | M223: =IF(L223=0,0,(E223*'Product Data and EFs'!K111/1000/'Product Data and EFs'!F111-'Product Emissions Analysis'!L223)) -> 0 | N223: 0 | O223: 0 | P223: =IF(N223=0,0,N223*'Product Data and EFs'!L111/1000/'Product Data and EFs'!F111) -> 0 | Q223: =IF(O223=0,0,O223*'Product Data and EFs'!K111/1000/'Product Data and EFs'!F111) -> 0 | R223: 0 | S223: =IF(R223=0,0,(E223*'Product Data and EFs'!K111/1000/'Product Data and EFs'!F111-'Product Emissions Analysis'!R223)) -> 0 | T223: 0
D224: Audio Equipment - Home Theater In-a-Box | E224: =IF(E186="","",E186) ->  | H224: 0 | I224: 0 | J224: =IF(H224=0,0,H224*'Product Data and EFs'!L112/1000/'Product Data and EFs'!F112) -> 0 | K224: =IF(I224=0,0,I224*'Product Data and EFs'!K112/1000/'Product Data and EFs'!F112) -> 0 | L224: 0 | M224: =IF(L224=0,0,(E224*'Product Data and EFs'!K112/1000/'Product Data and EFs'!F112-'Product Emissions Analysis'!L224)) -> 0 | N224: 0 | O224: 0 | P224: =IF(N224=0,0,N224*'Product Data and EFs'!L112/1000/'Product Data and EFs'!F112) -> 0 | Q224: =IF(O224=0,0,O224*'Product Data and EFs'!K112/1000/'Product Data and EFs'!F112) -> 0 | R224: 0 | S224: =IF(R224=0,0,(E224*'Product Data and EFs'!K112/1000/'Product Data and EFs'!F112-'Product Emissions Analysis'!R224)) -> 0 | T224: 0
D225: Audio Equipment - Compact Systems | E225: =IF(E187="","",E187) ->  | H225: 0 | I225: 0 | J225: =IF(H225=0,0,H225*'Product Data and EFs'!L113/1000/'Product Data and EFs'!F113) -> 0 | K225: =IF(I225=0,0,I225*'Product Data and EFs'!K113/1000/'Product Data and EFs'!F113) -> 0 | L225: 0 | M225: =IF(L225=0,0,(E225*'Product Data and EFs'!K113/1000/'Product Data and EFs'!F113-'Product Emissions Analysis'!L225)) -> 0 | N225: 0 | O225: 0 | P225: =IF(N225=0,0,N225*'Product Data and EFs'!L113/1000/'Product Data and EFs'!F113) -> 0 | Q225: =IF(O225=0,0,O225*'Product Data and EFs'!K113/1000/'Product Data and EFs'!F113) -> 0 | R225: 0 | S225: =IF(R225=0,0,(E225*'Product Data and EFs'!K113/1000/'Product Data and EFs'!F113-'Product Emissions Analysis'!R225)) -> 0 | T225: 0
D226: Audio Equipment - Soundbars | E226: =IF(E188="","",E188) ->  | H226: 0 | I226: 0 | J226: =IF(H226=0,0,H226*'Product Data and EFs'!L114/1000/'Product Data and EFs'!F114) -> 0 | K226: =IF(I226=0,0,I226*'Product Data and EFs'!K114/1000/'Product Data and EFs'!F114) -> 0 | L226: 0 | M226: =IF(L226=0,0,(E226*'Product Data and EFs'!K114/1000/'Product Data and EFs'!F114-'Product Emissions Analysis'!L226)) -> 0 | N226: 0 | O226: 0 | P226: =IF(N226=0,0,N226*'Product Data and EFs'!L114/1000/'Product Data and EFs'!F114) -> 0 | Q226: =IF(O226=0,0,O226*'Product Data and EFs'!K114/1000/'Product Data and EFs'!F114) -> 0 | R226: 0 | S226: =IF(R226=0,0,(E226*'Product Data and EFs'!K114/1000/'Product Data and EFs'!F114-'Product Emissions Analysis'!R226)) -> 0 | T226: 0
D227: Audio Equipment - Other Powered Speakers | E227: =IF(E189="","",E189) ->  | H227: 0 | I227: 0 | J227: =IF(H227=0,0,H227*'Product Data and EFs'!L115/1000/'Product Data and EFs'!F115) -> 0 | K227: =IF(I227=0,0,I227*'Product Data and EFs'!K115/1000/'Product Data and EFs'!F115) -> 0 | L227: 0 | M227: =IF(L227=0,0,(E227*'Product Data and EFs'!K115/1000/'Product Data and EFs'!F115-'Product Emissions Analysis'!L227)) -> 0 | N227: 0 | O227: 0 | P227: =IF(N227=0,0,N227*'Product Data and EFs'!L115/1000/'Product Data and EFs'!F115) -> 0 | Q227: =IF(O227=0,0,O227*'Product Data and EFs'!K115/1000/'Product Data and EFs'!F115) -> 0 | R227: 0 | S227: =IF(R227=0,0,(E227*'Product Data and EFs'!K115/1000/'Product Data and EFs'!F115-'Product Emissions Analysis'!R227)) -> 0 | T227: 0
D228: Audio Equipment - Home Radios | E228: =IF(E190="","",E190) ->  | H228: 0 | I228: 0 | J228: =IF(H228=0,0,H228*'Product Data and EFs'!L116/1000/'Product Data and EFs'!F116) -> 0 | K228: =IF(I228=0,0,I228*'Product Data and EFs'!K116/1000/'Product Data and EFs'!F116) -> 0 | L228: 0 | M228: =IF(L228=0,0,(E228*'Product Data and EFs'!K116/1000/'Product Data and EFs'!F116-'Product Emissions Analysis'!L228)) -> 0 | N228: 0 | O228: 0 | P228: =IF(N228=0,0,N228*'Product Data and EFs'!L116/1000/'Product Data and EFs'!F116) -> 0 | Q228: =IF(O228=0,0,O228*'Product Data and EFs'!K116/1000/'Product Data and EFs'!F116) -> 0 | R228: 0 | S228: =IF(R228=0,0,(E228*'Product Data and EFs'!K116/1000/'Product Data and EFs'!F116-'Product Emissions Analysis'!R228)) -> 0 | T228: 0
D229: Audio Equipment - Portable Media/MP3 Player Speakers and Docks | E229: =IF(E191="","",E191) ->  | H229: 0 | I229: 0 | J229: =IF(H229=0,0,H229*'Product Data and EFs'!L117/1000/'Product Data and EFs'!F117) -> 0 | K229: =IF(I229=0,0,I229*'Product Data and EFs'!K117/1000/'Product Data and EFs'!F117) -> 0 | L229: 0 | M229: =IF(L229=0,0,(E229*'Product Data and EFs'!K117/1000/'Product Data and EFs'!F117-'Product Emissions Analysis'!L229)) -> 0 | N229: 0 | O229: 0 | P229: =IF(N229=0,0,N229*'Product Data and EFs'!L117/1000/'Product Data and EFs'!F117) -> 0 | Q229: =IF(O229=0,0,O229*'Product Data and EFs'!K117/1000/'Product Data and EFs'!F117) -> 0 | R229: 0 | S229: =IF(R229=0,0,(E229*'Product Data and EFs'!K117/1000/'Product Data and EFs'!F117-'Product Emissions Analysis'!R229)) -> 0 | T229: 0
D230: Residential Telephony | E230: =IF(E192="","",E192) ->  | H230: 0 | I230: 0 | J230: =IF(H230=0,0,H230*'Product Data and EFs'!L118/1000/'Product Data and EFs'!F118) -> 0 | K230: =IF(I230=0,0,I230*'Product Data and EFs'!K118/1000/'Product Data and EFs'!F118) -> 0 | L230: 0 | M230: =IF(L230=0,0,(E230*'Product Data and EFs'!K118/1000/'Product Data and EFs'!F118-'Product Emissions Analysis'!L230)) -> 0 | N230: 0 | O230: 0 | P230: =IF(N230=0,0,N230*'Product Data and EFs'!L118/1000/'Product Data and EFs'!F118) -> 0 | Q230: =IF(O230=0,0,O230*'Product Data and EFs'!K118/1000/'Product Data and EFs'!F118) -> 0 | R230: 0 | S230: =IF(R230=0,0,(E230*'Product Data and EFs'!K118/1000/'Product Data and EFs'!F118-'Product Emissions Analysis'!R230)) -> 0 | T230: 0
D231: Commercial Telephony (VOIP) | E231: =IF(E193="","",E193) ->  | H231: 0 | I231: 0 | J231: =IF(H231=0,0,H231*'Product Data and EFs'!L119/1000/'Product Data and EFs'!F119) -> 0 | K231: =IF(I231=0,0,I231*'Product Data and EFs'!K119/1000/'Product Data and EFs'!F119) -> 0 | L231: 0 | M231: =IF(L231=0,0,(E231*'Product Data and EFs'!K119/1000/'Product Data and EFs'!F119-'Product Emissions Analysis'!L231)) -> 0 | N231: 0 | O231: 0 | P231: =IF(N231=0,0,N231*'Product Data and EFs'!L119/1000/'Product Data and EFs'!F119) -> 0 | Q231: =IF(O231=0,0,O231*'Product Data and EFs'!K119/1000/'Product Data and EFs'!F119) -> 0 | R231: 0 | S231: =IF(R231=0,0,(E231*'Product Data and EFs'!K119/1000/'Product Data and EFs'!F119-'Product Emissions Analysis'!R231)) -> 0 | T231: 0
D232: Set Top Box - Cable | E232: =IF(E194="","",E194) ->  | H232: 0 | I232: 0 | J232: =IF(H232=0,0,H232*'Product Data and EFs'!L120/1000/'Product Data and EFs'!F120) -> 0 | K232: =IF(I232=0,0,I232*'Product Data and EFs'!K120/1000/'Product Data and EFs'!F120) -> 0 | L232: 0 | M232: =IF(L232=0,0,(E232*'Product Data and EFs'!K120/1000/'Product Data and EFs'!F120-'Product Emissions Analysis'!L232)) -> 0 | N232: 0 | O232: 0 | P232: =IF(N232=0,0,N232*'Product Data and EFs'!L120/1000/'Product Data and EFs'!F120) -> 0 | Q232: =IF(O232=0,0,O232*'Product Data and EFs'!K120/1000/'Product Data and EFs'!F120) -> 0 | R232: 0 | S232: =IF(R232=0,0,(E232*'Product Data and EFs'!K120/1000/'Product Data and EFs'!F120-'Product Emissions Analysis'!R232)) -> 0 | T232: 0
... 194 more rows

Sheet Summary Results
C2: Summary Results
C3: This worksheet summarizes the results of the lifetime product emissions analysis across all product categories. The first "Results" section (Scope 3 Use of Sold Products) summarizes the impacts of selling more ENERGY STAR products on the Scope 3 Use of Sold Products category only. The second "Results" section (GHG Inventory) is optional. If you have estimates of your Scope 1 and 2 emissions as well as other Scope 3 categories, entering them in this section will let you see the impact of selling more ENERGY STAR Products on your GHG inventory. Note: The "Scope 3 Use of Sold Products" results only account for products contained in this tool. Therefore, the percentage figures in the "Emissions Savings Calculations" section do not account for other products you may sell. However, in the optional "GHG Inventory" results section you have the option of entering use of sold products emissions associated with products not accounted for in this tool. Therefore the percentage figures in the "Emissions Savings Calculations" section are inclusive of all of your Scope 3 Use of Sold Products emissions.
C5: Analysis Time Period | D5: ='Product Emissions Analysis'!E4 -> 0 | E5: Value entered at top of "Product Emissions Analysis" worksheet.
C8: Scope 3 Use of Sold Products
C10: Emissions Inventory Results for ENERGY STAR Product Categories
C11: This is the total lifetime emissions associated with the use of products sold. This is the value that would be reported in your scope 3 inventory under Category 11, Use of Sold Products.
D12: Current | E12: With Increased Sale of ENERGY STAR Products
C13: TOTAL ENERGY STAR PRODUCTS SOLD | D13: =SUM('Product Emissions Analysis'!$H$263,'Product Emissions Analysis'!$H$305,'Product Emissions Analysis'!H118,'Product Emissions Analysis'!$H$343,'Product Emissions Analysis'!$J$82,'Product Emissions Analysis'!$K$82,'Product Emissions Analysis'!$H$154,'Product Emissions Analysis'!$H$39,'Product Emissions Analysis'!$H$201,'Product Emissions Analysis'!$H$408) -> 0 | E13: =SUM('Product Emissions Analysis'!$N$263,'Product Emissions Analysis'!$N$305,'Product Emissions Analysis'!N118,'Product Emissions Analysis'!$N$343,'Product Emissions Analysis'!$O$82,'Product Emissions Analysis'!$P$82,'Product Emissions Analysis'!$N$159,'Product Emissions Analysis'!$N$39,'Product Emissions Analysis'!$N$201,'Product Emissions Analysis'!$N$408) -> 0
C15: TOTAL SCOPE 3 USE OF SOLD PRODUCT EMISSIONS (Metric Tons CO2e) | D15: =ROUND(SUM(D16:D17),0) -> 0 | E15: =ROUND(SUM(E16:E17),0) -> 0
C16: ENERGY STAR Products | D16: =SUM('Product Emissions Analysis'!J263,'Product Emissions Analysis'!J305,'Product Emissions Analysis'!J147,'Product Emissions Analysis'!J343,'Product Emissions Analysis'!J82*'Product Data and EFs'!H54/1000,'Product Emissions Analysis'!K82*'Product Data and EFs'!H55/1000,'Product Emissions Analysis'!J154,'Product Emissions Analysis'!J39,'Product Emissions Analysis'!J201,'Product Emissions Analysis'!J408) -> 0 | E16: =SUM('Product Emissions Analysis'!P263,'Product Emissions Analysis'!P305,'Product Emissions Analysis'!P147,'Product Emissions Analysis'!P343,'Product Emissions Analysis'!O82*'Product Data and EFs'!H54/1000,'Product Emissions Analysis'!P82*'Product Data and EFs'!H55/1000,'Product Emissions Analysis'!P154,'Product Emissions Analysis'!P39,'Product Emissions Analysis'!P201,'Product Emissions Analysis'!P408) -> 0
C17: Non-ENERGY STAR Products | D17: =SUM('Product Emissions Analysis'!K263,'Product Emissions Analysis'!K305,'Product Emissions Analysis'!K147,'Product Emissions Analysis'!K343,'Product Emissions Analysis'!L82*'Product Data and EFs'!H53/1000,'Product Emissions Analysis'!K154,'Product Emissions Analysis'!K39,'Product Emissions Analysis'!K201,'Product Emissions Analysis'!K408) -> 0 | E17: =SUM('Product Emissions Analysis'!Q263,'Product Emissions Analysis'!Q305,'Product Emissions Analysis'!Q147,'Product Emissions Analysis'!Q343,'Product Emissions Analysis'!Q82*'Product Data and EFs'!H53/1000,'Product Emissions Analysis'!Q154,'Product Emissions Analysis'!Q39,'Product Emissions Analysis'!Q201,'Product Emissions Analysis'!Q408) -> 0 | H17: Key Takeaways
H18: =IF(D13=0,"Enter data on the 'Product Emissions Analysis' worksheet to see results.","Currently, you sell "&TEXT(D13,"#,##0")&" ENERGY STAR products, and have total reported Scope 3 Use of Sold Product emissions of "&TEXT(D15,"#,##0")&" metric tons CO2e. With the increase in ENERGY STAR product sales, you sell "&TEXT(E13,"#,##0")&" ENERGY STAR products, and have total reported Scope 3 Use of Sold Product emissions of "&TEXT(E15,"#,##0")&" metric tons CO2e (a change of "&TEXT(E19,"#,##0")&" metric tons CO2e). Lifetime emissions savings associated with the "&TEXT(D13,"#,##0")&" ENERGY STAR products you currently sell are "&TEXT(D28,"#,##0")&" metric tons CO2e, equal to "&TEXT(D29*100,"#,##0.00")&"% of current Scope 3 Use of Sold Product emissions reported. By selling an additional "&TEXT(E13-D13,"#,##0")&" ENERGY STAR products you increase lifetime emissions savings to "&TEXT(E28,"#,##0")&" metric tons CO2e, equal to "&TEXT(E29*100,"#,##0.00")&"% of your new Scope 3 Use of Sold Product emissions reported. This is a lifetime emissions savings increase of "&TEXT(E31,"#,##0")&" metric tons CO2e, equal to "&TEXT(E32*100,"#,##0.00")&"% of current Scope 3 Use of Sold Product emissions reported.") -> Enter data on the 'Product Emissions Analysis' worksheet to see results.
C19: CHANGE IN SCOPE 3 INVENTORY EMISSIONS ASSOCIATED WITH INCREASED SALE OF ENERGY STAR PRODUCTS (Metric Tons CO2e) | D19: NA | E19: =E15-D15 -> 0
C21: Emissions Savings Calculations for ENERGY STAR Product Categories
C22: Emissions savings were determined by calculating the emissions that would have occurred if you did not sell any ENERGY STAR products (and instead sold all standard products), and then subtracting from that the actual emissions associated with your product sales (i.e., those that include ENERGY STAR product sales). See "Assumptions Used in This Tool" on the "Getting Started" worksheet for the special case regarding lightbulbs.
D23: Current | E23: With ENERGY STAR Products
C24: TOTAL PRODUCT USE EMISSIONS IF NOT SELLING ENERGY STAR (Metric Tons CO2e) | D24: =SUM(D25:D26) -> 0 | E24: =SUM(E25:E26) -> 0
C25: Products with Same Lifetimes (All Except Lightbulbs) | D25: =ROUND(SUMPRODUCT('Product Emissions Analysis'!E249:E262,'Product Data and EFs'!K133:K146)/1000+SUMPRODUCT('Product Emissions Analysis'!E293:E304,'Product Data and EFs'!K153:K164)/1000+SUMPRODUCT('Product Emissions Analysis'!E333:E341,'Product Data and EFs'!K171:K179)/1000+('Product Emissions Analysis'!E154*'Product Data and EFs'!I88/1000)+SUMPRODUCT('Product Emissions Analysis'!E15:E38,'Product Data and EFs'!K24:K47)/1000+SUMPRODUCT('Product Emissions Analysis'!E169:E200,'Product Data and EFs'!K95:K126)/1000+SUMPRODUCT('Product Emissions Analysis'!E368:E407,'Product Data and EFs'!K187:K226)/1000+SUMPRODUCT('Product Emissions Analysis'!E93:E117,'Product Data and EFs'!I59:I83)/1000,0) -> 0 | E25: =ROUND(SUMPRODUCT('Product Emissions Analysis'!H249:H262,'Product Data and EFs'!L133:L146)/1000+SUMPRODUCT('Product Emissions Analysis'!H293:H304,'Product Data and EFs'!L153:L164)/1000+SUMPRODUCT('Product Emissions Analysis'!H333:H341,'Product Data and EFs'!L171:L179)/1000+('Product Emissions Analysis'!H154*'Product Data and EFs'!J88/1000)+SUMPRODUCT('Product Emissions Analysis'!H15:H38,'Product Data and EFs'!L24:L47)/1000+SUMPRODUCT('Product Emissions Analysis'!H169:H200,'Product Data and EFs'!L95:L126)/1000+SUMPRODUCT('Product Emissions Analysis'!H368:H407,'Product Data and EFs'!L187:L226)/1000,0)+ROUND(SUMPRODUCT('Product Emissions Analysis'!I249:I262,'Product Data and EFs'!K133:K146)/1000+SUMPRODUCT('Product Emissions Analysis'!I293:I304,'Product Data and EFs'!K153:K164)/1000+SUMPRODUCT('Product Emissions Analysis'!I333:I341,'Product Data and EFs'!K171:K179)/1000+('Product Emissions Analysis'!I154*'Product Data and EFs'!I88/1000)+SUMPRODUCT('Product Emissions Analysis'!I15:I38,'Product Data and EFs'!K24:K47)/1000+SUMPRODUCT('Product Emissions Analysis'!I169:I200,'Product Data and EFs'!K95:K126)/1000+SUMPRODUCT('Product Emissions Analysis'!I368:I407,'Product Data and EFs'!K187:K226)/1000,0) -> 0
C26: Lightbulbs | D26: =('Product Emissions Analysis'!J82*15.2*'Product Data and EFs'!H53/1000)+('Product Emissions Analysis'!K82*10.1*'Product Data and EFs'!H53/1000)+('Product Emissions Analysis'!L82*'Product Data and EFs'!H53/1000) -> 0 | E26: =('Product Emissions Analysis'!O82*15.2*'Product Data and EFs'!H53/1000)+('Product Emissions Analysis'!P82*10.1*'Product Data and EFs'!H53/1000)+('Product Emissions Analysis'!Q82*'Product Data and EFs'!H53/1000) -> 0
C28: TOTAL EMISSIONS SAVINGS FROM ENERGY STAR PRODUCT SALES (Metric Tons CO2e) | D28: =ROUND(D24-D15,0) -> 0 | E28: =ROUND(E24-E15,0) -> 0
C29: As a Percentage of Scope 3 Use of Sold Product Emissions | D29: =IF(D15=0,0,ROUND(D28/D15,4)) -> 0 | E29: =IF(E15=0,0,ROUND(E28/E15,4)) -> 0
C31: ADDITIONAL EMISSIONS SAVINGS ACHIEVED WITH INCREASED ENERGY STAR PRODUCT SALES (Metric Tons CO2e) | D31: NA | E31: =E28-D28 -> 0
C32: As a Percentage of Current Scope 3 Use of Sold Product Emissions | D32: NA | E32: =IF(D15=0,0,ROUND(E31/D15,4)) -> 0
C35: GHG Inventory (Optional)
C37: Enter your organization's current total Scope 1 and 2 emissions, as well as other Scope 3 categories in the yellow cells (emissions with increased sale of ENERGY STAR products remains the same for the analysis). Be sure to check emissions factors used in developing these values for consistency to what is used in this tool. This tool uses emissions factors from EPA's GHG Emission Factors Hub and global warming potentials from IPCC's Fourth Assessment Report, 2007 (AR4). (See the "Product Data and EFs" worksheet for more detail on emissions factors used in this tool).
D39: Current Emissions (Metric Tons CO2e) | E39: Emissions w/Increased Sale of ENERGY STAR Products (Metric Tons CO2e)
C40: SCOPE 1 TOTAL EMISSIONS | E40: =IF(D40="",0,D40) -> 0
C41: SCOPE 2 TOTAL EMISSIONS | E41: =IF(D41="",0,D41) -> 0
C42: SCOPE 3 TOTAL EMISSIONS | D42: =SUM(D43:D58) -> 0 | E42: =SUM(E43:E58) -> 0
C43: Category 1: Purchased Goods and Services | E43: =IF(D43="",0,D43) -> 0
C44: Category 2: Capital Goods | E44: 0
C45: Category 3: Fuel- and Energy-Related Activities Not Included in Scope 1 or Scope 2 | E45: 0
C46: Category 4: Upstream Transportation and Distribution | E46: =IF(D46="",0,D46) -> 0
C47: Category 5: Waste Generated in Operations | E47: 0
C48: Category 6: Business Travel | E48: 0
C49: Category 7: Employee Commuting | E49: 0
C50: Category 8: Upstream Leased Assets | E50: 0
C51: Category 9: Downstream Transportation and Distribution | E51: 0
C52: Category 10: Processing of Sold Products | E52: 0
C53: Category 11: Use of Sold Products (this tool) | D53: =D15 -> 0 | E53: =E15 -> 0 | F53: Calculated based on sales figures entered in the "Product Emissions Analysis" worksheet. Only accounts for product types contained in this tool.
C54: Category 11: Use of Sold Products (other) | E54: 0 | F54: Enter use of sold product emissions associated with products not accounted for in this tool (optional)
C55: Category 12: End-of-Life Treatment of Sold Products | E55: =IF(D55="",0,D55) -> 0
C56: Category 13: Downstream Leased Assets | E56: =IF(D56="",0,D56) -> 0
C57: Category 14: Franchises | E57: =IF(D57="",0,D57) -> 0
C58: Category 15: Investments | E58: =IF(D58="",0,D58) -> 0
C59: TOTAL INVENTORY EMISSIONS | D59: =SUM(D40:D42) -> 0 | E59: =SUM(E40:E42) -> 0
C61: Emissions Inventory Results
C62: This is the total lifetime emissions associated with the use of products sold. This is the value that would be reported in your scope 3 inventory under Category 11, Use of Sold Products.
D63: Current | E63: With Increased Sale of ENERGY STAR Products
C64: TOTAL ENERGY STAR PRODUCTS SOLD | D64: =IF(D13="",0,D13) -> 0 | E64: =IF(E13="",0,E13) -> 0
C66: TOTAL SCOPE 3 USE OF SOLD PRODUCT EMISSIONS (Metric Tons CO2e) | D66: =ROUND(SUM(D67:D69),0) -> 0 | E66: =ROUND(SUM(E67:E69),0) -> 0
C67: ENERGY STAR Products | D67: =IF(D16="",0,D16) -> 0 | E67: =IF(E16="",0,E16) -> 0 | H67: Key Takeaways
C68: Non-ENERGY STAR Products | D68: =IF(D17="",0,D17) -> 0 | E68: =IF(E17="",0,E17) -> 0 | H68: =IF(D13=0,"Enter data on the ‘Product Emissions Analysis’ worksheet to see results.","Currently, you sell "&TEXT(D64,"#,##0")&" ENERGY STAR products, and have total reported Scope 3 Use of Sold Product emissions of "&TEXT(D66,"#,##0")&" metric tons CO2e. With the increase in ENERGY STAR product sales, you sell "&TEXT(E64,"#,##0")&" ENERGY STAR products, and have total reported Scope 3 Use of Sold Product emissions of "&TEXT(E66,"#,##0")&" metric tons CO2e (a change of "&TEXT(E71,"#,##0")&" metric tons CO2e). Lifetime emissions savings associated with the "&TEXT(D64,"#,##0")&" ENERGY STAR products you currently sell are "&TEXT(D81,"#,##0")&" metric tons CO2e. These emissions savings are equal to: - "&TEXT(D82*100,"#,##0.00")&"% of total inventory emissions. - "&TEXT(D83*100,"#,##0.00")&"% of total Scope 1 and Scope 2 emissions. - "&TEXT(D84*100,"#,##0.00")&"% of total Scope 3 emissions. - "&TEXT(D85*100,"#,##0.00")&"% of Scope 3 Use of Sold Product emissions. By selling an additional "&TEXT(E64-D64,"#,##0")&" ENERGY STAR products you increase lifetime emissions savings to "&TEXT(E81,"#,##0")&" metric tons CO2e. These emissions savings are equal to: - "&TEXT(E82*100,"#,##0.00")&"% of total inventory emissions. - "&TEXT(E83*100,"#,##0.00")&"% of total Scope 1 and Scope 2 emissions. - "&TEXT(E84*100,"#,##0.00")&"% of total Scope 3 emissions. - "&TEXT(E85*100,"#,##0.00")&"% of Scope 3 Use of Sold Product emissions. This is also a lifetime emissions savings increase of "&TEXT(E87,"#,##0")&" metric tons CO2e, equal to "&TEXT(E88*100,"#,##0.00")&"% of current Scope 3 Use of Sold Product emissions reported.") -> Enter data on the ‘Product Emissions Analysis’ worksheet to see results.
C69: Products Not Accounted for in This Tool (Entered Above, if Applicable) | D69: =IF(D54="",0,D54) -> 0 | E69: =IF(E54="",0,E54) -> 0
C71: CHANGE IN SCOPE 3 INVENTORY EMISSIONS ASSOCIATED WITH INCREASED SALE OF ENERGY STAR PRODUCTS (Metric Tons CO2e) | D71: NA | E71: =E66-D66 -> 0
C73: Emissions Savings Calculations
C74: Emissions savings were determined by calculating the emissions that would have occurred if you did not sell any ENERGY STAR products (and instead sold all standard products), and then subtracting from that the actual emissions associated with your product sales (i.e., those that include ENERGY STAR product sales). See "Assumptions Used in This Tool" on the "Getting Started" worksheet for the special case regarding lightbulbs.
D75: Current | E75: With Increased Sale of ENERGY STAR Products
C76: TOTAL PRODUCT USE EMISSIONS IF NOT SELLING ENERGY STAR (Metric Tons CO2e) | D76: =SUM(D77:D79) -> 0 | E76: =SUM(E77:E79) -> 0
C77: Products with Same Lifetimes (All Except Lightbulbs) | D77: =IF(D25="",0,D25) -> 0 | E77: =IF(E25="",0,E25) -> 0
C78: Lightbulbs | D78: =IF(D26="",0,D26) -> 0 | E78: =IF(E26="",0,E26) -> 0
C79: Products Not Accounted for in This Tool (Entered Above, if Applicable) | D79: =IF(D54="",0,D54) -> 0 | E79: =IF(E54="",0,E54) -> 0
C81: TOTAL EMISSIONS SAVINGS FROM ENERGY STAR PRODUCT SALES (Metric Tons CO2e) | D81: =IF(D28="",0,D28) -> 0 | E81: =IF(E28="",0,E28) -> 0
C82: As a Percentage of Total Inventory Emissions | D82: =IF(D59=0,0,ROUND(D81/D59,4)) -> 0 | E82: =IF(E59=0,0,ROUND(E81/E59,4)) -> 0
C83: As a Percentage of Total Scope 1 and 2 Emissions | D83: =IF(D40+D41=0,0,ROUND(D81/(D40+D41),4)) -> 0 | E83: =IF(E40+E41=0,0,ROUND(E81/(E40+E41),4)) -> 0
C84: As a Percentage of Total Scope 3 Emissions | D84: =IF(D42=0,0,ROUND(D81/D42,4)) -> 0 | E84: =IF(E42=0,0,ROUND(E81/E42,4)) -> 0
C85: As a Percentage of Scope 3 Use of Sold Product Emissions | D85: =IF(D66=0,0,ROUND(D81/D66,4)) -> 0 | E85: =IF(E66=0,0,ROUND(E81/E66,4)) -> 0
C87: ADDITIONAL INVENTORY EMISSIONS SAVINGS ACHIEVED WITH INCREASED ENERGY STAR PRODUCT SALES (Metric Tons CO2e) | D87: NA | E87: =IF(E31="",0,E31) -> 0
C88: As a Percentage of Current Total GHG Inventory Emissions | D88: NA | E88: =IF(D59=0,0,ROUND(E87/D59,4)) -> 0

Sheet Summary Results - Figures
C2: Summary Results - Figures
C4: This worksheet illustrates the summary results in three charts. NOTE: In the first two charts ('Scope 3 Use of Sold Product Emissions Savings - Lifetime' and 'Scope 3 Use of Sold Products Emissions Savings - Annual'), emissions savings were determined by calculating the emissions that would have occurred if you did not sell any ENERGY STAR products (and instead sold all standard products), and then subtracting from that the actual emissions associated with your product sales (i.e., those that include ENERGY STAR product sales). See "Assumptions Used in This Tool" on the "Getting Started" worksheet for the special case regarding lightbulbs. The third chart illustrates the change in total inventory emissions associated with increased ENERGY STAR Sales, which equals the change in your reported Scope 3 Use of Sold Product emissions. Also, the first two charts only represent emissions associated with products contained in this tool. The third chart (GHG Inventory Emissions) includes Scope 3 Use of Sold Products emissions associated with products not contained in this tool (if you entered these emissions in the "GHG Inventory" section of the "Summary Results" worksheet).
B6: Scope 3 Use of Sold Product Emissions Savings - Lifetime
P8: Emissions Comparison (Metric Ton CO2e)
P9: Current Sales: | T9: Increased ENERGY STAR Sales:
P10: Lifetime Product Use Emissions - ENERGY STAR | Q10: Lifetime Product Use Emissions - Standard | R10: Total all Products | S10: Savings from Use of ENERGY STAR | T10: Lifetime Product Use Emissions - ENERGY STAR | U10: Lifetime Product Use Emissions - Standard | V10: Total all Products | W10: Savings from Use of ENERGY STAR
O11: Office Equipment | P11: ='Product Emissions Analysis'!J263 -> 0 | Q11: ='Product Emissions Analysis'!K263 -> 0 | R11: =P11+Q11 -> 0 | T11: ='Product Emissions Analysis'!P263 -> 0 | U11: ='Product Emissions Analysis'!Q263 -> 0 | V11: =T11+U11 -> 0
O12: Computers and Monitors | P12: ='Product Emissions Analysis'!J305 -> 0 | Q12: ='Product Emissions Analysis'!K305 -> 0 | R12: =P12+Q12 -> 0 | T12: ='Product Emissions Analysis'!P305 -> 0 | U12: ='Product Emissions Analysis'!Q305 -> 0 | V12: =T12+U12 -> 0
O13: Heating and Cooling | P13: ='Product Emissions Analysis'!J343 -> 0 | Q13: ='Product Emissions Analysis'!K343 -> 0 | R13: 0 | T13: ='Product Emissions Analysis'!P343 -> 0 | U13: ='Product Emissions Analysis'!Q343 -> 0 | V13: 0
O14: Residential Lighting | P14: =('Product Emissions Analysis'!J82*'Product Data and EFs'!H54/1000)+('Product Emissions Analysis'!K82*'Product Data and EFs'!H55/1000)+'Product Emissions Analysis'!J154 -> 0 | Q14: =('Product Emissions Analysis'!L82*'Product Data and EFs'!H53/1000)+'Product Emissions Analysis'!K154 -> 0 | R14: 0 | T14: =('Product Emissions Analysis'!O82*'Product Data and EFs'!H54/1000)+('Product Emissions Analysis'!P82*'Product Data and EFs'!H55/1000)+'Product Emissions Analysis'!P154 -> 0 | U14: =('Product Emissions Analysis'!Q82*'Product Data and EFs'!H53/1000)+'Product Emissions Analysis'!Q154 -> 0 | V14: 0
O15: Residential Appliances | P15: ='Product Emissions Analysis'!J39 -> 0 | Q15: ='Product Emissions Analysis'!K39 -> 0 | R15: 0 | T15: ='Product Emissions Analysis'!P39 -> 0 | U15: ='Product Emissions Analysis'!Q39 -> 0 | V15: 0
O16: Consumer Electronics | P16: ='Product Emissions Analysis'!J201 -> 0 | Q16: ='Product Emissions Analysis'!K201 -> 0 | R16: 0 | T16: ='Product Emissions Analysis'!P201 -> 0 | U16: ='Product Emissions Analysis'!Q201 -> 0 | V16: 0
O17: Commercial Appliances | P17: ='Product Emissions Analysis'!J408 -> 0 | Q17: ='Product Emissions Analysis'!K408 -> 0 | R17: 0 | T17: ='Product Emissions Analysis'!P408 -> 0 | U17: ='Product Emissions Analysis'!Q408 -> 0 | V17: 0
O18: Total Emissions | P18: 0 | Q18: 0 | R18: 0 | S18: =SUM($R$11:$R$17) -> 0 | T18: 0 | U18: 0 | V18: 0 | W18: =SUM(V11:V17) -> 0
O19: Lifetime Product Use Emission Savings | P19: 0 | Q19: 0 | R19: 0 | S19: ='Summary Results'!D28 -> 0 | T19: 0 | U19: 0 | V19: 0 | W19: ='Summary Results'!E28 -> 0
O20: Baseline Emissions if not using ENERGY STAR | P20: =$S$18+$S$19 -> 0 | Q20: =$S$18+$S$19 -> 0 | R20: =$S$18+$S$19 -> 0 | S20: =$S$18+$S$19 -> 0
O21: Baseline Emissions if not using ENERGY STAR | T21: =$W$18+$W$19 -> 0 | U21: =$W$18+$W$19 -> 0 | V21: 0 | W21: 0
B35: Scope 3 Use of Sold Product Emissions Savings - Annual
P38: Emissions Comparison (Metric Ton CO2e)
P39: Current Sales: | T39: Increased ENERGY STAR Sales:
P40: Annual Product Use Emissions - ENERGY STAR | Q40: Annual Product Use Emissions - Standard | R40: Total all Products | S40: Savings from Use of ENERGY STAR | T40: Annual Product Use Emissions - ENERGY STAR | U40: Annual Product Use Emissions - Standard | V40: Total all Products | W40: Savings from Use of ENERGY STAR
O41: Office Equipment | P41: ='Product Emissions Analysis'!J283 -> 0 | Q41: ='Product Emissions Analysis'!K283 -> 0 | R41: =P41+Q41 -> 0 | T41: ='Product Emissions Analysis'!P283 -> 0 | U41: ='Product Emissions Analysis'!Q283 -> 0 | V41: =T41+U41 -> 0
O42: Computers and Monitors | P42: ='Product Emissions Analysis'!J323 -> 0 | Q42: ='Product Emissions Analysis'!K323 -> 0 | R42: =P42+Q42 -> 0 | T42: ='Product Emissions Analysis'!P323 -> 0 | U42: ='Product Emissions Analysis'!Q323 -> 0 | V42: =T42+U42 -> 0
O43: Heating and Cooling | P43: ='Product Emissions Analysis'!J358 -> 0 | Q43: ='Product Emissions Analysis'!K358 -> 0 | R43: 0 | T43: ='Product Emissions Analysis'!P358 -> 0 | U43: ='Product Emissions Analysis'!Q358 -> 0 | V43: 0
O44: Residential Lighting | P44: =('Product Emissions Analysis'!J87*'Product Data and EFs'!H54/1000/'Product Data and EFs'!F54)+('Product Emissions Analysis'!K87*'Product Data and EFs'!H55/1000/'Product Data and EFs'!F55)+'Product Emissions Analysis'!J159 -> 0 | Q44: =('Product Emissions Analysis'!L87*'Product Data and EFs'!H53/1000/'Product Data and EFs'!F53)+'Product Emissions Analysis'!K159 -> 0 | R44: 0 | T44: =('Product Emissions Analysis'!O87*'Product Data and EFs'!H54/1000/'Product Data and EFs'!F54)+('Product Emissions Analysis'!P87*'Product Data and EFs'!H55/1000/'Product Data and EFs'!F55)+'Product Emissions Analysis'!P159 -> 0 | U44: =('Product Emissions Analysis'!Q87*'Product Data and EFs'!H53/1000/'Product Data and EFs'!F53)+'Product Emissions Analysis'!Q159 -> 0 | V44: 0
O45: Residential Appliances | P45: ='Product Emissions Analysis'!J69 -> 0 | Q45: ='Product Emissions Analysis'!K69 -> 0 | R45: 0 | T45: ='Product Emissions Analysis'!P69 -> 0 | U45: ='Product Emissions Analysis'!Q69 -> 0 | V45: 0
O46: Consumer Electronics | P46: ='Product Emissions Analysis'!J239 -> 0 | Q46: ='Product Emissions Analysis'!K239 -> 0 | R46: 0 | T46: ='Product Emissions Analysis'!P239 -> 0 | U46: ='Product Emissions Analysis'!Q239 -> 0 | V46: 0
O47: Commercial Appliances | P47: ='Product Emissions Analysis'!J454 -> 0 | Q47: ='Product Emissions Analysis'!K454 -> 0 | R47: 0 | T47: ='Product Emissions Analysis'!P454 -> 0 | U47: ='Product Emissions Analysis'!Q454 -> 0 | V47: 0
O48: Total Emissions | P48: 0 | Q48: 0 | R48: 0 | S48: =SUM($R$41:$R$47) -> 0 | T48: 0 | U48: 0 | V48: 0 | W48: =SUM(V41:V47) -> 0
O49: Annual Product Use Emission Savings | P49: 0 | Q49: 0 | R49: 0 | S49: =SUM('Product Emissions Analysis'!M283,'Product Emissions Analysis'!M323,'Product Emissions Analysis'!M358,'Product Emissions Analysis'!N87,'Product Emissions Analysis'!M159,'Product Emissions Analysis'!M69,'Product Emissions Analysis'!M239,'Product Emissions Analysis'!M454) -> 0 | T49: 0 | U49: 0 | V49: 0 | W49: =SUM('Product Emissions Analysis'!S283,'Product Emissions Analysis'!S323,'Product Emissions Analysis'!S358,'Product Emissions Analysis'!S87,'Product Emissions Analysis'!S159,'Product Emissions Analysis'!S69,'Product Emissions Analysis'!S239,'Product Emissions Analysis'!S454) -> 0
O50: Baseline Emissions if not using ENERGY STAR | P50: =$S$48+$S$49 -> 0 | Q50: =$S$48+$S$49 -> 0 | R50: 0 | S50: 0
O51: Baseline Emissions if not using ENERGY STAR | T51: =$W$48+$W$49 -> 0 | U51: =$W$48+$W$49 -> 0 | V51: 0 | W51: 0
B67: Change in GHG Inventory Emissions with Increased ENERGY STAR Sales
P71: Current Sales | Q71: With Increased Sale of ESTAR Products | R71: Change in GHG Emissions with Increased Sale of ESTAR Products
O72: Scope 1 | P72: ='Summary Results'!D40 -> 0 | Q72: ='Summary Results'!E40 -> 0
O73: Scope 2 | P73: ='Summary Results'!D41 -> 0 | Q73: ='Summary Results'!E41 -> 0
O74: Scope 3: Use of Sold Products | P74: ='Summary Results'!D53+'Summary Results'!D54 -> 0 | Q74: ='Summary Results'!E53+'Summary Results'!E54 -> 0
O75: Scope 3: Other | P75: =SUM('Summary Results'!D43:D52,'Summary Results'!D55:D58) -> 0 | Q75: =SUM('Summary Results'!E43:E52,'Summary Results'!E55:E58) -> 0
O76: Current GHG Inventory Emissions | P76: =SUM(P72:P75) -> 0 | Q76: =SUM(P72:P75) -> 0 | R76: =SUM(P72:P75) -> 0
O77: Total Emissions | P77: 0 | Q77: 0 | R77: =SUM(Q72:Q75) -> 0
O78: Emissions difference from current | R78: =IF(P74>Q74,R77,IF(P74<Q74,Q76)) -> FALSE
O79: Change in GHG Emissions with Increased Sale of ESTAR Products | P79: 0 | Q79: 0 | R79: =ABS(P74-Q74) -> 0

Sheet Product Data and EFs
C2: Product Data and Emission Factors
C3: This worksheet presents the Scope 3 Use of Sold Products emission factors used in the analysis as well as the data used to produce these factors (i.e., Scope 1 and 2 emissions factors and product energy use data).
C4: Source for Scope 1 and Scope 2 emission factors: U.S. EPA GHG Emission Factors Hub, https://www.epa.gov/climateleadership/center-corporate-climate-leadership-ghg-emission-factors-hub. Global warming potentials are from IPCC's Fourth Assessment Report (AR4, 2007), Fifth Assessment Report (AR5, 2014), or Sixth Assessment Report (AR6, 2021) based on the selection made on the Product Emissions Analysis tab.
C5: Source for product energy use data: ENERGY STAR Certified Products 2021 Data Book (March 2021)
D9: Scope 1 and 2 Emission Factors
F11: Emission Factor | I11: Note: Emissions Factors were accessed from the April 2022 version of the U.S. EPA GHG Emission Factors Hub, https://www.epa.gov/climateleadership/ghg-emission-factors-hub.
E12: Scope 1 Emission Factor - Natural Gas | F12: =_xlfn.IFS('Product Emissions Analysis'!E5='EF Calcs'!A65,'EF Calcs'!B16,'Product Emissions Analysis'!E5='EF Calcs'!A66,'EF Calcs'!B17,'Product Emissions Analysis'!E5='EF Calcs'!A67,'EF Calcs'!B18) -> 53.1145 | G12: kg CO2e/MMBtu
E13: Scope 1 Emission Factor - Propane | F13: =_xlfn.IFS('Product Emissions Analysis'!E5='EF Calcs'!A65,'EF Calcs'!B28,'Product Emissions Analysis'!E5='EF Calcs'!A66,'EF Calcs'!B29,'Product Emissions Analysis'!E5='EF Calcs'!A67,'EF Calcs'!B30) -> 63.113 | G13: kg CO2e/MMBtu
E14: Scope 1 Emission Factor - Distillate Fuel Oil #2 | F14: =_xlfn.IFS('Product Emissions Analysis'!E5='EF Calcs'!A65,'EF Calcs'!B40,'Product Emissions Analysis'!E5='EF Calcs'!A66,'EF Calcs'!B41,'Product Emissions Analysis'!E5='EF Calcs'!A67,'EF Calcs'!B42) -> 74.203 | G14: kg CO2e/MMBtu
E15: Scope 2 Emission Factor - U.S. Average Electricity | F15: =_xlfn.IFS('Product Emissions Analysis'!E5='EF Calcs'!A65,'EF Calcs'!B57,'Product Emissions Analysis'!E5='EF Calcs'!A66,'EF Calcs'!B58,'Product Emissions Analysis'!E5='EF Calcs'!A67,'EF Calcs'!B59) -> 0.373082436 | G15: kg CO2e/kWh
D18: Scope 3 Use of Sold Products Emission Factors and Product Energy Use Data
E20: Residential Appliances
E22: Product Type | F22: Product Lifetime (Years) | G22: Electricity - Unit Energy Consumption (kWh/year) | I22: Fuel - Unit Energy Consumption (MMBtu/year) | K22: Product End Use Emission Factor (kg CO2e/Product Sold)
G23: Stnd. New | H23: ENERGY STAR | I23: Stnd. New | J23: ENERGY STAR | K23: Stnd. New | L23: ENERGY STAR
E24: Room Air Conditioners | F24: 9 | G24: 611.2594396 | H24: 555.6903996 | I24: 0 | J24: 0 | K24: =F24*(G24*$F$15+I24*$F$12) -> 2052.451447 | L24: =F24*(H24*$F$15+J24*$F$12) -> 1865.864951
E25: Dehumidifiers | F25: 11 | G25: 533.7124454 | H25: 462.0152029 | I25: 0 | J25: 0 | K25: =F25*(G25*$F$15+I25*$F$12) -> 2190.306132 | L25: =F25*(H25*$F$15+J25*$F$12) -> 1896.067331
E26: Air Cleaners | F26: 9 | G26: 457.9206996 | H26: 334.4072103 | I26: 0 | J26: 0 | K26: 1537.579531 | L26: 1122.85311
E27: Ventilating Fans - Bathroom Fans | F27: 10 | G27: 38.28529532 | H27: 17.2636 | I27: 0 | J27: 0 | K27: 142.8357124 | L27: 64.40745942
E28: Ventilating Fans - Inline Fans | F28: 10 | G28: 114.2857143 | H28: 84.21052632 | I28: 0 | J28: 0 | K28: 426.3799268 | L28: 314.1746829
E29: Ventilating Fans - Range Hoods | F29: 14 | G29: 11.70731707 | H29: 8.571428571 | I29: 0 | J29: 0 | K29: 61.14912121 | L29: 44.76989232
E30: Standard Ceiling Fan | F30: 13.8 | G30: 120.124 | H30: 41.085 | I30: 0 | J30: 0 | K30: 618.4629326 | L30: 211.527668
E31: Hugger Ceiling Fan | F31: 13.8 | G31: 106.596 | H31: 38.766 | I31: 0 | J31: 0 | K31: 548.8135158 | L31: 199.5882092
E32: Standard Ceiling Fan with Light Kit | F32: 13.8 | G32: 141.2451 | H32: 55.4994 | I32: 0 | J32: 0 | K32: 727.2057105 | L32: 285.7407486
E33: Hugger Ceiling Fan with Light Kit | F33: 13.8 | G33: 127.696 | H33: 53.166 | I33: 0 | J33: 0 | K33: 657.4476595 | L33: 273.7271509
E34: Dishwashers - Standard | F34: 12 | G34: 206.08296 | H34: 181.2456 | I34: 0.459105254 | J34: 0.4037733504 | K34: 1215.252945 | L34: 1068.789235
E35: Dishwashers - Compact | F35: 12 | G35: 149.02416 | H35: 136.26984 | I35: 0.3319914214 | J35: 0.3035777412 | K35: 878.7822598 | L35: 803.5711655
E36: Refrigerators - Top Freezer | F36: 12 | G36: 400.749 | H36: 360.582 | I36: 0 | J36: 0 | K36: 1794.148958 | L36: 1614.321731
E37: Refrigerators - Bottom Freezer | F37: 12 | G37: 612.515 | H37: 559.783 | I37: 0 | J37: 0 | K37: 2742.223059 | L37: 2506.142463
E38: Refrigerators - Side by Side | F38: 12 | G38: 691.562 | H38: 630.907 | I38: 0 | J38: 0 | K38: 3096.115627 | L38: 2824.563845
E39: Freezers - Chest Freezer | F39: 11 | G39: 239.3116 | H39: 215.3424 | I39: 0 | J39: 0 | K39: 982.1125015 | L39: 883.7451388
E40: Freezers - Upright Freezer | F40: 11 | G40: 438.628 | H40: 394.844 | I40: 0 | J40: 0 | K40: 1800.08843 | L40: 1620.402975
E41: Clothes Washers - Top Loading | F41: 11 | G41: 413.951838 | H41: 332.5942802 | I41: 0.998468923 | J41: 0.6698312794 | K41: 2282.184715 | L41: 1756.291215
E42: Clothes Washers - Front Loading | F42: 11 | G42: 424.6198715 | H42: 290.7016045 | I42: 0.6086686238 | J42: 0.2811377887 | K42: 2098.220802 | L42: 1357.269714
E43: Clothes Dryers - Standard Electric Dryer (Vented Ventless) | F43: 12 | G43: 768.7201445 | H43: 608.4860051 | I43: 0 | J43: 0 | K43: 3441.551809 | L43: 2724.185292
E44: Clothes Dryers - Gas Dryers | F44: 12 | G44: 42.08196952 | H44: 34 | I44: 2.718495231 | J44: 2.22 | K44: 1921.098704 | L44: 1567.187914
E45: Water Heaters - Gas Storage Water Heater | F45: 13 | G45: 0 | H45: 0 | I45: 19.10333607 | J45: 17.321353 | K45: 13190.63387 | L45: 11960.19505
E46: Water Heaters - Electric (Heat Pump) Water Heater | F46: 13 | G46: 3527.867548 | H46: 1624.053826 | I46: 0 | J46: 0 | K46: 17110.41044 | L46: 7876.777447
E47: Water Heaters - Tankless Gas Water Heater | F47: 20 | G47: 0 | H47: 0 | I47: 20.90226571 | J47: 19.46073014 | K47: 22204.26784 | L47: 20672.93902
E50: Residential Lighting
E52: Product Type | F52: Product Lifetime (Years) | G52: Electricity - Unit Energy Consumption (kWh/year) | H52: Product End Use Emission Factor (kg CO2e/Product Sold)
E53: Halogen Bulb | F53: 0.9 | G53: 47 | H53: =F53*G53*$F$15 -> 15.78138704
E54: LED Bulb | F54: 13.69863014 | G54: 10 | H54: =F54*G54*$F$15 -> 51.10718301
E55: CFL Bulb | F55: 9.132420091 | G55: 14 | H55: 47.70003748
E57: Product Type | F57: Product Lifetime (Years) | G57: Electricity - Unit Energy Consumption (kWh/year) | I57: Product End Use Emission Factor (kg CO2e/Product Sold)
G58: Stnd. New | H58: ENERGY STAR | I58: Stnd. New | J58: ENERGY STAR
E59: Cove Mount | F59: 20 | G59: 31.28571429 | H59: 3.981818182 | I59: =F59*G59*$F$15 -> 233.4430099 | J59: =F59*H59*$F$15 -> 29.71092854
E60: Downlights ≤ 4.5" | F60: 20 | G60: 38.15909091 | H60: 6.29625 | I60: =F60*G60*$F$15 -> 284.7297318 | J60: =F60*H60*$F$15 -> 46.98040575
E61: Downlights > 4.5" | F61: 20 | G61: 41.975 | H61: 10.49375 | I61: 313.202705 | J61: 78.30067625
E62: Downlight Retrofits ≤ 4.5" | F62: 20 | G62: 38.15909091 | H62: 5.396785714 | I62: 284.7297318 | J62: 40.26891921
E63: Downlight Retrofits > 4.5" | F63: 20 | G63: 41.975 | H63: 8.994642857 | I63: 313.202705 | J63: 67.11486536
E64: Accent Lights | F64: 20 | G64: 15.53191489 | H64: 3.65 | I64: 115.8936929 | J64: 27.23501783
E65: Undercabinet | F65: 20 | G65: 8.830645161 | H65: 2.28125 | I65: 65.89117216 | J65: 17.02188614
E66: Outdoor Wall/Porch/Post | F66: 20 | G66: 51.21774194 | H66: 9.125 | I66: 382.1687985 | J66: 68.08754457
E67: Portable Desk Task | F67: 20 | G67: 12.556 | H67: 4.38 | I67: 93.68846132 | J67: 32.68202139
E68: Inseparable SSL | F68: 20 | G68: 12.556 | H68: 3.128571429 | I68: 93.68846132 | J68: 23.34430099
E69: Fluorescent (CFL) (800 lm) | F69: 20 | G69: 50.224 | H69: 13.47692308 | I69: 374.7538453 | J69: 100.5600658
E70: Fluorescent (CFL) (450 lm) | F70: 20 | G70: 46.09596774 | H70: 7.580769231 | I70: 343.9519187 | J70: 56.56503702
E71: Fluorescent (CFL) (250 lm) | F71: 20 | G71: 27.375 | H71: 4.211538462 | I71: 204.2626337 | J71: 31.42502057
E72: Solid State Light Engine - With Optics (800 lm) | F72: 20 | G72: 50.224 | H72: 13.47692308 | I72: 374.7538453 | J72: 100.5600658
E73: Solid State Light Engine - With Optics (450 lm) | F73: 20 | G73: 81.9483871 | H73: 13.47692308 | I73: 611.4700776 | J73: 100.5600658
E74: Solid State Light Engine - With Optics (250 lm) | F74: 20 | G74: 87.6 | H74: 13.47692308 | I74: 653.6404278 | J74: 100.5600658
E75: Solid State Light Engine - Without Optics (800 lm) | F75: 20 | G75: 50.224 | H75: 9.733333333 | I75: 374.7538453 | J75: 72.6267142
E76: Solid State Light Engine - Without Optics (450 lm) | F76: 20 | G76: 81.9483871 | H76: 9.733333333 | I76: 611.4700776 | J76: 72.6267142
E77: Solid State Light Engine - Without Optics (250 lm) | F77: 20 | G77: 87.6 | H77: 9.733333333 | I77: 653.6404278 | J77: 72.6267142
E78: Solid State Retrofit: Sconce - With Optics | F78: 20 | G78: 27.375 | H78: 4.211538462 | I78: 204.2626337 | J78: 31.42502057
E79: Solid State Retrofit: Sconce - Without Optics | F79: 20 | G79: 27.375 | H79: 3.041666667 | I79: 204.2626337 | J79: 22.69584819
E80: Solid State Retrofit: Ceiling Mount - With Optics | F80: 20 | G80: 50.224 | H80: 13.47692308 | I80: 374.7538453 | J80: 100.5600658
E81: Solid State Retrofit: Ceiling Mount - With Optics | F81: 20 | G81: 19.25274725 | H81: 13.47692308 | I81: 143.6572369 | J81: 100.5600658
E82: Solid State Retrofit: Ceiling Mount - Without Optics | F82: 20 | G82: 50.224 | H82: 9.733333333 | I82: 374.7538453 | J82: 72.6267142
E83: Solid State Retrofit: Ceiling Mount - Without Optics | F83: 20 | G83: 19.25274725 | H83: 9.733333333 | I83: 143.6572369 | J83: 72.6267142
E86: Product Type | F86: Product Lifetime (Years) | G86: Electricity - Unit Energy Consumption (kWh/year) | I86: Product End Use Emission Factor (kg CO2e/Product Sold)
G87: Stnd. New | H87: ENERGY STAR | I87: Stnd. New | J87: ENERGY STAR
E88: Decorative Light Strings | F88: 5 | G88: 11 | H88: 3 | I88: =F88*G88*$F$15 -> 20.51953398 | J88: =F88*H88*$F$15 -> 5.59623654
E91: Consumer Electronics
E93: Product Type | F93: Product Lifetime (Years) | G93: Electricity - Unit Energy Consumption (kWh/year) | I93: Fuel - Unit Energy Consumption (MMBtu/year) | K93: Product End Use Emission Factor (kg CO2e/Product Sold)
G94: Stnd. New | H94: ENERGY STAR | I94: Stnd. New | J94: ENERGY STAR | K94: Stnd. New | L94: ENERGY STAR
E95: TV - LCD TVs 20" and under | F95: 5 | G95: 44.6176 | H95: 36.91274808 | I95: 0 | J95: 0 | K95: =F95*(G95*$F$15+I95*$F$12) -> 83.23021448 | L95: =F95*(H95*$F$15+J95*$F$12) -> 68.85748987
E96: TV - LCD TVs 21"-23" | F96: 5 | G96: 48.23331461 | H96: 40.80135965 | I96: 0 | J96: 0 | K96: =F96*(G96*$F$15+I96*$F$12) -> 89.97501254 | L96: =F96*(H96*$F$15+J96*$F$12) -> 76.11135325
E97: TV - LCD TVs 24"-29" | F97: 5 | G97: 54.54234459 | H97: 45.32707775 | I97: 0 | J97: 0 | K97: 101.7439539 | L97: 84.55368292
E98: TV - LCD TVs 30"-34" | F98: 5 | G98: 65.61390365 | H98: 54.72799727 | I98: 0 | J98: 0 | K98: 122.396975 | L98: 102.0902727
E99: TV - LCD TVs 35"-39" | F99: 5 | G99: 85.49312409 | H99: 69.04156943 | I99: 0 | J99: 0 | K99: 159.479915 | L99: 128.7909845
E100: TV - LCD TVs 40"-44" | F100: 5 | G100: 100.5185934 | H100: 74.00175801 | I100: 0 | J100: 0 | K100: 187.5086084 | L100: 138.0437807
E101: TV - LCD TVs 45"-49" | F101: 5 | G101: 127.9377771 | H101: 90.78654028 | I101: 0 | J101: 0 | K101: 238.6566877 | L101: 169.354318
E102: TV - LCD TVs 50"-54" | F102: 5 | G102: 136.9633946 | H102: 101.1384825 | I102: 0 | J102: 0 | K102: 255.4931844 | L102: 188.6649572
E103: TV - LCD TVs 55"-59" | F103: 5 | G103: 161.49425 | H103: 109.8674886 | I103: 0 | J103: 0 | K103: 301.2533409 | L103: 204.9481514
E104: TV - LCD TVs 60"-64" | F104: 5 | G104: 162.1216724 | H104: 122.9720518 | I104: 0 | J104: 0 | K104: 302.4237423 | L104: 229.3935633
E105: TV - LCD TVs 65" or greater | F105: 5 | G105: 294.92 | H105: 164.6563673 | I105: 0 | J105: 0 | K105: 550.1473601 | L105: 307.1519931
E106: TV - Plasma TVs under 60" | F106: 5 | G106: 135.2475294 | H106: 85.23189319 | I106: 0 | J106: 0 | K106: 252.2923887 | L106: 158.9926117
E107: TV - Plasma TVs 60" and up | F107: 5 | G107: 177.1199 | H107: 97.44784602 | I107: 0 | J107: 0 | K107: 330.4016188 | L107: 181.7803989
E108: TV - OLED TVs | F108: 5 | G108: 154.1994643 | H108: 110.6502012 | I108: 0 | J108: 0 | K108: 287.6455588 | L108: 206.4082331
E109: DVD Players | F109: 7 | G109: 19.38621191 | H109: 12.35634032 | I109: 0 | J109: 0 | K109: 50.62858613 | L109: 32.26953482
E110: Blu Ray | F110: 7 | G110: 15.987 | H110: 9.1469 | I110: 0 | J110: 0 | K110: 41.75128233 | L110: 23.88783414
E111: Audio Equipment - Receivers | F111: 7 | G111: 65 | H111: 54.126875 | I111: 0 | J111: 0 | K111: 169.7525084 | L111: 141.3565046
E112: Audio Equipment - Home Theater In-a-Box | F112: 7 | G112: 91 | H112: 59.58950614 | I112: 0 | J112: 0 | K112: 237.6535117 | L112: 155.6225868
E113: Audio Equipment - Compact Systems | F113: 7 | G113: 105 | H113: 38.85838667 | I113: 0 | J113: 0 | K113: 274.2155904 | L113: 101.4816709
E114: Audio Equipment - Soundbars | F114: 7 | G114: 91 | H114: 28.370255 | I114: 0 | J114: 0 | K114: 237.6535117 | L114: 74.09110691
E115: Audio Equipment - Other Powered Speakers | F115: 7 | G115: 91 | H115: 32.19718333 | I115: 0 | J115: 0 | K115: 237.6535117 | L115: 84.08542513
E116: Audio Equipment - Home Radios | F116: 7 | G116: 15.7 | H116: 12.28377 | I116: 0 | J116: 0 | K116: 41.00175971 | L116: 32.08001184
E117: Audio Equipment - Portable Media/MP3 Player Speakers and Docks | F117: 7 | G117: 25 | H117: 14.09 | I117: 0 | J117: 0 | K117: 65.2894263 | L117: 36.79712066
E118: Residential Telephony | F118: 7 | G118: 10.82494927 | H118: 6.756540377 | I118: 0 | J118: 0 | K118: 28.2701891 | L118: 17.6452258
E119: Commercial Telephony (VOIP) | F119: 7 | G119: 34.90023338 | H119: 21.37857143 | I119: 0 | J119: 0 | K119: 91.1446486 | L119: 55.83178654
E120: Set Top Box - Cable | F120: 6 | G120: 152.1041667 | H120: 129.9791667 | I120: 0 | J120: 0 | K120: 340.4843581 | L120: 290.9576648
E121: Set Top Box - Cable Digital Transport Adapter | F121: 6 | G121: 45 | H121: 37 | I121: 0 | J121: 0 | K121: 100.7322577 | L121: 82.82430079
E122: Set Top Box - Satellite | F122: 6 | G122: 129.3333333 | H122: 99.44444444 | I122: 0 | J122: 0 | K122: 289.5119703 | L122: 222.6058535
E123: Set Top Box - Multichannel Video Programming Distributor (MVPD) Internet Protocol (IP) | F123: 6 | G123: 116.25 | H123: 96.25 | I123: 0 | J123: 0 | K123: 260.2249991 | L123: 215.4551068
E124: Set Top Box - Over-the-Top (OTT) Internet Protocol (IP) | F124: 6 | G124: 41.5101 | H124: 23.25 | I124: 0 | J124: 0 | K124: 92.92013535 | L124: 52.04499982
E125: Set Top Box - Thin-client | F125: 6 | G125: 53.57142857 | H125: 26.71428571 | I125: 0 | J125: 0 | K125: 119.9193544 | L125: 59.79978474
E126: Computer Servers | F126: 4 | G126: 2403.828547 | H126: 1738.189243 | I126: 0 | J126: 0 | K126: 3587.30484 | L126: 2593.951508
E129: Office Equipment
E131: Product Type | F131: Product Lifetime (Years) | G131: Electricity - Unit Energy Consumption (kWh/year) | I131: Fuel - Unit Energy Consumption (MMBtu/year) | K131: Product End Use Emission Factor (kg CO2e/Product Sold)
G132: Stnd. New | H132: ENERGY STAR | I132: Stnd. New | J132: ENERGY STAR | K132: Stnd. New | L132: ENERGY STAR
E133: Workstation | F133: 4 | G133: 1254 | H133: 914.5 | I133: 0 | J133: 0 | K133: =F133*(G133*$F$15+I133*$F$12) -> 1871.381499 | L133: =F133*(H133*$F$15+J133*$F$12) -> 1364.735551
E134: Printer (Mono, Laser) | F134: 4 | G134: 49.83492548 | H134: 34.66171429 | I134: 0 | J134: 0 | K134: =F134*(G134*$F$15+I134*$F$12) -> 74.37014158 | L134: =F134*(H134*$F$15+J134*$F$12) -> 51.7267072
E135: Multifunction Device (Mono, Laser) | F135: 4 | G135: 47.52589479 | H135: 32.51518584 | I135: 0 | J135: 0 | K135: 70.92430639 | L135: 48.52337896
E136: Printer (Color, Laser) | F136: 4 | G136: 64.76695757 | H136: 38.30367816 | I136: 0 | J136: 0 | K136: 96.6536572 | L136: 57.16171822
E137: Multifunction Device (Color, Laser) | F137: 4 | G137: 70.06290192 | H137: 40.05192195 | I137: 0 | J137: 0 | K137: 104.5569525 | L137: 59.77067443
E138: Multifunction Device (Inkjet) | F138: 4 | G138: 17.57552899 | H138: 15.53428605 | I138: 0 | J138: 0 | K138: 26.22848468 | L138: 23.18227712
E139: Scanner (Inkjet) | F139: 4 | G139: 18.34806476 | H139: 15.12584047 | I139: 0 | J139: 0 | K139: 27.38136279 | L139: 22.57274164
E140: Printer (Inkjet) | F140: 4 | G140: 11.83390675 | H140: 10.7550917 | I140: 0 | J140: 0 | K140: 17.66009103 | L140: 16.05014324
E141: Professional Displays | F141: 6 | G141: 905.3008727 | H141: 867.4047838 | I141: 0 | J141: 0 | K141: 2026.511129 | L141: 1941.680938
E142: Servers | F142: 5 | G142: 3694.221282 | H142: 2959.2 | I142: 0 | J142: 0 | K142: 6891.245375 | L142: 5520.127723
E143: Small Network Equipment | F143: 5 | G143: 76.55027239 | H143: 60.57216712 | I143: 0 | J143: 0 | K143: 142.7978105 | L143: 112.9920583
E144: Residential UPS | F144: 7.1 | G144: 279.0405714 | H144: 168 | I144: 0 | J144: 0 | K144: 739.1464664 | L144: 445.0127296
E145: Small Commercial UPS | F145: 5 | G145: 1404.382669 | H145: 682.3333333 | I145: 0 | J145: 0 | K145: 2619.752536 | L145: 1272.832911
E146: Larger Commercial UPS | F146: 12 | G146: 46698.57806 | H146: 16989 | I146: 0 | J146: 0 | K146: 209069.0311 | L146: 76059.57006
E149: Computers and Monitors
E151: Product Type | F151: Product Lifetime (Years) | G151: Electricity - Unit Energy Consumption (kWh/year) | I151: Fuel - Unit Energy Consumption (MMBtu/year) | K151: Product End Use Emission Factor (kg CO2e/Product Sold)
G152: Stnd. New | H152: ENERGY STAR | I152: Stnd. New | J152: ENERGY STAR | K152: Stnd. New | L152: ENERGY STAR
E153: Home Desktop-Power Management Not Enabled | F153: 4 | G153: 87.41238748 | H153: 51.23262294 | I153: 0 | J153: 0 | K153: =F153*(G153*$F$15+I153*$F$12) -> 130.4481058 | L153: =F153*(H153*$F$15+J153*$F$12) -> 76.45596706
E154: Home Desktop-Power Management Enabled | F154: 4 | G154: 29.16070447 | H154: 17.36229138 | I154: 0 | J154: 0 | K154: =F154*(G154*$F$15+I154*$F$12) -> 43.51738664 | L154: =F154*(H154*$F$15+J154*$F$12) -> 25.91026385
E155: Home Laptop-Power Management Not Enabled | F155: 4 | G155: 29.7106073 | H155: 19.39564745 | I155: 0 | J155: 0 | K155: 44.33802298 | L155: 28.94470159
E156: Home Laptop-Power Management Enabled | F156: 4 | G156: 10.12558707 | H156: 7.315619467 | I156: 0 | J156: 0 | K156: 15.11071476 | L156: 10.91731653
E157: Home Monitors-Power Management Not Enabled | F157: 7 | G157: 41.84833518 | H157: 36.82369595 | I157: 0 | J157: 0 | K157: 109.2901518 | L157: 96.1679193
E158: Home Monitors-Power Management Enabled | F158: 7 | G158: 23.10258339 | H158: 20.30767365 | I158: 0 | J158: 0 | K158: 60.33417663 | L158: 53.03505448
E159: Office Desktop-Power Management Not Enabled | F159: 4 | G159: 155.6446232 | H159: 90.90581938 | I159: 0 | J159: 0 | K159: 232.2731007 | L159: 135.6614581
E160: Office Desktop-Power Management Enabled | F160: 4 | G160: 33.16360736 | H160: 19.68940364 | I160: 0 | J160: 0 | K160: 49.49103768 | L160: 29.38308269
E161: Office Laptop-Power Management Not Enabled | F161: 4 | G161: 52.56016103 | H161: 33.70160366 | I161: 0 | J161: 0 | K161: 78.43709166 | L161: 50.29390556
E162: Office Laptop-Power Management Enabled | F162: 4 | G162: 11.38032991 | H162: 8.301696153 | I162: 0 | J162: 0 | K162: 16.98320482 | L162: 12.38886809
E163: Office Monitors-Power Management Not Enabled | F163: 7 | G163: 131.2906632 | H163: 115.5204833 | I163: 0 | J163: 0 | K163: 342.875683 | L163: 301.6906432
E164: Office Monitors-Power Management Enabled | F164: 7 | G164: 16.19214269 | H164: 14.11245116 | I164: 0 | J164: 0 | K164: 42.28702827 | L164: 36.85575359
E167: Heating and Cooling
E169: Product Type | F169: Product Lifetime (Years) | G169: Electricity - Unit Energy Consumption (kWh/year) | I169: Fuel - Unit Energy Consumption (MMBtu/year) | K169: Product End Use Emission Factor (kg CO2e/Product Sold)
G170: Stnd. New | H170: ENERGY STAR | I170: Stnd. New | J170: ENERGY STAR | K170: Stnd. New | L170: ENERGY STAR
E171: Furnace (Gas) | F171: 15 | G171: 294.8068649 | H171: 265.014061 | I171: 34.82400051 | J171: 29.99710501 | K171: =F171*(G171*$F$15+I171*$F$12) -> 29394.69958 | L171: =F171*(H171*$F$15+J171*$F$12) -> 25382.29989
E172: Furnace (Oil) | F172: 15 | G172: 483 | H172: 466 | I172: 67.3 | J172: 64.9 | K172: =F172*(G172*$F$15+I172*$F$14) -> 77610.91075 | L172: =F172*(H172*$F$15+J172*$F$14) -> 74844.46673
E173: Furnace (Gas) - North | F173: 15 | G173: 369 | H173: 325 | I173: 47.4 | J173: 40.1 | K173: =F173*(G173*$F$15+I173*$F$12) -> 39829.42078 | L173: =F173*(H173*$F$15+J173*$F$12) -> 33767.14863
E174: Furnace (Gas) - South | F174: 15 | G174: 228 | H174: 211 | I174: 23.5 | J174: 20.9 | K174: 19998.80318 | L174: 17832.20166
E175: Central Air Conditioner | F175: 11 | G175: 2415.170906 | H175: 2227.7294 | K175: =F175*G175*$F$15 -> 9911.636292 | L175: =F175*H175*$F$15 -> 9142.393822
E176: Air-Source Heat Pump | F176: 12 | G176: 4687.831721 | H176: 4444.272727 | K176: =F176*G176*$F$15 -> 20987.37214 | L176: =F176*H176*$F$15 -> 19896.96114
E177: Geothermal Heat Pump | F177: 15 | G177: 10926 | H177: 4267.715853 | K177: 61144.48043 | L177: 23883.1474
E178: Boiler - Gas | F178: 15 | G178: 147 | H178: 134.231 | I178: 74.8 | J178: 68.6269 | K178: 60417.11577 | L178: 55427.44063
E179: Boiler - Oil | F179: 20 | G179: 284 | H179: 257.0392 | I179: 78.9 | J179: 76.41874 | K179: =F179*(G179*$F$15+I179*$F$14) -> 119211.4422 | L179: =F179*(H179*$F$15+J179*$F$14) -> 115327.9315
E180: Smart Thermostat | F180: 10 | G180: 3238.214158 | H180: 2996.836477 | I180: 35.37404302 | J180: 33.11010426 | K180: =F180*('Smart Thermostat Calcs'!C21+'Smart Thermostat Calcs'!C22) -> 32195.99942 | L180: =F180*('Smart Thermostat Calcs'!D21+'Smart Thermostat Calcs'!D22) -> 30008.11505
E183: Commercial Appliances
E185: Product Type | F185: Product Lifetime (Years) | G185: Electricity - Unit Energy Consumption (kWh/year) | I185: Fuel - Unit Energy Consumption (MMBtu/year) | K185: Product End Use Emission Factor (kg CO2e/Product Sold)
G186: Stnd. New | H186: ENERGY STAR | I186: Stnd. New | J186: ENERGY STAR | K186: Stnd. New | L186: ENERGY STAR
E187: Water Coolers - Hot and Cold | F187: 5.143146249 | G187: 396.2863924 | H187: 258.5004872 | I187: 0 | J187: 0 | K187: =F187*(G187*$F$15+I187*$F$12) -> 760.401277 | L187: =F187*(H187*$F$15+J187*$F$12) -> 496.0152666
E188: Water Coolers - Cook and Cold | F188: 5.143146249 | G188: 73 | H188: 53.07392 | I188: 0 | J188: 0 | K188: =F188*(G188*$F$15+I188*$F$12) -> 140.0736798 | L188: =F188*(H188*$F$15+J188*$F$12) -> 101.8391681
E189: Commercial Refrigerators - Vertical Closed Solid Door | F189: 12 | G189: 1112.291875 | H189: 827.5891375 | I189: 0 | J189: 0 | K189: 4979.718747 | L189: 3705.107657
E190: Commercial Refrigerators - Vertical Closed Transparent Door | F190: 12 | G190: 1545.68375 | H190: 1140.248137 | I190: 0 | J190: 0 | K190: 6920.009504 | L190: 5104.878633
E191: Commercial Refrigerators - Horizontal Closed Solid and Transparent | F191: 12 | G191: 534.825375 | H191: 376.04125 | I191: 0 | J191: 0 | K191: 2394.407445 | L191: 1683.532627
E192: Commercial Freezers - Vertical Closed Solid Door | F192: 12 | G192: 3063.06175 | H192: 2546.789781 | I192: 0 | J192: 0 | K192: 13713.29447 | L192: 11401.95043
E193: Commercial Freezers - Vertical Closed Transparent Door | F193: 12 | G193: 4517.40425 | H193: 3613.9234 | I193: 0 | J193: 0 | K193: 20224.37018 | L193: 16179.49615
E194: Commercial Freezers - Horizontal Closed Solid and Transparent | F194: 12 | G194: 684.50275 | H194: 408.904025 | I194: 0 | J194: 0 | K194: 3064.511441 | L194: 1830.658917
E195: Hot Food Holding Cabinets | F195: 12 | G195: 4207.16898 | H195: 1208.850388 | I195: 0 | J195: 0 | K195: 18835.45022 | L195: 5412.010169
E196: Fryers (Large Vat) - Electric Fryers | F196: 12 | G196: 18154.1875 | H196: 16365.6875 | I196: 0 | J196: 0 | K196: 81276.10195 | L196: 73269.00671
E197: Fryers (Large Vat) - Gas Fryers | F197: 12 | G197: 0 | H197: 0 | I197: 171.6542842 | J197: 113.9297714 | K197: =F197*(G197*$F$15+I197*$F$12) -> 109407.9777 | L197: =F197*(H197*$F$15+J197*$F$12) -> 72615.87412
E198: Fryers (Standard) - Electric Fryers | F198: 12 | G198: 17452.475 | H198: 15062.82 | I198: 0 | J198: 0 | K198: 78134.54264 | L198: 67436.08294
E199: Fryers (Standard) - Gas Fryers | F199: 12 | G199: 0 | H199: 0 | I199: 163 | J199: 112 | K199: 103891.962 | L199: 71385.888
E200: Steamers - Electric Steamers | F200: 12 | G200: 19627.6544 | H200: 8034.38 | I200: 0 | J200: 0 | K200: 87872.79737 | L200: 35969.83274
E201: Steamers - Gas Steamers | F201: 12 | G201: 0 | H201: 0 | I201: 229 | J201: 96 | K201: 145958.646 | L201: 61187.904
E202: Ice Machines - Batch Ice Machines | F202: 10 | G202: 7207.55055 | H202: 6508.28661 | I202: 0 | J202: 0 | K202: 26890.10517 | L202: 24281.27423
E203: Ice Machines - Continuous Ice Machines | F203: 10 | G203: 8514.633378 | H203: 7165.088735 | I203: 0 | J203: 0 | K203: =F203*(G203*$F$15+I203*$F$12) -> 31766.60162 | L203: =F203*(H203*$F$15+J203*$F$12) -> 26731.68759
E204: Dishwashers - Flight Type | F204: 15 | G204: 88008 | H204: 45180 | I204: 0 | J204: 0 | K204: 492513.5854 | L204: 252837.9669
E205: Dishwashers - Other Dishwasher | F205: 15 | G205: 22162.05032 | H205: 13314.1578 | I205: 37.64034261 | J205: 21.87880887 | K205: 154012.7954 | L205: 91940.40629
E206: Vending Machines | F206: 14 | G206: 1336.666604 | H206: 1221.80968 | I206: 0 | J206: 0 | K206: 6981.61566 | L206: 6381.700241
E207: Griddles - Electric Griddles | F207: 12 | G207: 11232 | H207: 9961 | I207: 0 | J207: 0 | K207: 50285.54305 | L207: 44595.28974
E208: Griddles - Gas Griddles | F208: 12 | G208: 0 | H208: 0 | I208: 118 | J208: 106 | K208: 75210.132 | L208: 67561.644
E209: Ovens - Full-size Gas Convection Ovens | F209: 12 | G209: 0 | H209: 0 | I209: 80.231015 | J209: 61.979555 | K209: 51137.16295 | L209: 39504.15689
E210: Ovens - Half-size Electric Convection Ovens | F210: 12 | G210: 7632.15 | H210: 4482.2 | I210: 0 | J210: 0 | K210: 34169.05336 | L210: 20066.76113
E211: Ovens - Full-size Electric Convection Ovens | F211: 12 | G211: 10114.15 | H211: 9464.45 | I211: 0 | J211: 0 | K211: 45280.94064 | L211: 42372.24073
E212: Ovens - Gas Combination Ovens | F212: 12 | G212: 0 | H212: 0 | I212: 89.06 | J212: 61.685 | K212: 56764.52844 | L212: 39316.41519
E213: Ovens - Electric Combination Ovens | F213: 12 | G213: 20564.1 | H213: 13442.95 | I213: 0 | J213: 0 | K213: 92065.25426 | L213: 60183.94239
E214: Ovens - Single Gas Rack Ovens | F214: 12 | G214: 0 | H214: 0 | I214: 244.185 | J214: 226.665 | K214: =F214*(G214*$F$15+I214*$F$12) -> 155637.1702 | L214: =F214*(H214*$F$15+J214*$F$12) -> 144470.3777
E215: Ovens - Double Gas Rack Ovens | F215: 12 | G215: 0 | H215: 0 | I215: 300.03 | J215: 261.34 | K215: 191231.3212 | L215: 166571.3212
E216: Clothes Washers | F216: 10.67 | G216: 1135.668649 | H216: 1029.413997 | I216: 38.04291547 | J216: 33.93258309 | K216: 26080.98466 | L216: 23328.55154
E217: Water Heaters - Gas-fired Storage Water Heaters | F217: 10 | G217: 39 | H217: 167 | I217: 194 | J217: 163 | K217: 103187.6322 | L217: 87199.68267
E218: Water Heaters - Gas-fired Instantaneous Water Heaters | F218: 10 | G218: 119 | H218: 105 | I218: 62 | J218: 53 | K218: 33374.9581 | L218: 28542.42156
E219: Water Heaters - Electric Water Heaters | F219: 10 | G219: 15533 | H219: 5178 | I219: 0 | J219: 0 | K219: 57950.89478 | L219: 19318.20853
E220: LCHVAC | F220: 21.8 | G220: 22244.61292 | H220: 21019.7897 | I220: 0 | J220: 0 | K220: =F220*(G220*$F$15+I220*$F$12) -> 180919.8214 | L220: =F220*(H220*$F$15+J220*$F$12) -> 170958.0927
E221: Pool Pumps - Above-Ground | F221: 5 | G221: 1357.891304 | H221: 1130 | I221: 0 | J221: 0 | K221: 2533.026978 | L221: 2107.915763
E222: Pool Pumps - Below-Ground | F222: 7 | G222: 5799.416667 | H222: 2137 | I222: 0 | J222: 0 | K222: 15145.62348 | L222: 5580.94016
E223: Pool Pumps - Pressure Cleaner Booster | F223: 5 | G223: 1036.755814 | H223: 930 | I223: 0 | J223: 0 | K223: 1933.976923 | L223: 1734.833327
E224: Electric Vehicle Supply Equipment | F224: 10 | G224: 38.32003339 | H224: 26.28574666 | I224: 0 | J224: 0 | K224: 142.965314 | L224: 98.06750395
E225: Commercial Boilers | F225: 25 | G225: 0 | H225: 0 | I225: 938.8 | J225: 806.5 | K225: =F225*(G225*$F$15+I225*$F$12) -> 1246597.315 | L225: =F225*(H225*$F$15+J225*$F$12) -> 1070921.106
E226: Commercial Coffee Brewers | F226: 7 | G226: 921.63594 | H226: 588.255148 | I226: 0 | J226: 0 | K226: =F226*(G226*$F$15+I226*$F$12) -> 2406.923271 | L226: =F226*(H226*$F$15+J226*$F$12) -> 1536.273645

Sheet EF Calcs (hidden)
A1: Emission Factors
A3: GWP | B3: AR4 | C3: AR5 | D3: AR6
A4: CO2 | B4: 1 | C4: 1 | D4: 1
A5: CH4 | B5: 25 | C5: 28 | D5: 27
A6: N2O | B6: 298 | C6: 265 | D6: 273
A8: Source: Global warming potentials used are from IPCC's Fourth Assessment Report (AR4, 2007), IPCC's Fifth Assessment Report (AR5, 2014) and IPCC's Sixth Assessment Report (AR6, 2021)
A10: Natural Gas
A12: kg CO2/MMBtu | B12: 53.06
A13: kg CH4/MMBtu | B13: 0.001
A14: kg N2O/MMBtu | B14: 0.0001
A16: AR 4: kg CO2e/MMBtu | B16: =B12*B4+B13*B5+B14*B6 -> 53.1148
A17: AR 5: kg CO2e/MMBtu | B17: =B12*C4+B13*C5+B14*C6 -> 53.1145
A18: AR 6: kg CO2e/MMBtu | B18: =B12*D4+B13*D5+B14*D6 -> 53.1143
A20: Source: U.S. EPA GHG Emission Factors Hub, https://www.epa.gov/climateleadership/center-corporate-climate-leadership-ghg-emission-factors-hub.
A22: Propane
A24: kg CO2/MMBtu | B24: 62.87
A25: kg CH4/MMBtu | B25: 0.003
A26: kg N2O/MMBtu | B26: 0.0006
A28: AR 4: kg CO2e/MMBtu | B28: =B24*B4+B25*B5+B26*B6 -> 63.1238
A29: AR 5: kg CO2e/MMBtu | B29: =B24*C4+B25*C5+B26*C6 -> 63.113
A30: AR 6: kg CO2e/MMBtu | B30: =B24*D4+B25*D5+B26*D6 -> 63.1148
A32: Source: U.S. EPA GHG Emission Factors Hub, https://www.epa.gov/climateleadership/center-corporate-climate-leadership-ghg-emission-factors-hub.
A34: Distillate Fuel Oil No. 2
A36: kg CO2/MMBtu | B36: 73.96
A37: kg CH4/MMBtu | B37: 0.003
A38: kg N2O/MMBtu | B38: 0.0006
A40: AR 4: kg CO2e/MMBtu | B40: =B36*B4+B37*B5+B38*B6 -> 74.2138
A41: AR 5: kg CO2e/MMBtu | B41: =B36*C4+B37*C5+B38*C6 -> 74.203
A42: AR 6: kg CO2e/MMBtu | B42: =B36*D4+B37*D5+B38*D6 -> 74.2048
A44: Source: U.S. EPA GHG Emission Factors Hub, https://www.epa.gov/climateleadership/center-corporate-climate-leadership-ghg-emission-factors-hub.
A46: Electricity
B48: U.S. annual total output emission rate (lb/MWh)
A49: CO2 | B49: 818.3
A50: CH4 | B50: 0.065
A51: N2O | B51: 0.009
A53: AR 4: lb CO2e/MWh | B53: =B49*B4+B50*B5+B51*B6 -> 822.607
A54: AR 5: lb CO2e/MWh | B54: =B49*C4+B50*C5+B51*C6 -> 822.505
A55: AR 6: lb CO2e/MWh | B55: =B49*D4+B50*D5+B51*D6 -> 822.512
A57: AR 4: kg CO2e/kWh | B57: =B53/2.20462/1000 -> 0.3731287025
A58: AR 5: kg CO2e/kWh | B58: =B54/2.20462/1000 -> 0.373082436
A59: AR 6: kg CO2e/kWh | B59: 0.3730856111
A61: Source: U.S. EPA (2022). eGRID 2020 U.S. Average Data. https://www.epa.gov/energy/emissions-generation-resource-integrated-database-egrid
A64: GWP Selection
A65: AR4
A66: AR5
A67: AR6

Sheet Smart Thermostat Calcs (hidden)
A1: Consumption Estimates by CZ (MMBtu) | K1: Energy Savings Estimates by CZ (MMBtu) | Q1: Energy Star Consumption
B2: Heating | G2: Cooling | K2: Heating | O2: Cooling | R2: Heating | W2: Cooling
A3: Climate Zone | B3: per household heating energy consumption (million BTU) | C3: Electricity | D3: Natural Gas | E3: Propane | F3: Fuel Oil | G3: Electricity | J3: per household heating energy savings (million BTU) | K3: Electricity | L3: Natural Gas | M3: Propane | N3: Fuel Oil | O3: Electricity | Q3: Climate Zone | R3: per household heating energy consumption (million BTU) | S3: Electricity | T3: Natural Gas | U3: Propane | V3: Fuel Oil | W3: Electricity
A4: Very Cold/Cold | B4: 60.5 | C4: 2.678385417 | D4: 44.37717014 | E4: 4.595269097 | F4: 8.849175347 | G4: 2.023 | J4: 3.872 | K4: 0.1714166667 | L4: 2.840138889 | M4: 0.2940972222 | N4: 0.5663472222 | O4: 0.16184 | Q4: Very Cold/Cold | R4: =B4-J4 -> 56.628 | S4: =C4-K4 -> 2.50696875 | T4: =D4-L4 -> 41.53703125 | U4: =E4-M4 -> 4.301171875 | V4: =F4-N4 -> 8.282828125 | W4: =G4-O4 -> 1.86116
A5: Mixed-Humid | B5: 37.8 | C5: 5.136183206 | D5: 24.09389313 | E5: 3.78 | F5: 4.789923664 | G5: 6.498 | J5: 2.4192 | K5: 0.3287157252 | L5: 1.54200916 | M5: 0.24192 | N5: 0.3065551145 | O5: 0.51984 | Q5: Mixed-Humid | R5: =B5-J5 -> 35.3808 | S5: 4.807467481 | T5: 22.55188397 | U5: 3.53808 | V5: 4.48336855 | W5: 5.97816
A6: Mixed-Dry/Hot-Dry | B6: 18.2 | C6: 2.103111111 | D6: 14.96444444 | E6: 1.132444444 | F6: 0 | G6: 8.709 | J6: 1.1648 | K6: 0.1345991111 | L6: 0.9577244444 | M6: 0.07247644444 | N6: 0 | O6: 0.69672 | Q6: Mixed-Dry/Hot-Dry | R6: 17.0352 | S6: 1.968512 | T6: 14.00672 | U6: 1.059968 | V6: 0 | W6: 8.01228
A7: Hot-Humid | B7: 11.9 | C7: 4.119230769 | D7: 6.750961538 | E7: 1.029807692 | F7: 0 | G7: 14.546 | J7: 0.7616 | K7: 0.2636307692 | L7: 0.4320615385 | M7: 0.06590769231 | N7: 0 | O7: 1.16368 | Q7: Hot-Humid | R7: 11.1384 | S7: 3.8556 | T7: 6.3189 | U7: 0.9639 | V7: 0 | W7: 13.38232
A8: Marine | B8: 26.4 | C8: 5.245033113 | D8: 20.2807947 | E8: 0.8741721854 | F8: 0 | G8: 1.235 | J8: 1.6896 | K8: 0.3356821192 | L8: 1.297970861 | M8: 0.05594701987 | N8: 0 | O8: 0.0988 | Q8: Marine | R8: 24.7104 | S8: 4.909350993 | T8: 18.98282384 | U8: 0.8182251656 | V8: 0 | W8: 1.1362
A9: Weighted Average by Climate Zone Weights | B9: 39.14418605 | C9: 3.770143029 | D9: 27.39161477 | E9: 3.222085708 | F9: 4.760342543 | G9: 7.278643678 | J9: 2.505227907 | K9: 0.2412891539 | L9: 1.753063345 | M9: 0.2062134853 | N9: 0.3046619227 | O9: 0.5822914943 | Q9: Weighted Average by Climate Zone Weights | R9: 36.63895814 | S9: 3.528853875 | T9: 25.63855142 | U9: 3.015872223 | V9: 4.45568062 | W9: 6.696352184
A10: kWh | C10: =C9/3412*1000000 -> 1104.965718 | G10: =G9/3412*1000000 -> 2133.24844 | Q10: kWh | S10: =S9/3412*1000000 -> 1034.247912 | W10: =W9/3412*1000000 -> 1962.588565
C12: kg CO2e/kWh | D12: kg CO2e/MMBtu | E12: kg CO2e/MMBtu | F12: kg CO2e/MMBtu | G12: kg CO2e/kWh | S12: kg CO2e/kWh | T12: kg CO2e/MMBtu | U12: kg CO2e/MMBtu | V12: kg CO2e/MMBtu | W12: kg CO2e/kWh
A13: Emission Factors | C13: ='Product Data and EFs'!F15 -> 0.373082436 | D13: ='Product Data and EFs'!F12 -> 53.1145 | E13: ='Product Data and EFs'!F13 -> 63.113 | F13: ='Product Data and EFs'!F14 -> 74.203 | G13: ='Product Data and EFs'!F15 -> 0.373082436 | Q13: Emission Factors | S13: =C13 -> 0.373082436 | T13: =D13 -> 53.1145 | U13: 63.113 | V13: 74.203 | W13: 0.373082436
A15: Emission | C15: =C10*C13 -> 412.2433017 | D15: =D13*D9 -> 1454.891923 | E15: =E13*E9 -> 203.3554953 | F15: =F13*F9 -> 353.2316977 | G15: =G10*G13 -> 795.8775246 | S15: =S10*S13 -> 385.8597304 | T15: =T13*T9 -> 1361.778839 | U15: =U13*U9 -> 190.3407436 | V15: =V13*V9 -> 330.624869 | W15: =W10*W13 -> 732.2073227
A19: Emissions in kg CO2e/year
C20: Conventional | D20: Energy Star | E20: Savings | F20: lb CO2 | G20: Lifetime
A21: Electricity Emissions | C21: =C15+G15 -> 1208.120826 | D21: =S15+W15 -> 1118.067053 | E21: =C21-D21 -> 90.05377328 | F21: =E21*2.2 -> 198.1183012 | G21: =F21*10 -> 1981.183012
A22: Fuel Emissions | C22: =SUM(D15:F15) -> 2011.479116 | D22: =SUM(T15:V15) -> 1882.744452 | E22: =C22-D22 -> 128.7346634 | F22: =E22*2.2 -> 283.2162595 | G22: =F22*10 -> 2832.162595
G23: =SUM(G21:G22) -> 4813.345607
